Workbook

Sheet Instructions
B2: =CONCATENATE(" EEOC Form 462 Excel Tool ",Profile!D10) -> EEOC Form 462 Excel Tool 2019.1
C3: Element | D3: Value
C4: COMPLAINT AGAINST FLAG | D4: Yes
C5: MIXED CASES FLAG | D5: No
C6: EEOC Regulation 29 C.F.R. § 1614.602 requires federal agencies and departments covered by 29 C.F.R. § 1614.103(b), to report information concerning pre-complaint counseling and the status, processing and disposition of complaints under this part at such times and in such manner as the Commission prescribes.
C13: Purpose
C14: This tool supports data collection for EEOC Form 462 reporting, provides data validation and generation of an XML data file properly formatted for submission to the EEOC FedSep Portal.
C18: Contents
C19: Part I
C20: Part II
C21: Part III
C22: Part IV Part 1
C23: PART IV Part 2
C24: Part IVC Part 1
C25: Part IVC Part 2
C26: Part IVD Part 1
C27: Part IVD Part 2
C28: Parts V and VI
C29: Parts VI and VII
C30: Parts VIII AND IX
C31: Part X
C32: Part XI
C33: Part XII
C35: Instructions
C37: 1. Enter data into light blue shaded cells | D37: Example =
C38: -All light blue cells must be filled in for form to be considered complete.
C39: -If you have entered your data and there still remains empty data entry cells you may click the Populate with Zero’s button on the Data Checks worksheet to declare any remaining cells with zeroes.
C43: Enter data into orange shaded cells | D43: Example =
C44: -These fields may or may not require data to be entered.
C46: -Autocalculated cells are shaded dark blue. | D46: Example =
C47: No data can be entered into these cells
C49: 2. Validate Data Entry | D49: Example = | E49: Pass | F49: Fail
C50: -Validate that entered data passes business rules and data type validation by clicking on the Validate button on the Data Checks worksheet.
C53: - Any violations will be displayed on the Data Checks worksheet.
C55: - Some violations simply require comments to pass.
C56: Enter comments directly on the Data Checks worksheet.
C58: - Some violations require data from prior fiscal years to be entered directly onto the Data Checks worksheet.
C61: 3. Generate XML version of Form 462 Report
C62: - Click on the Generate XML button once all violations are resolved.
C64: - Select a folder location to save file.
C66: - Data files are now ready to manually submit to EEOC's FedSEP portal.

Sheet Enabling Macros
B2: Enabling Macros
C3: Certain functionality in this Excel template is dependent on MS Excel macros.
C4: If you receive an error indicating that macros are disabled attempt the following steps to enable macro functionality:
C5: 1. Click the Microsoft Office Button and then click Excel Options.
C6: 2. Click Trust Center, click Trust Center Settings, and then click Macro Settings.
C7: 3. Click the options that you want:
C8: Disable all macros with notification This is the default setting. Click this option if you want macros to be disabled, but you want to get security alerts if there are macros present. This way, you can choose when to enable those macros on a case by case basis.
C9: Enable all macros (not recommended, potentially dangerous code can run) Click this option to allow all macros to run. This setting makes your computer vulnerable to potentially malicious code and is not recommended for long term use.
C11: If you receive a security alert that the file contains encrypted macros that have been disabled because there is no antivirus software installed that can scan them it is recommended that you:
C12: Contact your local IT department to request temporary enabling of the macros.
C13: (If this is unavailable to you please contact the FEDSEP helpdesk)

Sheet Profile
B2: =CONCATENATE(" EEOC Form 462 Excel Tool ",D10) -> EEOC Form 462 Excel Tool 2019.1
C4: AGENCY CODE | D4: DD48
C9: SOURCE | D9: 1
C10: SOURCE_VERSION | D10: 2019.1
C11: XSD VERSION | D11: 2
C12: REPORTING PERIOD FISCAL YEAR | D12: 2019
B19: You can find the agency code in the List of Agency Codes for Form 462 Reporting under the Guidance tab Form 462
B20: FedSEP portal.

Sheet PART I
A1: ANNUAL FEDERAL EQUAL EMPLOYMENT OPPORTUNITY
A2: STATISTICAL REPORT OF DISCRIMINATION COMPLAINTS
A3: (REPORTING PERIOD BEGINS OCTOBER 1ST AND ENDS SEPTEMBER 30TH)
A4: ="AGENCY OR DEPARTMENT: " & Profile!D4 -> AGENCY OR DEPARTMENT: DD48 | F4: ="REPORTING PERIOD: FY" & Profile!D12 -> REPORTING PERIOD: FY2019
A5: PART I - PRE-COMPLAINT ACTIVITIES
E6: E. NON-ADR SETTLEMENTS WITH MONETARY BENEFITS
A7: EEO COUNSELOR | F7: COUNSELINGS | G7: INDIVIDUALS | H7: AMOUNT
B8: COUNSELINGS | C8: INDIVIDUALS | E8: TOTAL | F8: 0 | G8: 0 | H8: =SUM(H9:H14) -> 0
A9: A. INTENTIONALLY LEFT BLANK | E9: 1. COMPENSATORY DAMAGES | F9: 0 | G9: 0 | H9: 0
E10: 2. BACKPAY/FRONTPAY | F10: 0 | G10: 0 | H10: 0
E11: 3. LUMP SUM PAYMENT | F11: 0 | G11: 0 | H11: 0
A12: ADR INTAKE OFFICER | E12: 4. ATTORNEY FEES AND COSTS | F12: 0 | G12: 0 | H12: 0
B13: COUNSELINGS | C13: INDIVIDUALS | E13: 5. | F13: 0 | G13: 0 | H13: 0
A14: B. INTENTIONALLY LEFT BLANK | E14: 6. | F14: 0 | G14: 0 | H14: 0
A17: TOTAL COMPLETED/ENDED COUNSELINGS | E17: F. NON-ADR SETTLEMENTS WITH NON-MONETARY BENEFITS
B18: COUNSELINGS | C18: INDIVIDUALS | F18: COUNSELINGS | G18: INDIVIDUALS
E19: TOTAL | F19: 0 | G19: 0
A20: C. TOTAL COMPLETED/ENDED COUNSELINGS | B20: =SUM(B22+B24+B30+B31) -> 24 | C20: 22 | E20: 1. HIRES | F20: =SUM(F21,F22) -> 0 | G20: 0
E21: a. RETROACTIVE | F21: 0 | G21: 0
A22: 1. COUNSELED WITHIN 30 DAYS | B22: 18 | C22: 16 | E22: b. NON-RETROACTIVE | F22: 0 | G22: 0
E23: 2. PROMOTIONS | F23: =SUM(F24,F25) -> 0 | G23: 0
A24: 2. COUNSELED WITHIN 31 TO 90 DAYS | B24: =SUM(B26,B28,B29) -> 6 | C24: 6 | E24: a. RETROACTIVE | F24: 0 | G24: 0
A25: a. COUNSELED WITHIN WRITTEN EXTENSION | E25: b. NON-RETROACTIVE | F25: 0 | G25: 0
A26: PERIOD NO LONGER THAN 60 DAYS | B26: 4 | C26: 4 | E26: 3. EXPUNGEMENTS | F26: 0 | G26: 0
A27: b. COUNSELED WITHIN 90 DAYS WHERE | E27: 4. REASSIGNMENTS | F27: 0 | G27: 0
A28: INDIVIDUAL PARTICIPATED IN ADR | B28: 1 | C28: 1 | E28: 5. REMOVALS RESCINDED | F28: =SUM(F29,F30) -> 0 | G28: 0
A29: c. COUNSELED WITHIN 31-90 DAYS THAT WERE UNTIMELY | B29: 1 | C29: 1 | E29: a. REINSTATEMENT | F29: 0 | G29: 0
A30: 3. COUNSELED BEYOND 90 DAYS | B30: 0 | C30: 0 | E30: b. VOLUNTARY RESIGNATION | F30: 0 | G30: 0
A31: 4. COUNSELED DUE TO REMANDS | B31: 0 | C31: 0 | E31: 6. ACCOMMODATIONS | F31: 0 | G31: 0
E32: 7. TRAINING | F32: 0 | G32: 0
E33: 8. APOLOGY | F33: 0 | G33: 0
B34: COUNSELINGS | C34: INDIVIDUALS | E34: 9. DISCIPLINARY ACTIONS | F34: =SUM(F35,F36) -> 0 | G34: 0
A35: D. PRE-COMPLAINT ACTIVITIES | E35: a. RESCINDED | F35: 0 | G35: 0
A36: 1. ON HAND AT THE BEGINNING OF THE | E36: b. MODIFIED | F36: 0 | G36: 0
A37: REPORTING PERIOD | B37: 3 | C37: 3 | E37: 10. PERFORMANCE EVALUATION MODIFIED | F37: 0 | G37: 0
A38: 2. INITIATED DURING THE REPORTING PERIOD | B38: 28 | C38: 26 | E38: 11. LEAVE RESTORED | F38: 0 | G38: 0
A39: 3. COMPLETED/ENDED COUNSELINGS | B39: =SUM(B41,B42,B46,B48) -> 24 | C39: 22 | E39: 12. NEUTRAL REFERENCE | F39: 0 | G39: 0
A40: a. SETTLEMENTS (MONETARY AND | E40: 13. | F40: 0 | G40: 0
A41: NON-MONETARY) | B41: 0 | C41: 0 | E41: 14. | F41: 0 | G41: 0
A42: b. WITHDRAWALS/NO COMPLAINT FILED | B42: 10 | C42: 8
A43: c. COUNSELINGS COMPLETED/ENDED IN | E43: G. ADR SETTLEMENTS WITH MONETARY BENEFITS
A44: REPORTING PERIOD THAT RESULTED | F44: COUNSELINGS | G44: INDIVIDUALS | H44: AMOUNT
A45: IN COMPLAINT FILINGS IN REPORTING | E45: TOTAL | F45: 0 | G45: 0 | H45: =SUM(H46,H47,H48,H49,H50,H51) -> 0
A46: PERIOD | B46: 12 | C46: 12 | E46: 1. COMPENSATORY DAMAGES | F46: 0 | G46: 0 | H46: 0
A47: d. DECISION TO FILE COMPLAINT PENDING | E47: 2. BACKPAY/FRONTPAY | F47: 0 | G47: 0 | H47: 0
A48: AT THE END OF THE REPORTING PERIOD | B48: 2 | C48: 2 | E48: 3. LUMP SUM PAYMENT | F48: 0 | G48: 0 | H48: 0
A49: 4. COUNSELINGS PENDING AT THE END OF THE | E49: 4. ATTORNEY FEES AND COSTS | F49: 0 | G49: 0 | H49: 0
A50: REPORTING PERIOD | B50: 7 | C50: 7 | E50: 5. | F50: 0 | G50: 0 | H50: 0
E51: 6. | F51: 0 | G51: 0 | H51: 0
E54: H. ADR SETTLEMENTS WITH NON-MONETARY BENEFITS
F55: COUNSELINGS | G55: INDIVIDUALS
E56: TOTAL | F56: 0 | G56: 0
E57: 1. HIRES | F57: =SUM(F58,F59) -> 0 | G57: 0
E58: a. RETROACTIVE | F58: 0 | G58: 0
E59: b. NON-RETROACTIVE | F59: 0 | G59: 0
E60: 2. PROMOTIONS | F60: =SUM(F61,F62) -> 0 | G60: 0
E61: a. RETROACTIVE | F61: 0 | G61: 0
E62: b. NON-RETROACTIVE | F62: 0 | G62: 0
E63: 3. EXPUNGEMENTS | F63: 0 | G63: 0
E64: 4. REASSIGNMENTS | F64: 0 | G64: 0
E65: 5. REMOVALS RESCINDED | F65: =SUM(F66,F67) -> 0 | G65: 0
E66: a. REINSTATEMENT | F66: 0 | G66: 0
E67: b. VOLUNTARY RESIGNATION | F67: 0 | G67: 0
E68: 6. ACCOMMODATIONS | F68: 0 | G68: 0
E69: 7. TRAINING | F69: 0 | G69: 0
E70: 8. APOLOGY | F70: 0 | G70: 0
E71: 9. DISCIPLINARY ACTIONS | F71: =SUM(F72,F73) -> 0 | G71: 0
E72: a. RESCINDED | F72: 0 | G72: 0
E73: b. MODIFIED | F73: 0 | G73: 0
E74: 10. PERFORMANCE EVALUATION MODIFIED | F74: 0 | G74: 0
E75: 11. LEAVE RESTORED | F75: 0 | G75: 0
E76: 12. NEUTRAL REFERENCE | F76: 0 | G76: 0
E77: 13. | F77: 0 | G77: 0
E78: 14. | F78: 0 | G78: 0
E80: I. NON-ADR SETTLEMENTS
F81: COUNSELINGS | G81: INDIVIDUALS
E82: TOTAL | F82: 0 | G82: 0
A83: EEOC FORM 462 (REVISED SEPTEMBER 2015) | H83: page 1

Sheet PARTS II and III
A1: ANNUAL FEDERAL EQUAL EMPLOYMENT OPPORTUNITY
A2: STATISTICAL REPORT OF DISCRIMINATION COMPLAINTS
A3: (REPORTING PERIOD BEGINS OCTOBER 1ST AND ENDS SEPTEMBER 30TH)
A4: ="AGENCY OR DEPARTMENT: " & Profile!D4 -> AGENCY OR DEPARTMENT: DD48 | I4: ="REPORTING PERIOD: FY" & Profile!D12 -> REPORTING PERIOD: FY2019
A5: PART II - FORMAL COMPLAINT ACTIVITIES | F5: PART III - AGENCY RESOURCES, TRAINING, REPORTING LINE
F6: A. AGENCY & CONTRACT RESOURCES
A7: 9 | B7: A. COMPLAINTS ON HAND AT THE BEGINNING | I7: AGENCY | K7: CONTRACT
B8: OF THE REPORTING PERIOD | I8: NUMBER | J8: PERCENT | K8: NUMBER | L8: PERCENT
F9: 1. WORK FORCE
A10: 13 | B10: B. COMPLAINTS FILED | G10: a. TOTAL WORK FORCE | I10: 1225
G11: b. PERMANENT EMPLOYEES | I11: 1204
A12: =SUM(A13,A14,A15) -> 0 | B12: C. REMANDS | C12: (sum of lines C1+C2+C3) | F12: 2. COUNSELOR | I12: =SUM(I13,I14,I15) -> 4 | K12: =SUM(K13,K14,K15) -> 0
A13: 0 | B13: C.1. REMANDS (NOT INCLUDED IN A OR B) | G13: a. FULL-TIME | I13: 3 | J13: =IF(I13+I14+I15 > 0, I13/SUM(I13:I15)*100,0) -> 75 | K13: 0 | L13: =IF(K13+K14+K15 > 0, K13/SUM(K13:K15)*100,0) -> 0
A14: 0 | B14: C.2. REMANDS (INCLUDED IN A OR B) | G14: b. PART-TIME | I14: 1 | J14: =IF(I13+I14+I15 > 0, I14/SUM(I13:I15)*100,0) -> 25 | K14: 0 | L14: =IF(K13+K14+K15 > 0, K14/SUM(K13:K15)*100,0) -> 0
A15: 0 | B15: C.3. NUMBER OF ADDITIONAL REMANDS IN THIS REPORTING | G15: c. COLLATERAL DUTY | I15: 0 | J15: =IF(I13+I14+I15 > 0, I15/SUM(I13:I15)*100,0) -> 0 | K15: 0 | L15: =IF(K13+K14+K15 > 0, K15/SUM(K13:K15)*100,0) -> 0
B16: PERIOD THAT ARE NOT CAPTURED IN C.1 OR C.2 ABOVE
A17: 0 | B17: C.4. ADDITIONAL CLOSURES IN THIS REPORTING PERIOD NOT | F17: 3. INVESTIGATOR | I17: =SUM(I18,I19,I20) -> 0 | K17: =SUM(K18,K19,K20) -> 0
B18: REFLECTED IN F. OR H. THAT RESULTED FROM REMANDS | G18: a. FULL-TIME | I18: 0 | J18: =IF(I18+I19+I20 > 0, I18/SUM(I18:I20)*100,0) -> 0 | K18: 0 | L18: =IF(K18+K19+K20 > 0, K18/SUM(K18:K20)*100,0) -> 0
G19: b. PART-TIME | I19: 0 | J19: =IF(I18+I19+I20 > 0, I19/SUM(I18:I20)*100,0) -> 0 | K19: 0 | L19: =IF(K18+K19+K20 > 0, K19/SUM(K18:K20)*100,0) -> 0
A20: =SUM(A7,A10,A13) -> 22 | B20: D. TOTAL COMPLAINTS (sum of lines A+B+C1) | G20: c. COLLATERAL DUTY | I20: 0 | J20: =IF(I18+I19+I20 > 0, I20/SUM(I18:I20)*100,0) -> 0 | K20: 0 | L20: =IF(K18+K19+K20 > 0, K20/SUM(K18:K20)*100,0) -> 0
A22: 22 | B22: E. COMPLAINTS IN LINE D THAT WERE NOT CONSOLIDATED | F22: 4. COUNSELOR/INVESTIGATOR | I22: =SUM(I23,I24,I25) -> 0 | K22: =SUM(K23,K24,K25) -> 2
G23: a. FULL-TIME | I23: 0 | J23: =IF(I23+I24+I25 > 0, I23/SUM(I23:I25)*100,0) -> 0 | K23: 2 | L23: =IF(K23+K24+K25 > 0, K23/SUM(K23:K25)*100,0) -> 100
A24: 8 | B24: F. COMPLAINTS IN LINE E CLOSED DURING REPORT PERIOD | G24: b. PART-TIME | I24: 0 | J24: =IF(I23+I24+I25 > 0, I24/SUM(I23:I25)*100,0) -> 0 | K24: 0 | L24: =IF(K23+K24+K25 > 0, K24/SUM(K23:K25)*100,0) -> 0
G25: c. COLLATERAL DUTY | I25: 0 | J25: =IF(I23+I24+I25 > 0, I25/SUM(I23:I25)*100,0) -> 0 | K25: 0 | L25: =IF(K23+K24+K25 > 0, K25/SUM(K23:K25)*100,0) -> 0
A26: 0 | B26: G. COMPLAINTS IN LINE D THAT WERE CONSOLIDATED | F26: B. AGENCY & CONTRACT STAFF TRAINING
A28: 0 | B28: H. COMPLAINTS IN LINE G CLOSED DURING REPORT PERIOD | H28: COUNSELORS | J28: INVESTIGATORS | L28: COUNS/INVESTIG
H29: AGENCY | I29: CONTRACT | J29: AGENCY | K29: CONTRACT | L29: AGENCY | M29: CONTRACT
A30: =(A20-(A24+A28))+((A14+A15)-A17) -> 14 | B30: I. COMPLAINTS ON HAND AT THE END OF THE | F30: 1. NEW STAFF (NS) - TOTAL | H30: 1 | I30: 0 | J30: 0 | K30: 0 | L30: 0 | M30: 0
B31: REPORTING PERIOD | D31: (Line D - (F+H)) + [(C2 + C3) - C4] | F31: a. NS RECEIVING REQUIRED
F32: 32 OR MORE HOURS | H32: 1 | I32: 0 | J32: 0 | K32: 0 | L32: 0 | M32: 0
A33: 13 | B33: J. INDIVIDUALS FILING COMPLAINTS (Complainants) | F33: b. NS RECEIVING 8 OR MORE
F34: HOURS, USUALLY GIVEN TO
A35: 0 | B35: K. NUMBER OF JOINT PROCESSING UNITS FROM | F35: EXPERIENCED STAFF | H35: 0 | I35: 0 | J35: 0 | K35: 0 | L35: 0 | M35: 0
B36: CONSOLIDATION OF COMPLAINTS | F36: c. NS RECEIVING NO
F37: TRAINING AT ALL | H37: 0 | I37: 0 | J37: 0 | K37: 0 | L37: 0 | M37: 0
F39: 2. EXPERIENCED STAFF (ES) - TOTAL | H39: 3 | I39: 0 | J39: 0 | K39: 0 | L39: 0 | M39: 2
F40: a. ES RECEIVING REQUIRED
F41: 8 OR MORE HOURS | H41: 3 | I41: 0 | J41: 0 | K41: 0 | L41: 0 | M41: 2
F42: b. ES RECEIVING 32 OR
F43: MORE HOURS, GENERALLY
F44: GIVEN TO NEW STAFF | H44: 0 | I44: 0 | J44: 0 | K44: 0 | L44: 0 | M44: 0
F45: c. ES RECEIVING NO
F46: TRAINING AT ALL | H46: 0 | I46: 0 | J46: 0 | K46: 0 | L46: 0 | M46: 0
F47: C. REPORTING LINE
F48: 1 | G48: EEO DIRECTOR'S NAME: | I48: Johnny K. Jones
F49: 1a. | G49: DOES THE EEO DIRECTOR REPORT TO THE AGENCY HEAD? | L49: YES | M49: NO
G50: MUST use 'X' to designate response to question | L50: x
F52: 2. | G52: IF NO, WHO DOES THE EEO DIRECTOR REPORT TO?
F53: PERSON:
F55: TITLE:
F57: 3. | G57: WHO IS RESPONSIBLE FOR THE DAY-TO-DAY OPERATION OF THE EEO
G58: PROGRAM IN YOUR DEPARTMENT/AGENCY/ORGANIZATION?
F59: PERSON: | G59: Johnny K. Jones
F61: TITLE: | G61: EEO Director
F63: 4 | G63: WHO DOES THAT PERSON REPORT TO?
F64: PERSON: | G64: Mr. William H. Booth
F66: TITLE: | G66: Director, DHRA
A74: EEOC FORM 462 (REVISED SEPTEMBER 2015) | M74: page 2

Sheet PART IV Part 1
A1: ANNUAL FEDERAL EQUAL EMPLOYMENT OPPORTUNITY
A2: STATISTICAL REPORT OF DISCRIMINATION COMPLAINTS
A3: (REPORTING PERIOD BEGINS OCTOBER 1ST AND ENDS SEPTEMBER 30TH)
A4: ="AGENCY OR DEPARTMENT: " & Profile!D4 -> AGENCY OR DEPARTMENT: DD48 | L4: ="REPORTING PERIOD: FY" & Profile!D12 -> REPORTING PERIOD: FY2019
A6: PART IV - BASES AND ISSUES ALLEGED IN COMPLAINTS FILED (Part 1)
C8: BASES OF ALLEGED DISCRIMINATION
C9: RACE | I9: COLOR | J9: RELIGION | K9: REPRISAL | L9: TOTAL | M9: TOTAL ALL | N9: TOTAL ALL
L10: ALL BASES | M10: COMPLAINTS | N10: COMPLAINANTS
A11: ISSUES OF | C11: AMER. INDIAN/ | D11: ASIAN | E11: NATIVE HAWAIIAN | F11: BLACK/ AFRICAN AMERICAN | G11: WHITE | H11: TWO OR MORE | L11: BY ISSUE | M11: BY ISSUE | N11: BY ISSUE
A12: ALLEGED | C12: ALASKA | E12: /OTHER PACIFIC | H12: RACES
A13: DISCRIMINATION | C13: NATIVE | E13: ISLANDER
A14: A. APPOINTMENT/HIRE | C14: 0 | D14: 0 | E14: 0 | F14: 0 | G14: 0 | H14: 0 | I14: 0 | J14: 0 | K14: 0 | L14: =SUM('PART IV Part 1'!C14:K14)+SUM('PART IV Part 2'!B14:G14)+SUM('PART IV Part 2'!J14:M14) -> 0 | M14: =SUM('PART IV Part 2'!O14) -> 0 | N14: =SUM('PART IV Part 2'!P14) -> 0
A15: B. ASSIGNMENT OF DUTIES | C15: 0 | D15: 0 | E15: 0 | F15: 0 | G15: 0 | H15: 0 | I15: 0 | J15: 0 | K15: 0 | L15: =SUM('PART IV Part 1'!C15:K15)+SUM('PART IV Part 2'!B15:G15)+SUM('PART IV Part 2'!J15:M15) -> 0 | M15: =SUM('PART IV Part 2'!O15) -> 0 | N15: =SUM('PART IV Part 2'!P15) -> 0
A16: C. AWARDS | C16: 0 | D16: 0 | E16: 0 | F16: 0 | G16: 0 | H16: 0 | I16: 0 | J16: 0 | K16: 0 | L16: =SUM('PART IV Part 1'!C16:K16)+SUM('PART IV Part 2'!B16:G16)+SUM('PART IV Part 2'!J16:M16) -> 0 | M16: =SUM('PART IV Part 2'!O16) -> 0 | N16: =SUM('PART IV Part 2'!P16) -> 0
A17: D. CONVERSION TO FULL TIME/PERM STATUS | C17: 0 | D17: 0 | E17: 0 | F17: 0 | G17: 0 | H17: 0 | I17: 0 | J17: 0 | K17: 0 | L17: =SUM('PART IV Part 1'!C17:K17)+SUM('PART IV Part 2'!B17:G17)+SUM('PART IV Part 2'!J17:M17) -> 0 | M17: =SUM('PART IV Part 2'!O17) -> 0 | N17: =SUM('PART IV Part 2'!P17) -> 0
A18: E. DISCIPLINARY ACTION | C18: =SUM(C19:C25) -> 0 | D18: 0 | E18: 0 | F18: 3 | G18: 0 | H18: 0 | I18: 0 | J18: 0 | K18: 6 | L18: 24 | M18: =SUM('PART IV Part 2'!O18) -> 13 | N18: =SUM('PART IV Part 2'!P18) -> 13
A19: 1. DEMOTION | C19: 0 | D19: 0 | E19: 0 | F19: 0 | G19: 0 | H19: 0 | I19: 0 | J19: 0 | K19: 0 | L19: =SUM('PART IV Part 1'!C19:K19)+SUM('PART IV Part 2'!B19:G19)+SUM('PART IV Part 2'!J19:M19) -> 0 | M19: =SUM('PART IV Part 2'!O19) -> 0 | N19: =SUM('PART IV Part 2'!P19) -> 0
A20: 2. REPRIMAND | C20: 0 | D20: 0 | E20: 0 | F20: 1 | G20: 0 | H20: 0 | I20: 0 | J20: 0 | K20: 1 | L20: =SUM('PART IV Part 1'!C20:K20)+SUM('PART IV Part 2'!B20:G20)+SUM('PART IV Part 2'!J20:M20) -> 2 | M20: =SUM('PART IV Part 2'!O20) -> 2 | N20: =SUM('PART IV Part 2'!P20) -> 2
A21: 3. SUSPENSION | C21: 0 | D21: 0 | E21: 0 | F21: 1 | G21: 0 | H21: 0 | I21: 0 | J21: 0 | K21: 1 | L21: =SUM('PART IV Part 1'!C21:K21)+SUM('PART IV Part 2'!B21:G21)+SUM('PART IV Part 2'!J21:M21) -> 6 | M21: =SUM('PART IV Part 2'!O21) -> 4 | N21: =SUM('PART IV Part 2'!P21) -> 4
A22: 4. REMOVAL | C22: 0 | D22: 0 | E22: 0 | F22: 1 | G22: 0 | H22: 0 | I22: 0 | J22: 0 | K22: 4 | L22: =SUM('PART IV Part 1'!C22:K22)+SUM('PART IV Part 2'!B22:G22)+SUM('PART IV Part 2'!J22:M22) -> 16 | M22: =SUM('PART IV Part 2'!O22) -> 11 | N22: =SUM('PART IV Part 2'!P22) -> 11
A23: 5. DISCIPLINARY WARNING | C23: 0 | D23: 0 | E23: 0 | F23: 0 | G23: 0 | H23: 0 | I23: 0 | J23: 0 | K23: 0 | L23: =SUM('PART IV Part 1'!C23:K23)+SUM('PART IV Part 2'!B23:G23)+SUM('PART IV Part 2'!J23:M23) -> 0 | M23: =SUM('PART IV Part 2'!O23) -> 0 | N23: =SUM('PART IV Part 2'!P23) -> 0
A24: 6. | C24: 0 | D24: 0 | E24: 0 | F24: 0 | G24: 0 | H24: 0 | I24: 0 | J24: 0 | K24: 0 | L24: =SUM('PART IV Part 1'!C24:K24)+SUM('PART IV Part 2'!B24:G24)+SUM('PART IV Part 2'!J24:M24) -> 0 | M24: =SUM('PART IV Part 2'!O24) -> 0 | N24: =SUM('PART IV Part 2'!P24) -> 0
A25: 7. | C25: 0 | D25: 0 | E25: 0 | F25: 0 | G25: 0 | H25: 0 | I25: 0 | J25: 0 | K25: 0 | L25: =SUM('PART IV Part 1'!C25:K25)+SUM('PART IV Part 2'!B25:G25)+SUM('PART IV Part 2'!J25:M25) -> 0 | M25: =SUM('PART IV Part 2'!O25) -> 0 | N25: =SUM('PART IV Part 2'!P25) -> 0
A26: F. DUTY HOURS | C26: 0 | D26: 0 | E26: 0 | F26: 0 | G26: 0 | H26: 0 | I26: 0 | J26: 0 | K26: 0 | L26: =SUM('PART IV Part 1'!C26:K26)+SUM('PART IV Part 2'!B26:G26)+SUM('PART IV Part 2'!J26:M26) -> 0 | M26: =SUM('PART IV Part 2'!O26) -> 0 | N26: =SUM('PART IV Part 2'!P26) -> 0
A27: G. PERF. EVAL./APPRAISAL | C27: 0 | D27: 0 | E27: 0 | F27: 1 | G27: 0 | H27: 0 | I27: 0 | J27: 0 | K27: 1 | L27: =SUM('PART IV Part 1'!C27:K27)+SUM('PART IV Part 2'!B27:G27)+SUM('PART IV Part 2'!J27:M27) -> 6 | M27: =SUM('PART IV Part 2'!O27) -> 4 | N27: =SUM('PART IV Part 2'!P27) -> 4
A28: H. EXAMINATION/TEST | C28: 0 | D28: 0 | E28: 0 | F28: 0 | G28: 0 | H28: 0 | I28: 0 | J28: 0 | K28: 0 | L28: =SUM('PART IV Part 1'!C28:K28)+SUM('PART IV Part 2'!B28:G28)+SUM('PART IV Part 2'!J28:M28) -> 0 | M28: =SUM('PART IV Part 2'!O28) -> 0 | N28: =SUM('PART IV Part 2'!P28) -> 0
A29: I. HARASSMENT | C29: =SUM(C30) -> 0 | D29: =SUM(D30) -> 1 | E29: 0 | F29: 0 | G29: 0 | H29: 0 | I29: 0 | J29: 1 | K29: =SUM(K30:K31) -> 3 | L29: =SUM('PART IV Part 1'!C29:K29)+SUM('PART IV Part 2'!B29:G29)+SUM('PART IV Part 2'!J29:M29) -> 13 | M29: =SUM('PART IV Part 2'!O29) -> 8 | N29: =SUM('PART IV Part 2'!P29) -> 8
A30: 1. NON-SEXUAL | C30: 0 | D30: 1 | E30: 0 | F30: 0 | G30: 0 | H30: 0 | I30: 0 | J30: 1 | K30: 3 | L30: =SUM('PART IV Part 1'!C30:K30)+SUM('PART IV Part 2'!B30:G30)+SUM('PART IV Part 2'!J30:M30) -> 13 | M30: =SUM('PART IV Part 2'!O30) -> 8 | N30: =SUM('PART IV Part 2'!P30) -> 8
A31: 2. SEXUAL | K31: 0 | L31: =SUM('PART IV Part 1'!K31)+SUM('PART IV Part 2'!B31:E31) -> 0 | M31: =SUM('PART IV Part 2'!O31) -> 0 | N31: =SUM('PART IV Part 2'!P31) -> 0
A32: J. MEDICAL EXAMINATION | C32: 0 | D32: 0 | E32: 0 | F32: 0 | G32: 0 | H32: 0 | I32: 0 | J32: 0 | K32: 0 | L32: =SUM('PART IV Part 1'!C32:K32)+SUM('PART IV Part 2'!B32:G32)+SUM('PART IV Part 2'!J32:M32) -> 0 | M32: =SUM('PART IV Part 2'!O32) -> 0 | N32: =SUM('PART IV Part 2'!P32) -> 0
A33: K. PAY INCLUDING OVERTIME | C33: 0 | D33: 0 | E33: 0 | F33: 0 | G33: 0 | H33: 0 | I33: 0 | J33: 0 | K33: 0 | L33: =SUM('PART IV Part 1'!C33:K33)+SUM('PART IV Part 2'!B33:M33) -> 0 | M33: =SUM('PART IV Part 2'!O33) -> 0 | N33: =SUM('PART IV Part 2'!P33) -> 0
A34: L. PROMOTION/NON-SELECTION | C34: 0 | D34: 0 | E34: 0 | F34: 0 | G34: 0 | H34: 0 | I34: 0 | J34: 0 | K34: 0 | L34: =SUM('PART IV Part 1'!C34:K34)+SUM('PART IV Part 2'!B34:G34)+SUM('PART IV Part 2'!J34:M34) -> 0 | M34: =SUM('PART IV Part 2'!O34) -> 0 | N34: =SUM('PART IV Part 2'!P34) -> 0
A35: M. REASSIGNMENT | C35: =SUM(C36,C37) -> 0 | D35: =SUM(D36,D37) -> 0 | E35: 0 | F35: 0 | G35: 0 | H35: 0 | I35: 0 | J35: 0 | K35: 0 | L35: =SUM('PART IV Part 1'!C35:K35)+SUM('PART IV Part 2'!B35:G35)+SUM('PART IV Part 2'!J35:M35) -> 0 | M35: =SUM('PART IV Part 2'!O35) -> 0 | N35: =SUM('PART IV Part 2'!P35) -> 0
A36: 1. DENIED | C36: 0 | D36: 0 | E36: 0 | F36: 0 | G36: 0 | H36: 0 | I36: 0 | J36: 0 | K36: 0 | L36: =SUM('PART IV Part 1'!C36:K36)+SUM('PART IV Part 2'!B36:G36)+SUM('PART IV Part 2'!J36:M36) -> 0 | M36: =SUM('PART IV Part 2'!O36) -> 0 | N36: =SUM('PART IV Part 2'!P36) -> 0
A37: 2. DIRECTED | C37: 0 | D37: 0 | E37: 0 | F37: 0 | G37: 0 | H37: 0 | I37: 0 | J37: 0 | K37: 0 | L37: =SUM('PART IV Part 1'!C37:K37)+SUM('PART IV Part 2'!B37:G37)+SUM('PART IV Part 2'!J37:M37) -> 0 | M37: =SUM('PART IV Part 2'!O37) -> 0 | N37: =SUM('PART IV Part 2'!P37) -> 0
A38: N. REASONABLE ACCOMMODATION DISABILITY | K38: 1 | L38: =SUM('PART IV Part 1'!K38)+SUM('PART IV Part 2'!E38)+SUM('PART IV Part 2'!K38:M38) -> 3 | M38: =SUM('PART IV Part 2'!O38) -> 2 | N38: =SUM('PART IV Part 2'!P38) -> 2
A39: O. REINSTATEMENT | C39: 0 | D39: 0 | E39: 0 | F39: 0 | G39: 0 | H39: 0 | I39: 0 | J39: 0 | K39: 0 | L39: =SUM('PART IV Part 1'!C39:K39)+SUM('PART IV Part 2'!B39:G39)+SUM('PART IV Part 2'!J39:M39) -> 0 | M39: =SUM('PART IV Part 2'!O39) -> 0 | N39: =SUM('PART IV Part 2'!P39) -> 0
A40: P. RELIGIOUS ACCOMMODATION | J40: 1 | K40: 0 | L40: =SUM('PART IV Part 1'!J40:K40) -> 1 | M40: =SUM('PART IV Part 2'!O40) -> 1 | N40: =SUM('PART IV Part 2'!P40) -> 1
A41: Q. RETIREMENT | C41: 0 | D41: 0 | E41: 0 | F41: 0 | G41: 0 | H41: 0 | I41: 0 | J41: 0 | K41: 0 | L41: =SUM('PART IV Part 1'!C41:K41)+SUM('PART IV Part 2'!B41:G41)+SUM('PART IV Part 2'!J41:M41) -> 0 | M41: =SUM('PART IV Part 2'!O41) -> 0 | N41: =SUM('PART IV Part 2'!P41) -> 0
A42: R. SEX-STEROTYPING | L42: =SUM('PART IV Part 2'!B42:D42) -> 0 | M42: =SUM('PART IV Part 2'!O42) -> 0 | N42: =SUM('PART IV Part 2'!P42) -> 0
A43: S. TELEWORK | C43: 0 | D43: 0 | E43: 0 | F43: 0 | G43: 0 | H43: 0 | I43: 0 | J43: 0 | K43: 0 | L43: =SUM('PART IV Part 1'!C43:K43)+SUM('PART IV Part 2'!B43:G43)+SUM('PART IV Part 2'!J43:M43) -> 0 | M43: =SUM('PART IV Part 2'!O43) -> 0 | N43: =SUM('PART IV Part 2'!P43) -> 0
A44: T. TERMINATION | C44: 0 | D44: 0 | E44: 0 | F44: 0 | G44: 0 | H44: 0 | I44: 0 | J44: 0 | K44: 0 | L44: =SUM('PART IV Part 1'!C44:K44)+SUM('PART IV Part 2'!B44:G44)+SUM('PART IV Part 2'!J44:M44) -> 0 | M44: =SUM('PART IV Part 2'!O44) -> 0 | N44: =SUM('PART IV Part 2'!P44) -> 0
A45: U. TERMS/CONDITIONS OF EMPLOYMENT | C45: 0 | D45: 0 | E45: 0 | F45: 0 | G45: 0 | H45: 0 | I45: 0 | J45: 0 | K45: 0 | L45: =SUM('PART IV Part 1'!C45:K45)+SUM('PART IV Part 2'!B45:G45)+SUM('PART IV Part 2'!J45:M45) -> 0 | M45: =SUM('PART IV Part 2'!O45) -> 0 | N45: =SUM('PART IV Part 2'!P45) -> 0
A46: V. TIME AND ATTENDANCE | C46: 0 | D46: 0 | E46: 0 | F46: 0 | G46: 0 | H46: 0 | I46: 0 | J46: 0 | K46: 0 | L46: =SUM('PART IV Part 1'!C46:K46)+SUM('PART IV Part 2'!B46:G46)+SUM('PART IV Part 2'!J46:M46) -> 0 | M46: =SUM('PART IV Part 2'!O46) -> 0 | N46: =SUM('PART IV Part 2'!P46) -> 0
A47: W. TRAINING | C47: 0 | D47: 0 | E47: 0 | F47: 0 | G47: 0 | H47: 0 | I47: 0 | J47: 0 | K47: 0 | L47: =SUM('PART IV Part 1'!C47:K47)+SUM('PART IV Part 2'!B47:G47)+SUM('PART IV Part 2'!J47:M47) -> 0 | M47: =SUM('PART IV Part 2'!O47) -> 0 | N47: =SUM('PART IV Part 2'!P47) -> 0
A48: X. OTHER (Please specify below) | C48: =SUM(C49:C52) -> 0 | D48: 0 | E48: 0 | F48: 0 | G48: 0 | H48: 0 | I48: 0 | J48: 0 | K48: 0 | L48: 0 | M48: =SUM('PART IV Part 2'!O48) -> 0 | N48: =SUM('PART IV Part 2'!P48) -> 0
A49: 1. | C49: 0 | D49: 0 | E49: 0 | F49: 0 | G49: 0 | H49: 0 | I49: 0 | J49: 0 | K49: 0 | L49: =SUM('PART IV Part 1'!C49:K49)+SUM('PART IV Part 2'!B49:G49)+SUM('PART IV Part 2'!J49:M49) -> 0 | M49: =SUM('PART IV Part 2'!O49) -> 0 | N49: =SUM('PART IV Part 2'!P49) -> 0
A50: 2. | C50: 0 | D50: 0 | E50: 0 | F50: 0 | G50: 0 | H50: 0 | I50: 0 | J50: 0 | K50: 0 | L50: =SUM('PART IV Part 1'!C50:K50)+SUM('PART IV Part 2'!B50:G50)+SUM('PART IV Part 2'!J50:M50) -> 0 | M50: =SUM('PART IV Part 2'!O50) -> 0 | N50: =SUM('PART IV Part 2'!P50) -> 0
A51: 3. | C51: 0 | D51: 0 | E51: 0 | F51: 0 | G51: 0 | H51: 0 | I51: 0 | J51: 0 | K51: 0 | L51: =SUM('PART IV Part 1'!C51:K51)+SUM('PART IV Part 2'!B51:G51)+SUM('PART IV Part 2'!J51:M51) -> 0 | M51: =SUM('PART IV Part 2'!O51) -> 0 | N51: =SUM('PART IV Part 2'!P51) -> 0
A52: 4. | C52: 0 | D52: 0 | E52: 0 | F52: 0 | G52: 0 | H52: 0 | I52: 0 | J52: 0 | K52: 0 | L52: =SUM('PART IV Part 1'!C52:K52)+SUM('PART IV Part 2'!B52:G52)+SUM('PART IV Part 2'!J52:M52) -> 0 | M52: =SUM('PART IV Part 2'!O52) -> 0 | N52: =SUM('PART IV Part 2'!P52) -> 0
A53: TOTAL ALL ISSUES BY BASES | C53: =SUM(C14:C17,C18,C26:C29,C32:C35,C39,C41,C43:C48) -> 0 | D53: 1 | E53: 0 | F53: 4 | G53: 0 | H53: 0 | I53: 0 | J53: =SUM(J14:J17,J18,J26:J29,J32:J35,J39,J40,J41,J43:J48) -> 2 | K53: =SUM(K14:K17,K18,K26:K29,K32:K35,K38,K39,K40,K41,K43:K48) -> 11
A54: TOTAL ALL COMPLAINTS FILED BY BASES | C54: 0 | D54: 1 | E54: 0 | F54: 4 | G54: 0 | H54: 0 | I54: 0 | J54: 1 | K54: 11
A55: TOTAL ALL COMPLAINANTS BY BASES | C55: 0 | D55: 1 | E55: 0 | F55: 4 | G55: 0 | H55: 0 | I55: 0 | J55: 1 | K55: 11
A56: EEOC FORM 462 (REVISED SEPTEMBER 2016) | N56: page 3a

Sheet PART IV Part 2
A1: ANNUAL FEDERAL EQUAL EMPLOYMENT OPPORTUNITY
A2: STATISTICAL REPORT OF DISCRIMINATION COMPLAINTS
A3: (REPORTING PERIOD BEGINS OCTOBER 1ST AND ENDS SEPTEMBER 30TH)
A4: ="AGENCY OR DEPARTMENT: " & Profile!D4 -> AGENCY OR DEPARTMENT: DD48 | M4: ="REPORTING PERIOD: FY" & Profile!D12 -> REPORTING PERIOD: FY2019
A6: PART IV - BASES AND ISSUES ALLEGED IN COMPLAINTS FILED (Part 2)
B8: BASES OF ALLEGED DISCRIMINATION
B9: SEX | E9: PREGNANCY | F9: NATIONAL ORIGIN | H9: EQUAL | J9: AGE | K9: DISABILITY | M9: GINA | N9: TOTAL | O9: TOTAL ALL | P9: TOTAL ALL
E10: DISCRIMINATION ACT | H10: PAY ACT | N10: ALL BASES | O10: COMPLAINTS | P10: COMPLAINANTS
A11: ISSUES OF | B11: MALE | C11: FEMALE | D11: LGBT | F11: HISPANIC/ | G11: OTHER | H11: MALE | I11: FEMALE | K11: MENTAL | L11: PHYSICAL | N11: BY ISSUE | O11: BY ISSUE | P11: BY ISSUE
A12: ALLEGED | F12: LATINO
A13: DISCRIMINATION
A14: A. APPOINTMENT/HIRE | B14: 0 | C14: 0 | D14: 0 | E14: 0 | F14: 0 | G14: 0 | J14: 0 | K14: 0 | L14: 0 | M14: 0 | N14: =SUM('PART IV Part 1'!C14:K14)+SUM('PART IV Part 2'!B14:G14)+SUM('PART IV Part 2'!J14:M14) -> 0 | O14: 0 | P14: 0
A15: B. ASSIGNMENT OF DUTIES | B15: 0 | C15: 0 | D15: 0 | E15: 0 | F15: 0 | G15: 0 | J15: 0 | K15: 0 | L15: 0 | M15: 0 | N15: =SUM('PART IV Part 1'!C15:K15)+SUM('PART IV Part 2'!B15:G15)+SUM('PART IV Part 2'!J15:M15) -> 0 | O15: 0 | P15: 0
A16: C. AWARDS | B16: 0 | C16: 0 | D16: 0 | E16: 0 | F16: 0 | G16: 0 | J16: 0 | K16: 0 | L16: 0 | M16: 0 | N16: =SUM('PART IV Part 1'!C16:K16)+SUM('PART IV Part 2'!B16:G16)+SUM('PART IV Part 2'!J16:M16) -> 0 | O16: 0 | P16: 0
A17: D. CONVERSION TO FULL TIME/PERM STATUS | B17: 0 | C17: 0 | D17: 0 | E17: 0 | F17: 0 | G17: 0 | J17: 0 | K17: 0 | L17: 0 | M17: 0 | N17: =SUM('PART IV Part 1'!C17:K17)+SUM('PART IV Part 2'!B17:G17)+SUM('PART IV Part 2'!J17:M17) -> 0 | O17: 0 | P17: 0
A18: E. DISCIPLINARY ACTION | B18: =SUM(B19:B25) -> 0 | C18: 3 | D18: 0 | E18: 0 | F18: 0 | G18: 0 | J18: =SUM(J19:J25) -> 3 | K18: =SUM(K19:K25) -> 4 | L18: =SUM(L19:L25) -> 5 | M18: =SUM(M19:M25) -> 0 | N18: =SUM(N19:N25) -> 24 | O18: 13 | P18: 13
A19: 1. DEMOTION | B19: 0 | C19: 0 | D19: 0 | E19: 0 | F19: 0 | G19: 0 | J19: 0 | K19: 0 | L19: 0 | M19: 0 | N19: =SUM('PART IV Part 1'!C19:K19)+SUM('PART IV Part 2'!B19:G19)+SUM('PART IV Part 2'!J19:M19) -> 0 | O19: 0 | P19: 0
A20: 2. REPRIMAND | B20: 0 | C20: 0 | D20: 0 | E20: 0 | F20: 0 | G20: 0 | J20: 0 | K20: 0 | L20: 0 | M20: 0 | N20: =SUM('PART IV Part 1'!C20:K20)+SUM('PART IV Part 2'!B20:G20)+SUM('PART IV Part 2'!J20:M20) -> 2 | O20: 2 | P20: 2
A21: 3. SUSPENSION | B21: 0 | C21: 1 | D21: 0 | E21: 0 | F21: 0 | G21: 0 | J21: 1 | K21: 0 | L21: 2 | M21: 0 | N21: =SUM('PART IV Part 1'!C21:K21)+SUM('PART IV Part 2'!B21:G21)+SUM('PART IV Part 2'!J21:M21) -> 6 | O21: 4 | P21: 4
A22: 4. REMOVAL | B22: 0 | C22: 2 | D22: 0 | E22: 0 | F22: 0 | G22: 0 | J22: 2 | K22: 4 | L22: 3 | M22: 0 | N22: =SUM('PART IV Part 1'!C22:K22)+SUM('PART IV Part 2'!B22:G22)+SUM('PART IV Part 2'!J22:M22) -> 16 | O22: 11 | P22: 11
A23: 5. DISCIPLINARY WARNING | B23: 0 | C23: 0 | D23: 0 | E23: 0 | F23: 0 | G23: 0 | J23: 0 | K23: 0 | L23: 0 | M23: 0 | N23: =SUM('PART IV Part 1'!C23:K23)+SUM('PART IV Part 2'!B23:G23)+SUM('PART IV Part 2'!J23:M23) -> 0 | O23: 0 | P23: 0
A24: ='PART IV Part 1'!A24 &" " &'PART IV Part 1'!B24 -> 6. | B24: 0 | C24: 0 | D24: 0 | E24: 0 | F24: 0 | G24: 0 | J24: 0 | K24: 0 | L24: 0 | M24: 0 | N24: =SUM('PART IV Part 1'!C24:K24)+SUM('PART IV Part 2'!B24:G24)+SUM('PART IV Part 2'!J24:M24) -> 0 | O24: 0 | P24: 0
A25: ='PART IV Part 1'!A25 &" " &'PART IV Part 1'!B25 -> 7. | B25: 0 | C25: 0 | D25: 0 | E25: 0 | F25: 0 | G25: 0 | J25: 0 | K25: 0 | L25: 0 | M25: 0 | N25: =SUM('PART IV Part 1'!C25:K25)+SUM('PART IV Part 2'!B25:G25)+SUM('PART IV Part 2'!J25:M25) -> 0 | O25: 0 | P25: 0
A26: F. DUTY HOURS | B26: 0 | C26: 0 | D26: 0 | E26: 0 | F26: 0 | G26: 0 | J26: 0 | K26: 0 | L26: 0 | M26: 0 | N26: =SUM('PART IV Part 1'!C26:K26)+SUM('PART IV Part 2'!B26:G26)+SUM('PART IV Part 2'!J26:M26) -> 0 | O26: 0 | P26: 0
A27: G. PERF. EVAL./APPRAISAL | B27: 0 | C27: 2 | D27: 0 | E27: 0 | F27: 0 | G27: 0 | J27: 1 | K27: 0 | L27: 1 | M27: 0 | N27: =SUM('PART IV Part 1'!C27:K27)+SUM('PART IV Part 2'!B27:G27)+SUM('PART IV Part 2'!J27:M27) -> 6 | O27: 4 | P27: 4
A28: H. EXAMINATION/TEST | B28: 0 | C28: 0 | D28: 0 | E28: 0 | F28: 0 | G28: 0 | J28: 0 | K28: 0 | L28: 0 | M28: 0 | N28: =SUM('PART IV Part 1'!C28:K28)+SUM('PART IV Part 2'!B28:G28)+SUM('PART IV Part 2'!J28:M28) -> 0 | O28: 0 | P28: 0
A29: I. HARASSMENT | B29: =SUM(B30,B31) -> 0 | C29: =SUM(C30,C31) -> 1 | D29: =SUM(D30,D31) -> 0 | E29: =SUM(E30,E31) -> 0 | F29: =SUM(F30) -> 0 | G29: =SUM(G30) -> 1 | J29: =SUM(J30) -> 1 | K29: =SUM(K30) -> 1 | L29: =SUM(L30) -> 4 | M29: =SUM(M30) -> 0 | N29: =SUM('PART IV Part 1'!C29:K29)+SUM('PART IV Part 2'!B29:G29)+SUM('PART IV Part 2'!J29:M29) -> 13 | O29: 8 | P29: 8
A30: 1. NON-SEXUAL | B30: 0 | C30: 1 | D30: 0 | E30: 0 | F30: 0 | G30: 1 | J30: 1 | K30: 1 | L30: 4 | M30: 0 | N30: =SUM('PART IV Part 1'!C30:K30)+SUM('PART IV Part 2'!B30:G30)+SUM('PART IV Part 2'!J30:M30) -> 13 | O30: 8 | P30: 8
A31: 2. SEXUAL | B31: 0 | C31: 0 | D31: 0 | E31: 0 | N31: =SUM('PART IV Part 1'!K31)+SUM('PART IV Part 2'!B31:E31) -> 0 | O31: 0 | P31: 0
A32: J. MEDICAL EXAMINATION | B32: 0 | C32: 0 | D32: 0 | E32: 0 | F32: 0 | G32: 0 | J32: 0 | K32: 0 | L32: 0 | M32: 0 | N32: =SUM('PART IV Part 1'!C32:K32)+SUM('PART IV Part 2'!B32:G32)+SUM('PART IV Part 2'!J32:M32) -> 0 | O32: 0 | P32: 0
A33: K. PAY INCLUDING OVERTIME | B33: 0 | C33: 0 | D33: 0 | E33: 0 | F33: 0 | G33: 0 | H33: 0 | I33: 0 | J33: 0 | K33: 0 | L33: 0 | M33: 0 | N33: =SUM('PART IV Part 1'!C33:K33)+SUM('PART IV Part 2'!B33:M33) -> 0 | O33: 0 | P33: 0
A34: L. PROMOTION/NON-SELECTION | B34: 0 | C34: 0 | D34: 0 | E34: 0 | F34: 0 | G34: 0 | J34: 0 | K34: 0 | L34: 0 | M34: 0 | N34: =SUM('PART IV Part 1'!C34:K34)+SUM('PART IV Part 2'!B34:G34)+SUM('PART IV Part 2'!J34:M34) -> 0 | O34: 0 | P34: 0
A35: M. REASSIGNMENT | B35: =SUM(B36:B37) -> 0 | C35: 0 | D35: 0 | E35: 0 | F35: 0 | G35: 0 | J35: =SUM(J36:J37) -> 0 | K35: =SUM(K36:K37) -> 0 | L35: =SUM(L36:L37) -> 0 | M35: =SUM(M36:M37) -> 0 | N35: =SUM('PART IV Part 1'!C35:K35)+SUM('PART IV Part 2'!B35:G35)+SUM('PART IV Part 2'!J35:M35) -> 0 | O35: 0 | P35: 0
A36: 1. DENIED | B36: 0 | C36: 0 | D36: 0 | E36: 0 | F36: 0 | G36: 0 | J36: 0 | K36: 0 | L36: 0 | M36: 0 | N36: =SUM('PART IV Part 1'!C36:K36)+SUM('PART IV Part 2'!B36:G36)+SUM('PART IV Part 2'!J36:M36) -> 0 | O36: 0 | P36: 0
A37: 2. DIRECTED | B37: 0 | C37: 0 | D37: 0 | E37: 0 | F37: 0 | G37: 0 | J37: 0 | K37: 0 | L37: 0 | M37: 0 | N37: =SUM('PART IV Part 1'!C37:K37)+SUM('PART IV Part 2'!B37:G37)+SUM('PART IV Part 2'!J37:M37) -> 0 | O37: 0 | P37: 0
A38: N. REASONABLE ACCOMMODATION DISABILITY | E38: 0 | K38: 0 | L38: 2 | M38: 0 | N38: =SUM('PART IV Part 1'!K38)+SUM('PART IV Part 2'!E38)+SUM('PART IV Part 2'!K38:M38) -> 3 | O38: 2 | P38: 2
A39: O. REINSTATEMENT | B39: 0 | C39: 0 | D39: 0 | E39: 0 | F39: 0 | G39: 0 | J39: 0 | K39: 0 | L39: 0 | M39: 0 | N39: =SUM('PART IV Part 1'!C39:K39)+SUM('PART IV Part 2'!B39:G39)+SUM('PART IV Part 2'!J39:M39) -> 0 | O39: 0 | P39: 0
A40: P. RELIGIOUS ACCOMMODATION | N40: =SUM('PART IV Part 1'!J40:K40) -> 1 | O40: 1 | P40: 1
A41: Q. RETIREMENT | B41: 0 | C41: 0 | D41: 0 | E41: 0 | F41: 0 | G41: 0 | J41: 0 | K41: 0 | L41: 0 | M41: 0 | N41: =SUM('PART IV Part 1'!C41:K41)+SUM('PART IV Part 2'!B41:G41)+SUM('PART IV Part 2'!J41:M41) -> 0 | O41: 0 | P41: 0
A42: R. SEX-STEROTYPING | B42: 0 | C42: 0 | D42: 0 | N42: =SUM('PART IV Part 2'!B42:D42) -> 0 | O42: 0 | P42: 0
A43: S. TELEWORK | B43: 0 | C43: 0 | D43: 0 | E43: 0 | F43: 0 | G43: 0 | J43: 0 | K43: 0 | L43: 0 | M43: 0 | N43: =SUM('PART IV Part 1'!C43:K43)+SUM('PART IV Part 2'!B43:G43)+SUM('PART IV Part 2'!J43:M43) -> 0 | O43: 0 | P43: 0
A44: T. TERMINATION | B44: 0 | C44: 0 | D44: 0 | E44: 0 | F44: 0 | G44: 0 | J44: 0 | K44: 0 | L44: 0 | M44: 0 | N44: =SUM('PART IV Part 1'!C44:K44)+SUM('PART IV Part 2'!B44:G44)+SUM('PART IV Part 2'!J44:M44) -> 0 | O44: 0 | P44: 0
A45: U. TERMS/CONDITIONS OF EMPLOYMENT | B45: 0 | C45: 0 | D45: 0 | E45: 0 | F45: 0 | G45: 0 | J45: 0 | K45: 0 | L45: 0 | M45: 0 | N45: =SUM('PART IV Part 1'!C45:K45)+SUM('PART IV Part 2'!B45:G45)+SUM('PART IV Part 2'!J45:M45) -> 0 | O45: 0 | P45: 0
A46: V. TIME AND ATTENDANCE | B46: 0 | C46: 0 | D46: 0 | E46: 0 | F46: 0 | G46: 0 | J46: 0 | K46: 0 | L46: 0 | M46: 0 | N46: =SUM('PART IV Part 1'!C46:K46)+SUM('PART IV Part 2'!B46:G46)+SUM('PART IV Part 2'!J46:M46) -> 0 | O46: 0 | P46: 0
A47: W. TRAINING | B47: 0 | C47: 0 | D47: 0 | E47: 0 | F47: 0 | G47: 0 | J47: 0 | K47: 0 | L47: 0 | M47: 0 | N47: =SUM('PART IV Part 1'!C47:K47)+SUM('PART IV Part 2'!B47:G47)+SUM('PART IV Part 2'!J47:M47) -> 0 | O47: 0 | P47: 0
A48: X. OTHER (Please specify below) | B48: =SUM(B49:B52) -> 0 | C48: 0 | D48: 0 | E48: 0 | F48: 0 | G48: 0 | J48: =SUM(J49:J52) -> 0 | K48: =SUM(K49:K52) -> 0 | L48: =SUM(L49:L52) -> 0 | M48: =SUM(M49:M52) -> 0 | N48: =SUM(N49:N52) -> 0 | O48: 0 | P48: 0
A49: ='PART IV Part 1'!A49 &" " &'PART IV Part 1'!B49 -> 1. | B49: 0 | C49: 0 | D49: 0 | E49: 0 | F49: 0 | G49: 0 | J49: 0 | K49: 0 | L49: 0 | M49: 0 | N49: =SUM('PART IV Part 1'!C49:K49)+SUM('PART IV Part 2'!B49:G49)+SUM('PART IV Part 2'!J49:M49) -> 0 | O49: 0 | P49: 0
A50: ='PART IV Part 1'!A50 &" " &'PART IV Part 1'!B50 -> 2. | B50: 0 | C50: 0 | D50: 0 | E50: 0 | F50: 0 | G50: 0 | J50: 0 | K50: 0 | L50: 0 | M50: 0 | N50: =SUM('PART IV Part 1'!C50:K50)+SUM('PART IV Part 2'!B50:G50)+SUM('PART IV Part 2'!J50:M50) -> 0 | O50: 0 | P50: 0
A51: ='PART IV Part 1'!A51 &" " &'PART IV Part 1'!B51 -> 3. | B51: 0 | C51: 0 | D51: 0 | E51: 0 | F51: 0 | G51: 0 | J51: 0 | K51: 0 | L51: 0 | M51: 0 | N51: =SUM('PART IV Part 1'!C51:K51)+SUM('PART IV Part 2'!B51:G51)+SUM('PART IV Part 2'!J51:M51) -> 0 | O51: 0 | P51: 0
A52: ='PART IV Part 1'!A52 &" " &'PART IV Part 1'!B52 -> 4. | B52: 0 | C52: 0 | D52: 0 | E52: 0 | F52: 0 | G52: 0 | J52: 0 | K52: 0 | L52: 0 | M52: 0 | N52: =SUM('PART IV Part 1'!C52:K52)+SUM('PART IV Part 2'!B52:G52)+SUM('PART IV Part 2'!J52:M52) -> 0 | O52: 0 | P52: 0
A53: TOTAL ALL ISSUES BY BASES | B53: =SUM(B14,B15,B16,B17,B18,B26,B27,B28,B29,B32,B33,B34,B35,B39,B41:B48) -> 0 | C53: =SUM(C14,C15,C16,C17,C18,C26,C27,C28,C29,C32,C33,C34,C35,C39,C41:C48) -> 6 | D53: =SUM(D14,D15,D16,D17,D18,D26,D27,D28,D29,D32,D33,D34,D35,D39,D41:D48) -> 0 | E53: =SUM(E14,E15,E16,E17,E18,E26,E27,E28,E29,E32,E33,E34,E35,E39,E41,E43:E48,E38) -> 0 | F53: =SUM(F14,F15,F16,F17,F18,F26,F27,F28,F29,F32,F33,F34,F35,F39,F41,F43:F48) -> 0 | G53: =SUM(G14,G15,G16,G17,G18,G26,G27,G28,G29,G32,G33,G34,G35,G39,G41,G43:G48) -> 1 | H53: =SUM(H33) -> 0 | I53: =SUM(I33) -> 0 | J53: =SUM(J14,J15,J16,J17,J18,J26,J27,J28,J29,J32,J33,J34,J35,J39,J41,J44,J45,J46,J47,J48,J43) -> 5 | K53: =SUM(K14,K15,K16,K17,K18,K26,K27,K28,K29,K32,K33,K34,K35,K38,K39,K41,K44,K45,K46,K47,K48,K43) -> 5 | L53: =SUM(L14,L15,L16,L17,L18,L26,L27,L28,L29,L32,L33,L34,L35,L38,L39,L41,L44,L45,L46,L47,L48,L43) -> 12 | M53: =SUM(M14,M15,M16,M17,M18,M26,M27,M28,M29,M32,M33,M34,M35,M38,M39,M41,M44,M45,M46,M47,M48,M43) -> 0
A54: TOTAL ALL COMPLAINTS FILED BY BASES | B54: 0 | C54: 6 | D54: 0 | E54: 0 | F54: 0 | G54: 1 | H54: 0 | I54: 0 | J54: 5 | K54: 5 | L54: 12 | M54: 0
A55: TOTAL ALL COMPLAINANTS BY BASES | B55: 0 | C55: 6 | D55: 0 | E55: 0 | F55: 0 | G55: 1 | H55: 0 | I55: 0 | J55: 5 | K55: 5 | L55: 12 | M55: 0
A56: EEOC FORM 462 (REVISED SEPTEMBER 2016) | P56: page 3b

Sheet PART IVC Part 1
A1: ANNUAL FEDERAL EQUAL EMPLOYMENT OPPORTUNITY
A2: STATISTICAL REPORT OF DISCRIMINATION COMPLAINTS
A3: (REPORTING PERIOD BEGINS OCTOBER 1ST AND ENDS SEPTEMBER 30TH)
A4: ="AGENCY OR DEPARTMENT: " & Profile!D4 -> AGENCY OR DEPARTMENT: DD48 | M4: ="REPORTING PERIOD: FY" & Profile!D12 -> REPORTING PERIOD: FY2019
A5: PART IV C - BASES AND ISSUES ALLEGED IN SETTLEMENTS (Part 1)
B8: BASES OF ALLEGED DISCRIMINATION IN SETTLEMENTS
B9: RACE | H9: COLOR | I9: RELIGION | J9: REPRISAL
K10: NUMBER | L10: NUMBER | M10: NUMBER | N10: NUMBER | O10: NUMBER | P10: NUMBER
A11: ISSUES OF | B11: AMER. INDIAN/ | C11: ASIAN | D11: NATIVE HAWAIIAN | E11: BLACK/ AFRICAN AMERICAN | F11: WHITE | G11: TWO OR MORE | K11: COUNSELING | L11: COUNSELINGS | M11: INDIVIDUALS | N11: COMPLAINT | O11: COMPLAINTS | P11: COMPLAINANTS
A12: ALLEGED | B12: ALASKA | D12: /OTHER PACIFIC | G12: RACES | K12: SETTLEMENT | L12: SETTLED | M12: SETTLED WITH | N12: SETTLEMENT | O12: SETTLED | P12: SETTLED WITH
A13: DISCRIMINATION IN SETTLEMENTS | B13: NATIVE | D13: ISLANDER | K13: ALLEGATIONS | L13: BY ISSUE | M13: BY ISSUE | N13: ALLEGATIONS | O13: BY ISSUE | P13: BY ISSUE
A14: A. APPOINTMENT/HIRE | B14: 0 | C14: 0 | D14: 0 | E14: 0 | F14: 0 | G14: 0 | H14: 0 | I14: 0 | J14: 1 | K14: =SUM('PART IVC Part 2'!N14) -> 0 | L14: =SUM('PART IVC Part 2'!O14) -> 0 | M14: =SUM('PART IVC Part 2'!P14) -> 0 | N14: =SUM('PART IVC Part 2'!Q14) -> 4 | O14: =SUM('PART IVC Part 2'!R14) -> 1 | P14: =SUM('PART IVC Part 2'!S14) -> 1
A15: B. ASSIGNMENT OF DUTIES | B15: 0 | C15: 0 | D15: 0 | E15: 0 | F15: 0 | G15: 0 | H15: 0 | I15: 0 | J15: 0 | K15: =SUM('PART IVC Part 2'!N15) -> 0 | L15: =SUM('PART IVC Part 2'!O15) -> 0 | M15: =SUM('PART IVC Part 2'!P15) -> 0 | N15: =SUM('PART IVC Part 2'!Q15) -> 0 | O15: =SUM('PART IVC Part 2'!R15) -> 0 | P15: =SUM('PART IVC Part 2'!S15) -> 0
A16: C. AWARDS | B16: 0 | C16: 0 | D16: 0 | E16: 0 | F16: 0 | G16: 0 | H16: 0 | I16: 0 | J16: 0 | K16: =SUM('PART IVC Part 2'!N16) -> 0 | L16: =SUM('PART IVC Part 2'!O16) -> 0 | M16: =SUM('PART IVC Part 2'!P16) -> 0 | N16: =SUM('PART IVC Part 2'!Q16) -> 0 | O16: =SUM('PART IVC Part 2'!R16) -> 0 | P16: =SUM('PART IVC Part 2'!S16) -> 0
A17: D. CONVERSION TO FULL TIME/PERM STATUS | B17: 0 | C17: 0 | D17: 0 | E17: 0 | F17: 0 | G17: 0 | H17: 0 | I17: 0 | J17: 0 | K17: =SUM('PART IVC Part 2'!N17) -> 0 | L17: =SUM('PART IVC Part 2'!O17) -> 0 | M17: =SUM('PART IVC Part 2'!P17) -> 0 | N17: =SUM('PART IVC Part 2'!Q17) -> 0 | O17: =SUM('PART IVC Part 2'!R17) -> 0 | P17: =SUM('PART IVC Part 2'!S17) -> 0
A18: E. DISCIPLINARY ACTION | B18: =SUM(B19:B25) -> 0 | C18: 0 | D18: 0 | E18: 1 | F18: 0 | G18: 0 | H18: 0 | I18: 0 | J18: 1 | K18: =SUM('PART IVC Part 2'!N18) -> 0 | L18: =SUM('PART IVC Part 2'!O18) -> 0 | M18: =SUM('PART IVC Part 2'!P18) -> 0 | N18: =SUM('PART IVC Part 2'!Q18) -> 6 | O18: =SUM('PART IVC Part 2'!R18) -> 3 | P18: =SUM('PART IVC Part 2'!S18) -> 3
A19: 1. DEMOTION | B19: 0 | C19: 0 | D19: 0 | E19: 0 | F19: 0 | G19: 0 | H19: 0 | I19: 0 | J19: 0 | K19: =SUM('PART IVC Part 2'!N19) -> 0 | L19: =SUM('PART IVC Part 2'!O19) -> 0 | M19: =SUM('PART IVC Part 2'!P19) -> 0 | N19: =SUM('PART IVC Part 2'!Q19) -> 0 | O19: =SUM('PART IVC Part 2'!R19) -> 0 | P19: =SUM('PART IVC Part 2'!S19) -> 0
A20: 2. REPRIMAND | B20: 0 | C20: 0 | D20: 0 | E20: 0 | F20: 0 | G20: 0 | H20: 0 | I20: 0 | J20: 0 | K20: =SUM('PART IVC Part 2'!N20) -> 0 | L20: =SUM('PART IVC Part 2'!O20) -> 0 | M20: =SUM('PART IVC Part 2'!P20) -> 0 | N20: =SUM('PART IVC Part 2'!Q20) -> 0 | O20: =SUM('PART IVC Part 2'!R20) -> 0 | P20: =SUM('PART IVC Part 2'!S20) -> 0
A21: 3. SUSPENSION | B21: 0 | C21: 0 | D21: 0 | E21: 1 | F21: 0 | G21: 0 | H21: 0 | I21: 0 | J21: 1 | K21: =SUM('PART IVC Part 2'!N21) -> 0 | L21: =SUM('PART IVC Part 2'!O21) -> 0 | M21: =SUM('PART IVC Part 2'!P21) -> 0 | N21: =SUM('PART IVC Part 2'!Q21) -> 5 | O21: =SUM('PART IVC Part 2'!R21) -> 3 | P21: =SUM('PART IVC Part 2'!S21) -> 3
A22: 4. REMOVAL | B22: 0 | C22: 0 | D22: 0 | E22: 0 | F22: 0 | G22: 0 | H22: 0 | I22: 0 | J22: 0 | K22: =SUM('PART IVC Part 2'!N22) -> 0 | L22: =SUM('PART IVC Part 2'!O22) -> 0 | M22: =SUM('PART IVC Part 2'!P22) -> 0 | N22: =SUM('PART IVC Part 2'!Q22) -> 1 | O22: =SUM('PART IVC Part 2'!R22) -> 1 | P22: =SUM('PART IVC Part 2'!S22) -> 1
A23: 5. DISCIPLINARY WARNING | B23: 0 | C23: 0 | D23: 0 | E23: 0 | F23: 0 | G23: 0 | H23: 0 | I23: 0 | J23: 0 | K23: =SUM('PART IVC Part 2'!N23) -> 0 | L23: =SUM('PART IVC Part 2'!O23) -> 0 | M23: =SUM('PART IVC Part 2'!P23) -> 0 | N23: =SUM('PART IVC Part 2'!Q23) -> 0 | O23: =SUM('PART IVC Part 2'!R23) -> 0 | P23: =SUM('PART IVC Part 2'!S23) -> 0
A24: 6. | B24: 0 | C24: 0 | D24: 0 | E24: 0 | F24: 0 | G24: 0 | H24: 0 | I24: 0 | J24: 0 | K24: =SUM('PART IVC Part 2'!N24) -> 0 | L24: =SUM('PART IVC Part 2'!O24) -> 0 | M24: =SUM('PART IVC Part 2'!P24) -> 0 | N24: =SUM('PART IVC Part 2'!Q24) -> 0 | O24: =SUM('PART IVC Part 2'!R24) -> 0 | P24: =SUM('PART IVC Part 2'!S24) -> 0
A25: 7. | B25: 0 | C25: 0 | D25: 0 | E25: 0 | F25: 0 | G25: 0 | H25: 0 | I25: 0 | J25: 0 | K25: =SUM('PART IVC Part 2'!N25) -> 0 | L25: =SUM('PART IVC Part 2'!O25) -> 0 | M25: =SUM('PART IVC Part 2'!P25) -> 0 | N25: =SUM('PART IVC Part 2'!Q25) -> 0 | O25: =SUM('PART IVC Part 2'!R25) -> 0 | P25: =SUM('PART IVC Part 2'!S25) -> 0
A26: F. DUTY HOURS | B26: 0 | C26: 0 | D26: 0 | E26: 0 | F26: 0 | G26: 0 | H26: 0 | I26: 0 | J26: 0 | K26: =SUM('PART IVC Part 2'!N26) -> 0 | L26: =SUM('PART IVC Part 2'!O26) -> 0 | M26: =SUM('PART IVC Part 2'!P26) -> 0 | N26: =SUM('PART IVC Part 2'!Q26) -> 0 | O26: =SUM('PART IVC Part 2'!R26) -> 0 | P26: =SUM('PART IVC Part 2'!S26) -> 0
A27: G. PERF. EVAL./APPRAISAL | B27: 0 | C27: 0 | D27: 0 | E27: 1 | F27: 0 | G27: 0 | H27: 0 | I27: 0 | J27: 0 | K27: =SUM('PART IVC Part 2'!N27) -> 0 | L27: =SUM('PART IVC Part 2'!O27) -> 0 | M27: =SUM('PART IVC Part 2'!P27) -> 0 | N27: =SUM('PART IVC Part 2'!Q27) -> 2 | O27: =SUM('PART IVC Part 2'!R27) -> 1 | P27: =SUM('PART IVC Part 2'!S27) -> 1
A28: H. EXAMINATION/TEST | B28: 0 | C28: 0 | D28: 0 | E28: 0 | F28: 0 | G28: 0 | H28: 0 | I28: 0 | J28: 0 | K28: =SUM('PART IVC Part 2'!N28) -> 0 | L28: =SUM('PART IVC Part 2'!O28) -> 0 | M28: =SUM('PART IVC Part 2'!P28) -> 0 | N28: =SUM('PART IVC Part 2'!Q28) -> 0 | O28: =SUM('PART IVC Part 2'!R28) -> 0 | P28: =SUM('PART IVC Part 2'!S28) -> 0
A29: I. HARASSMENT | B29: =SUM(B30) -> 0 | C29: =SUM(C30) -> 0 | D29: 0 | E29: 0 | F29: 0 | G29: 0 | H29: 0 | I29: 0 | J29: =SUM(J30:J31) -> 0 | K29: =SUM('PART IVC Part 2'!N29) -> 0 | L29: =SUM('PART IVC Part 2'!O29) -> 0 | M29: =SUM('PART IVC Part 2'!P29) -> 0 | N29: =SUM('PART IVC Part 2'!Q29) -> 3 | O29: =SUM('PART IVC Part 2'!R29) -> 3 | P29: =SUM('PART IVC Part 2'!S29) -> 3
A30: 1. NON-SEXUAL | B30: 0 | C30: 0 | D30: 0 | E30: 0 | F30: 0 | G30: 0 | H30: 0 | I30: 0 | J30: 0 | K30: =SUM('PART IVC Part 2'!N30) -> 0 | L30: =SUM('PART IVC Part 2'!O30) -> 0 | M30: =SUM('PART IVC Part 2'!P30) -> 0 | N30: =SUM('PART IVC Part 2'!Q30) -> 3 | O30: =SUM('PART IVC Part 2'!R30) -> 3 | P30: =SUM('PART IVC Part 2'!S30) -> 3
A31: 2. SEXUAL | J31: 0 | K31: =SUM('PART IVC Part 2'!N31) -> 0 | L31: =SUM('PART IVC Part 2'!O31) -> 0 | M31: =SUM('PART IVC Part 2'!P31) -> 0 | N31: =SUM('PART IVC Part 2'!Q31) -> 0 | O31: =SUM('PART IVC Part 2'!R31) -> 0 | P31: =SUM('PART IVC Part 2'!S31) -> 0
A32: J. MEDICAL EXAMINATION | B32: 0 | C32: 0 | D32: 0 | E32: 0 | F32: 0 | G32: 0 | H32: 0 | I32: 0 | J32: 0 | K32: =SUM('PART IVC Part 2'!N32) -> 0 | L32: =SUM('PART IVC Part 2'!O32) -> 0 | M32: =SUM('PART IVC Part 2'!P32) -> 0 | N32: =SUM('PART IVC Part 2'!Q32) -> 0 | O32: =SUM('PART IVC Part 2'!R32) -> 0 | P32: =SUM('PART IVC Part 2'!S32) -> 0
A33: K. PAY INCLUDING OVERTIME | B33: 0 | C33: 0 | D33: 0 | E33: 0 | F33: 0 | G33: 0 | H33: 0 | I33: 0 | J33: 0 | K33: =SUM('PART IVC Part 2'!N33) -> 0 | L33: =SUM('PART IVC Part 2'!O33) -> 0 | M33: =SUM('PART IVC Part 2'!P33) -> 0 | N33: =SUM('PART IVC Part 2'!Q33) -> 0 | O33: =SUM('PART IVC Part 2'!R33) -> 0 | P33: =SUM('PART IVC Part 2'!S33) -> 0
A34: L. PROMOTION/NON-SELECTION | B34: 0 | C34: 0 | D34: 0 | E34: 0 | F34: 0 | G34: 0 | H34: 0 | I34: 0 | J34: 0 | K34: =SUM('PART IVC Part 2'!N34) -> 0 | L34: =SUM('PART IVC Part 2'!O34) -> 0 | M34: =SUM('PART IVC Part 2'!P34) -> 0 | N34: =SUM('PART IVC Part 2'!Q34) -> 0 | O34: =SUM('PART IVC Part 2'!R34) -> 0 | P34: =SUM('PART IVC Part 2'!S34) -> 0
A35: M. REASSIGNMENT | B35: =SUM(B36,B37) -> 0 | C35: =SUM(C36,C37) -> 0 | D35: 0 | E35: 0 | F35: 0 | G35: 0 | H35: 0 | I35: 0 | J35: 0 | K35: =SUM('PART IVC Part 2'!N35) -> 0 | L35: =SUM('PART IVC Part 2'!O35) -> 0 | M35: =SUM('PART IVC Part 2'!P35) -> 0 | N35: =SUM('PART IVC Part 2'!Q35) -> 0 | O35: =SUM('PART IVC Part 2'!R35) -> 0 | P35: =SUM('PART IVC Part 2'!S35) -> 0
A36: 1. DENIED | B36: 0 | C36: 0 | D36: 0 | E36: 0 | F36: 0 | G36: 0 | H36: 0 | I36: 0 | J36: 0 | K36: =SUM('PART IVC Part 2'!N36) -> 0 | L36: =SUM('PART IVC Part 2'!O36) -> 0 | M36: =SUM('PART IVC Part 2'!P36) -> 0 | N36: =SUM('PART IVC Part 2'!Q36) -> 0 | O36: =SUM('PART IVC Part 2'!R36) -> 0 | P36: =SUM('PART IVC Part 2'!S36) -> 0
A37: 2. DIRECTED | B37: 0 | C37: 0 | D37: 0 | E37: 0 | F37: 0 | G37: 0 | H37: 0 | I37: 0 | J37: 0 | K37: =SUM('PART IVC Part 2'!N37) -> 0 | L37: =SUM('PART IVC Part 2'!O37) -> 0 | M37: =SUM('PART IVC Part 2'!P37) -> 0 | N37: =SUM('PART IVC Part 2'!Q37) -> 0 | O37: =SUM('PART IVC Part 2'!R37) -> 0 | P37: =SUM('PART IVC Part 2'!S37) -> 0
A38: N. REASONABLE ACCOMMODATION DISABILITY | J38: 1 | K38: =SUM('PART IVC Part 2'!N38) -> 0 | L38: =SUM('PART IVC Part 2'!O38) -> 0 | M38: =SUM('PART IVC Part 2'!P38) -> 0 | N38: =SUM('PART IVC Part 2'!Q38) -> 3 | O38: =SUM('PART IVC Part 2'!R38) -> 2 | P38: =SUM('PART IVC Part 2'!S38) -> 2
A39: O. REINSTATEMENT | B39: 0 | C39: 0 | D39: 0 | E39: 0 | F39: 0 | G39: 0 | H39: 0 | I39: 0 | J39: 0 | K39: =SUM('PART IVC Part 2'!N39) -> 0 | L39: =SUM('PART IVC Part 2'!O39) -> 0 | M39: =SUM('PART IVC Part 2'!P39) -> 0 | N39: =SUM('PART IVC Part 2'!Q39) -> 0 | O39: =SUM('PART IVC Part 2'!R39) -> 0 | P39: =SUM('PART IVC Part 2'!S39) -> 0
A40: P. RELIGIOUS ACCOMMODATION | I40: 0 | J40: 0 | K40: =SUM('PART IVC Part 2'!N40) -> 0 | L40: =SUM('PART IVC Part 2'!O40) -> 0 | M40: =SUM('PART IVC Part 2'!P40) -> 0 | N40: =SUM('PART IVC Part 2'!Q40) -> 0 | O40: =SUM('PART IVC Part 2'!R40) -> 0 | P40: =SUM('PART IVC Part 2'!S40) -> 0
A41: Q. RETIREMENT | B41: 0 | C41: 0 | D41: 0 | E41: 0 | F41: 0 | G41: 0 | H41: 0 | I41: 0 | J41: 0 | K41: =SUM('PART IVC Part 2'!N41) -> 0 | L41: =SUM('PART IVC Part 2'!O41) -> 0 | M41: =SUM('PART IVC Part 2'!P41) -> 0 | N41: =SUM('PART IVC Part 2'!Q41) -> 0 | O41: =SUM('PART IVC Part 2'!R41) -> 0 | P41: =SUM('PART IVC Part 2'!S41) -> 0
A42: R. SEX-STEROTYPING | K42: =SUM('PART IVC Part 2'!N42) -> 0 | L42: =SUM('PART IVC Part 2'!O42) -> 0 | M42: =SUM('PART IVC Part 2'!P42) -> 0 | N42: =SUM('PART IVC Part 2'!Q42) -> 0 | O42: =SUM('PART IVC Part 2'!R42) -> 0 | P42: =SUM('PART IVC Part 2'!S42) -> 0
A43: S. TELEWORK | B43: 0 | C43: 0 | D43: 0 | E43: 0 | F43: 0 | G43: 0 | H43: 0 | I43: 0 | J43: 0 | K43: =SUM('PART IVC Part 2'!N43) -> 0 | L43: =SUM('PART IVC Part 2'!O43) -> 0 | M43: =SUM('PART IVC Part 2'!P43) -> 0 | N43: =SUM('PART IVC Part 2'!Q43) -> 0 | O43: =SUM('PART IVC Part 2'!R43) -> 0 | P43: =SUM('PART IVC Part 2'!S43) -> 0
A44: T. TERMINATION | B44: 0 | C44: 0 | D44: 0 | E44: 0 | F44: 0 | G44: 0 | H44: 0 | I44: 0 | J44: 0 | K44: =SUM('PART IVC Part 2'!N44) -> 0 | L44: =SUM('PART IVC Part 2'!O44) -> 0 | M44: =SUM('PART IVC Part 2'!P44) -> 0 | N44: =SUM('PART IVC Part 2'!Q44) -> 0 | O44: =SUM('PART IVC Part 2'!R44) -> 0 | P44: =SUM('PART IVC Part 2'!S44) -> 0
A45: U. TERMS/CONDITIONS OF EMPLOYMENT | B45: 0 | C45: 0 | D45: 0 | E45: 0 | F45: 0 | G45: 0 | H45: 0 | I45: 0 | J45: 0 | K45: =SUM('PART IVC Part 2'!N45) -> 0 | L45: =SUM('PART IVC Part 2'!O45) -> 0 | M45: =SUM('PART IVC Part 2'!P45) -> 0 | N45: =SUM('PART IVC Part 2'!Q45) -> 0 | O45: =SUM('PART IVC Part 2'!R45) -> 0 | P45: =SUM('PART IVC Part 2'!S45) -> 0
A46: V. TIME AND ATTENDANCE | B46: 0 | C46: 0 | D46: 0 | E46: 0 | F46: 0 | G46: 0 | H46: 0 | I46: 0 | J46: 0 | K46: =SUM('PART IVC Part 2'!N46) -> 0 | L46: =SUM('PART IVC Part 2'!O46) -> 0 | M46: =SUM('PART IVC Part 2'!P46) -> 0 | N46: =SUM('PART IVC Part 2'!Q46) -> 1 | O46: =SUM('PART IVC Part 2'!R46) -> 1 | P46: =SUM('PART IVC Part 2'!S46) -> 1
A47: W. TRAINING | B47: 0 | C47: 0 | D47: 0 | E47: 0 | F47: 0 | G47: 0 | H47: 0 | I47: 0 | J47: 0 | K47: =SUM('PART IVC Part 2'!N47) -> 0 | L47: =SUM('PART IVC Part 2'!O47) -> 0 | M47: =SUM('PART IVC Part 2'!P47) -> 0 | N47: =SUM('PART IVC Part 2'!Q47) -> 0 | O47: =SUM('PART IVC Part 2'!R47) -> 0 | P47: =SUM('PART IVC Part 2'!S47) -> 0
A48: X. OTHER (Please specify below) | B48: =SUM(B49:B52) -> 0 | C48: 0 | D48: 0 | E48: 0 | F48: 0 | G48: 0 | H48: 0 | I48: 0 | J48: 0 | K48: =SUM('PART IVC Part 2'!N48) -> 0 | L48: =SUM('PART IVC Part 2'!O48) -> 0 | M48: =SUM('PART IVC Part 2'!P48) -> 0 | N48: =SUM('PART IVC Part 2'!Q48) -> 0 | O48: =SUM('PART IVC Part 2'!R48) -> 0 | P48: =SUM('PART IVC Part 2'!S48) -> 0
A49: 1. | B49: 0 | C49: 0 | D49: 0 | E49: 0 | F49: 0 | G49: 0 | H49: 0 | I49: 0 | J49: 0 | K49: =SUM('PART IVC Part 2'!N49) -> 0 | L49: =SUM('PART IVC Part 2'!O49) -> 0 | M49: =SUM('PART IVC Part 2'!P49) -> 0 | N49: =SUM('PART IVC Part 2'!Q49) -> 0 | O49: =SUM('PART IVC Part 2'!R49) -> 0 | P49: =SUM('PART IVC Part 2'!S49) -> 0
A50: 2. | B50: 0 | C50: 0 | D50: 0 | E50: 0 | F50: 0 | G50: 0 | H50: 0 | I50: 0 | J50: 0 | K50: =SUM('PART IVC Part 2'!N50) -> 0 | L50: =SUM('PART IVC Part 2'!O50) -> 0 | M50: =SUM('PART IVC Part 2'!P50) -> 0 | N50: =SUM('PART IVC Part 2'!Q50) -> 0 | O50: =SUM('PART IVC Part 2'!R50) -> 0 | P50: =SUM('PART IVC Part 2'!S50) -> 0
A51: 3. | B51: 0 | C51: 0 | D51: 0 | E51: 0 | F51: 0 | G51: 0 | H51: 0 | I51: 0 | J51: 0 | K51: =SUM('PART IVC Part 2'!N51) -> 0 | L51: =SUM('PART IVC Part 2'!O51) -> 0 | M51: =SUM('PART IVC Part 2'!P51) -> 0 | N51: =SUM('PART IVC Part 2'!Q51) -> 0 | O51: =SUM('PART IVC Part 2'!R51) -> 0 | P51: =SUM('PART IVC Part 2'!S51) -> 0
A52: 4. | B52: 0 | C52: 0 | D52: 0 | E52: 0 | F52: 0 | G52: 0 | H52: 0 | I52: 0 | J52: 0 | K52: =SUM('PART IVC Part 2'!N52) -> 0 | L52: =SUM('PART IVC Part 2'!O52) -> 0 | M52: =SUM('PART IVC Part 2'!P52) -> 0 | N52: =SUM('PART IVC Part 2'!Q52) -> 0 | O52: =SUM('PART IVC Part 2'!R52) -> 0 | P52: =SUM('PART IVC Part 2'!S52) -> 0
A53: 1. COUNSELING SETTLEMENT ALLEGATIONS | B53: 0 | C53: 0 | D53: 0 | E53: 0 | F53: 0 | G53: 0 | H53: 0 | I53: 0 | J53: 0
A54: 1A. NUMBER OF COUNSELINGS SETTLED | B54: 0 | C54: 0 | D54: 0 | E54: 0 | F54: 0 | G54: 0 | H54: 0 | I54: 0 | J54: 0
A55: 1B. NUMBER OF COUNSELEES SETTLED WITH | B55: 0 | C55: 0 | D55: 0 | E55: 0 | F55: 0 | G55: 0 | H55: 0 | I55: 0 | J55: 0
A57: 2. COMPLAINT SETTLEMENT ALLEGATIONS | B57: 0 | C57: 0 | D57: 0 | E57: 2 | F57: 0 | G57: 0 | H57: 0 | I57: 0 | J57: 3
A58: 2A. NUMBER OF COMPLAINTS SETTLED | B58: 0 | C58: 0 | D58: 0 | E58: 1 | F58: 0 | G58: 0 | H58: 0 | I58: 0 | J58: 3
A59: 2B. NUMBER OF COMPLAINANTS SETTLED WITH | B59: 0 | C59: 0 | D59: 0 | E59: 1 | F59: 0 | G59: 0 | H59: 0 | I59: 0 | J59: 3
A60: EEOC FORM 462 (REVISED SEPTEMBER 2016) | M60: page 3a

Sheet PART IVC Part 2
A1: ANNUAL FEDERAL EQUAL EMPLOYMENT OPPORTUNITY
A2: STATISTICAL REPORT OF DISCRIMINATION COMPLAINTS
A3: (REPORTING PERIOD BEGINS OCTOBER 1ST AND ENDS SEPTEMBER 30TH)
A4: ="AGENCY OR DEPARTMENT: " & Profile!D4 -> AGENCY OR DEPARTMENT: DD48 | Q4: ="REPORTING PERIOD: FY" & Profile!D12 -> REPORTING PERIOD: FY2019
A5: PART IV C - BASES AND ISSUES ALLEGED IN SETTLEMENTS (Part 2)
B8: BASES OF ALLEGED DISCRIMINATION IN SETTLEMENTS
B9: SEX | E9: PREGNANCY | F9: NATIONAL ORIGIN | H9: EQUAL | J9: AGE | K9: DISABILITY | M9: GINA
E10: DISCRIMINATION ACT | H10: PAY ACT | N10: NUMBER | O10: NUMBER | P10: NUMBER | Q10: NUMBER | R10: NUMBER | S10: NUMBER
A11: ISSUES OF | B11: MALE | C11: FEMALE | D11: LGBT | F11: HISPANIC/ | G11: OTHER | H11: MALE | I11: FEMALE | K11: MENTAL | L11: PHYSICAL | N11: COUNSELING | O11: COUNSELINGS | P11: INDIVIDUALS | Q11: COMPLAINT | R11: COMPLAINTS | S11: COMPLAINANTS
A12: ALLEGED | F12: LATINO | N12: SETTLEMENT | O12: SETTLED | P12: SETTLED WITH | Q12: SETTLEMENT | R12: SETTLED | S12: SETTLED WITH
A13: DISCRIMINATION IN SETTLEMENTS | N13: ALLEGATIONS | O13: BY ISSUE | P13: BY ISSUE | Q13: ALLEGATIONS | R13: BY ISSUE | S13: BY ISSUE
A14: A. APPOINTMENT/HIRE | B14: 1 | C14: 0 | D14: 0 | E14: 0 | F14: 0 | G14: 0 | J14: 1 | K14: 0 | L14: 1 | M14: 0 | N14: 0 | O14: 0 | P14: 0 | Q14: 4 | R14: 1 | S14: 1
A15: B. ASSIGNMENT OF DUTIES | B15: 0 | C15: 0 | D15: 0 | E15: 0 | F15: 0 | G15: 0 | J15: 0 | K15: 0 | L15: 0 | M15: 0 | N15: 0 | O15: 0 | P15: 0 | Q15: 0 | R15: 0 | S15: 0
A16: C. AWARDS | B16: 0 | C16: 0 | D16: 0 | E16: 0 | F16: 0 | G16: 0 | J16: 0 | K16: 0 | L16: 0 | M16: 0 | N16: 0 | O16: 0 | P16: 0 | Q16: 0 | R16: 0 | S16: 0
A17: D. CONVERSION TO FULL TIME/PERM STATUS | B17: 0 | C17: 0 | D17: 0 | E17: 0 | F17: 0 | G17: 0 | J17: 0 | K17: 0 | L17: 0 | M17: 0 | N17: 0 | O17: 0 | P17: 0 | Q17: 0 | R17: 0 | S17: 0
A18: E. DISCIPLINARY ACTION | B18: =SUM(B19:B25) -> 0 | C18: 1 | D18: 0 | E18: 0 | F18: 0 | G18: 0 | J18: =SUM(J19:J25) -> 2 | K18: =SUM(K19:K25) -> 0 | L18: =SUM(L19:L25) -> 1 | M18: =SUM(M19:M25) -> 0 | N18: =SUM(N19,N20,N21,N22,N24,N23,N25) -> 0 | O18: 0 | P18: 0 | Q18: =SUM(Q19,Q20,Q21,Q22,Q23,Q24,Q25) -> 6 | R18: 3 | S18: 3
A19: 1. DEMOTION | B19: 0 | C19: 0 | D19: 0 | E19: 0 | F19: 0 | G19: 0 | J19: 0 | K19: 0 | L19: 0 | M19: 0 | N19: 0 | O19: 0 | P19: 0 | Q19: 0 | R19: 0 | S19: 0
A20: 2. REPRIMAND | B20: 0 | C20: 0 | D20: 0 | E20: 0 | F20: 0 | G20: 0 | J20: 0 | K20: 0 | L20: 0 | M20: 0 | N20: 0 | O20: 0 | P20: 0 | Q20: 0 | R20: 0 | S20: 0
A21: 3. SUSPENSION | B21: 0 | C21: 1 | D21: 0 | E21: 0 | F21: 0 | G21: 0 | J21: 1 | K21: 0 | L21: 1 | M21: 0 | N21: 0 | O21: 0 | P21: 0 | Q21: 5 | R21: 3 | S21: 3
A22: 4. REMOVAL | B22: 0 | C22: 0 | D22: 0 | E22: 0 | F22: 0 | G22: 0 | J22: 1 | K22: 0 | L22: 0 | M22: 0 | N22: 0 | O22: 0 | P22: 0 | Q22: 1 | R22: 1 | S22: 1
A23: 5. DISCIPLINARY WARNING | B23: 0 | C23: 0 | D23: 0 | E23: 0 | F23: 0 | G23: 0 | J23: 0 | K23: 0 | L23: 0 | M23: 0 | N23: 0 | O23: 0 | P23: 0 | Q23: 0 | R23: 0 | S23: 0
A24: ='PART IVC Part 1'!A24 -> 6. | B24: 0 | C24: 0 | D24: 0 | E24: 0 | F24: 0 | G24: 0 | J24: 0 | K24: 0 | L24: 0 | M24: 0 | N24: 0 | O24: 0 | P24: 0 | Q24: 0 | R24: 0 | S24: 0
A25: ='PART IVC Part 1'!A25 -> 7. | B25: 0 | C25: 0 | D25: 0 | E25: 0 | F25: 0 | G25: 0 | J25: 0 | K25: 0 | L25: 0 | M25: 0 | N25: 0 | O25: 0 | P25: 0 | Q25: 0 | R25: 0 | S25: 0
A26: F. DUTY HOURS | B26: 0 | C26: 0 | D26: 0 | E26: 0 | F26: 0 | G26: 0 | J26: 0 | K26: 0 | L26: 0 | M26: 0 | N26: 0 | O26: 0 | P26: 0 | Q26: 0 | R26: 0 | S26: 0
A27: G. PERF. EVAL./APPRAISAL | B27: 0 | C27: 1 | D27: 0 | E27: 0 | F27: 0 | G27: 0 | J27: 0 | K27: 0 | L27: 0 | M27: 0 | N27: 0 | O27: 0 | P27: 0 | Q27: 2 | R27: 1 | S27: 1
A28: H. EXAMINATION/TEST | B28: 0 | C28: 0 | D28: 0 | E28: 0 | F28: 0 | G28: 0 | J28: 0 | K28: 0 | L28: 0 | M28: 0 | N28: 0 | O28: 0 | P28: 0 | Q28: 0 | R28: 0 | S28: 0
A29: I. HARASSMENT | B29: =SUM(B30,B31) -> 0 | C29: =SUM(C30,C31) -> 0 | D29: =SUM(D30,D31) -> 0 | E29: =SUM(E30,E31) -> 0 | F29: =SUM(F30) -> 0 | G29: =SUM(G30) -> 0 | J29: =SUM(J30) -> 1 | K29: =SUM(K30) -> 0 | L29: =SUM(L30) -> 2 | M29: =SUM(M30) -> 0 | N29: =SUM(N30,N31) -> 0 | O29: 0 | P29: 0 | Q29: =SUM(Q30,Q31) -> 3 | R29: 3 | S29: 3
A30: 1. NON-SEXUAL | B30: 0 | C30: 0 | D30: 0 | E30: 0 | F30: 0 | G30: 0 | J30: 1 | K30: 0 | L30: 2 | M30: 0 | N30: 0 | O30: 0 | P30: 0 | Q30: 3 | R30: 3 | S30: 3
A31: 2. SEXUAL | B31: 0 | C31: 0 | D31: 0 | E31: 0 | N31: 0 | O31: 0 | P31: 0 | Q31: 0 | R31: 0 | S31: 0
A32: J. MEDICAL EXAMINATION | B32: 0 | C32: 0 | D32: 0 | E32: 0 | F32: 0 | G32: 0 | J32: 0 | K32: 0 | L32: 0 | M32: 0 | N32: 0 | O32: 0 | P32: 0 | Q32: 0 | R32: 0 | S32: 0
A33: K. PAY INCLUDING OVERTIME | B33: 0 | C33: 0 | D33: 0 | E33: 0 | F33: 0 | G33: 0 | H33: 0 | I33: 0 | J33: 0 | K33: 0 | L33: 0 | M33: 0 | N33: 0 | O33: 0 | P33: 0 | Q33: 0 | R33: 0 | S33: 0
A34: L. PROMOTION/NON-SELECTION | B34: 0 | C34: 0 | D34: 0 | E34: 0 | F34: 0 | G34: 0 | J34: 0 | K34: 0 | L34: 0 | M34: 0 | N34: 0 | O34: 0 | P34: 0 | Q34: 0 | R34: 0 | S34: 0
A35: M. REASSIGNMENT | B35: =SUM(B36:B37) -> 0 | C35: 0 | D35: 0 | E35: 0 | F35: 0 | G35: 0 | J35: =SUM(J36:J37) -> 0 | K35: =SUM(K36:K37) -> 0 | L35: =SUM(L36:L37) -> 0 | M35: =SUM(M36:M37) -> 0 | N35: =SUM(N36,N37) -> 0 | O35: 0 | P35: 0 | Q35: =SUM(Q36,Q37) -> 0 | R35: 0 | S35: 0
A36: 1. DENIED | B36: 0 | C36: 0 | D36: 0 | E36: 0 | F36: 0 | G36: 0 | J36: 0 | K36: 0 | L36: 0 | M36: 0 | N36: 0 | O36: 0 | P36: 0 | Q36: 0 | R36: 0 | S36: 0
A37: 2. DIRECTED | B37: 0 | C37: 0 | D37: 0 | E37: 0 | F37: 0 | G37: 0 | J37: 0 | K37: 0 | L37: 0 | M37: 0 | N37: 0 | O37: 0 | P37: 0 | Q37: 0 | R37: 0 | S37: 0
A38: N. REASONABLE ACCOMMODATION DISABILITY | E38: 0 | K38: 0 | L38: 2 | M38: 0 | N38: 0 | O38: 0 | P38: 0 | Q38: 3 | R38: 2 | S38: 2
A39: O. REINSTATEMENT | B39: 0 | C39: 0 | D39: 0 | E39: 0 | F39: 0 | G39: 0 | J39: 0 | K39: 0 | L39: 0 | M39: 0 | N39: 0 | O39: 0 | P39: 0 | Q39: 0 | R39: 0 | S39: 0
A40: P. RELIGIOUS ACCOMMODATION | N40: 0 | O40: 0 | P40: 0 | Q40: 0 | R40: 0 | S40: 0
A41: Q. RETIREMENT | B41: 0 | C41: 0 | D41: 0 | E41: 0 | F41: 0 | G41: 0 | J41: 0 | K41: 0 | L41: 0 | M41: 0 | N41: 0 | O41: 0 | P41: 0 | Q41: 0 | R41: 0 | S41: 0
A42: R. SEX-STEROTYPING | B42: 0 | C42: 0 | D42: 0 | N42: 0 | O42: 0 | P42: 0 | Q42: 0 | R42: 0 | S42: 0
A43: S. TELEWORK | B43: 0 | C43: 0 | D43: 0 | E43: 0 | F43: 0 | G43: 0 | J43: 0 | K43: 0 | L43: 0 | M43: 0 | N43: 0 | O43: 0 | P43: 0 | Q43: 0 | R43: 0 | S43: 0
A44: T. TERMINATION | B44: 0 | C44: 0 | D44: 0 | E44: 0 | F44: 0 | G44: 0 | J44: 0 | K44: 0 | L44: 0 | M44: 0 | N44: 0 | O44: 0 | P44: 0 | Q44: 0 | R44: 0 | S44: 0
A45: U. TERMS/CONDITIONS OF EMPLOYMENT | B45: 0 | C45: 0 | D45: 0 | E45: 0 | F45: 0 | G45: 0 | J45: 0 | K45: 0 | L45: 0 | M45: 0 | N45: 0 | O45: 0 | P45: 0 | Q45: 0 | R45: 0 | S45: 0
A46: V. TIME AND ATTENDANCE | B46: 0 | C46: 0 | D46: 0 | E46: 0 | F46: 0 | G46: 0 | J46: 1 | K46: 0 | L46: 0 | M46: 0 | N46: 0 | O46: 0 | P46: 0 | Q46: 1 | R46: 1 | S46: 1
A47: W. TRAINING | B47: 0 | C47: 0 | D47: 0 | E47: 0 | F47: 0 | G47: 0 | J47: 0 | K47: 0 | L47: 0 | M47: 0 | N47: 0 | O47: 0 | P47: 0 | Q47: 0 | R47: 0 | S47: 0
A48: X. OTHER (Please specify below) | B48: =SUM(B49:B52) -> 0 | C48: 0 | D48: 0 | E48: 0 | F48: 0 | G48: 0 | J48: =SUM(J49:J52) -> 0 | K48: =SUM(K49:K52) -> 0 | L48: =SUM(L49:L52) -> 0 | M48: =SUM(M49:M52) -> 0 | N48: =SUM(N49,N50,N51,N52) -> 0 | O48: 0 | P48: 0 | Q48: =SUM(Q49,Q50,Q51,Q52) -> 0 | R48: 0 | S48: 0
A49: ='PART IVC Part 1'!A49 -> 1. | B49: 0 | C49: 0 | D49: 0 | E49: 0 | F49: 0 | G49: 0 | J49: 0 | K49: 0 | L49: 0 | M49: 0 | N49: 0 | O49: 0 | P49: 0 | Q49: 0 | R49: 0 | S49: 0
A50: ='PART IVC Part 1'!A50 -> 2. | B50: 0 | C50: 0 | D50: 0 | E50: 0 | F50: 0 | G50: 0 | J50: 0 | K50: 0 | L50: 0 | M50: 0 | N50: 0 | O50: 0 | P50: 0 | Q50: 0 | R50: 0 | S50: 0
A51: ='PART IVC Part 1'!A51 -> 3. | B51: 0 | C51: 0 | D51: 0 | E51: 0 | F51: 0 | G51: 0 | J51: 0 | K51: 0 | L51: 0 | M51: 0 | N51: 0 | O51: 0 | P51: 0 | Q51: 0 | R51: 0 | S51: 0
A52: ='PART IVC Part 1'!A52 -> 4. | B52: 0 | C52: 0 | D52: 0 | E52: 0 | F52: 0 | G52: 0 | J52: 0 | K52: 0 | L52: 0 | M52: 0 | N52: 0 | O52: 0 | P52: 0 | Q52: 0 | R52: 0 | S52: 0
A53: 1. COUNSELING SETTLEMENT ALLEGATIONS | B53: 0 | C53: 0 | D53: 0 | E53: 0 | F53: 0 | G53: 0 | H53: 0 | I53: 0 | J53: 0 | K53: 0 | L53: 0 | M53: 0
A54: 1A. NUMBER OF COUNSELINGS SETTLED | B54: 0 | C54: 0 | D54: 0 | E54: 0 | F54: 0 | G54: 0 | H54: 0 | I54: 0 | J54: 0 | K54: 0 | L54: 0 | M54: 0
A55: 1B. NUMBER OF COUNSELEES SETTLED WITH | B55: 0 | C55: 0 | D55: 0 | E55: 0 | F55: 0 | G55: 0 | H55: 0 | I55: 0 | J55: 0 | K55: 0 | L55: 0 | M55: 0
A57: 2. COMPLAINT SETTLEMENT ALLEGATIONS | B57: 1 | C57: 2 | D57: 0 | E57: 0 | F57: 0 | G57: 0 | H57: 0 | I57: 0 | J57: 5 | K57: 0 | L57: 6 | M57: 0
A58: 2A. NUMBER OF COMPLAINTS SETTLED | B58: 1 | C58: 1 | D58: 0 | E58: 0 | F58: 0 | G58: 0 | H58: 0 | I58: 0 | J58: 3 | K58: 0 | L58: 3 | M58: 0
A59: 2B. NUMBER OF COMPLAINANTS SETTLED WITH | B59: 1 | C59: 1 | D59: 0 | E59: 0 | F59: 0 | G59: 0 | H59: 0 | I59: 0 | J59: 3 | K59: 0 | L59: 3 | M59: 0
A60: EEOC FORM 462 (REVISED SEPTEMBER 2016) | P60: page 3c

Sheet PART IVD Part 1
A1: ANNUAL FEDERAL EQUAL EMPLOYMENT OPPORTUNITY
A2: STATISTICAL REPORT OF DISCRIMINATION COMPLAINTS
A3: (REPORTING PERIOD BEGINS OCTOBER 1ST AND ENDS SEPTEMBER 30TH)
A4: ="AGENCY OR DEPARTMENT: " & Profile!D4 -> AGENCY OR DEPARTMENT: DD48 | O4: ="REPORTING PERIOD: FY" & Profile!D12 -> REPORTING PERIOD: FY2019
A5: PART IV D - BASES AND ISSUES FOUND IN FADs AND FINAL ORDERS (Part 1)
B8: BASES OF ALLEGED DISCRIMINATION FOUND IN FADs AND FINAL ORDERS
B9: RACE | H9: COLOR | I9: RELIGION | J9: REPRISAL | K9: NUMBER | L9: NUMBER | M9: NUMBER | N9: NUMBER | O9: NUMBER | P9: NUMBER FINAL | Q9: # FINAL ORDERS | R9: # COMPLAINANTS ISSUED
K10: FAD | L10: OF FADS | M10: COMPLAINANTS | N10: AJ DECISION | O10: AJ DECISIONS | P10: ORDER FINDINGS | Q10: W/ FINDINGS FULLY | R10: FINAL ORDERS W/ FINDINGS
A11: ISSUES OF ALLEGED DISCRIMINATION | B11: AMER. INDIAN/ | C11: ASIAN | D11: NATIVE HAWAIIAN | E11: BLACK/ AFRICAN AMERICAN | F11: WHITE | G11: TWO OR MORE | K11: FINDINGS | L11: WITH FINDINGS | M11: ISSUED FAD | N11: FINDINGS | O11: WITH FINDINGS | P11: FULLY IMPLEMENTED | Q11: IMPLEMENTED | R11: FULLY IMPLEMENTED
A12: FOUND IN FADs | B12: ALASKA | D12: /OTHER PACIFIC | G12: RACES | K12: BY ISSUE | L12: ISSUED | M12: FINDINGS BY ISSUE | N12: BY ISSUE | O12: BY ISSUE | P12: BY ISSUE | Q12: BY ISSUE | R12: BY ISSUE
A13: AND FINAL ORDERS | B13: NATIVE | D13: ISLANDER
A14: A. APPOINTMENT/HIRE | B14: 0 | C14: 0 | D14: 0 | E14: 0 | F14: 0 | G14: 0 | H14: 0 | I14: 0 | J14: 0 | K14: =SUM('PART IVD Part 2'!N14) -> 0 | L14: =SUM('PART IVD Part 2'!O14) -> 0 | M14: =SUM('PART IVD Part 2'!P14) -> 0 | N14: =SUM('PART IVD Part 2'!Q14) -> 0 | O14: =SUM('PART IVD Part 2'!R14) -> 0 | P14: =SUM('PART IVD Part 2'!S14) -> 0 | Q14: =SUM('PART IVD Part 2'!T14) -> 0 | R14: =SUM('PART IVD Part 2'!U14) -> 0
A15: B. ASSIGNMENT OF DUTIES | B15: 0 | C15: 0 | D15: 0 | E15: 0 | F15: 0 | G15: 0 | H15: 0 | I15: 0 | J15: 0 | K15: =SUM('PART IVD Part 2'!N15) -> 0 | L15: =SUM('PART IVD Part 2'!O15) -> 0 | M15: =SUM('PART IVD Part 2'!P15) -> 0 | N15: =SUM('PART IVD Part 2'!Q15) -> 0 | O15: =SUM('PART IVD Part 2'!R15) -> 0 | P15: =SUM('PART IVD Part 2'!S15) -> 0 | Q15: =SUM('PART IVD Part 2'!T15) -> 0 | R15: =SUM('PART IVD Part 2'!U15) -> 0
A16: C. AWARDS | B16: 0 | C16: 0 | D16: 0 | E16: 0 | F16: 0 | G16: 0 | H16: 0 | I16: 0 | J16: 0 | K16: =SUM('PART IVD Part 2'!N16) -> 0 | L16: =SUM('PART IVD Part 2'!O16) -> 0 | M16: =SUM('PART IVD Part 2'!P16) -> 0 | N16: =SUM('PART IVD Part 2'!Q16) -> 0 | O16: =SUM('PART IVD Part 2'!R16) -> 0 | P16: =SUM('PART IVD Part 2'!S16) -> 0 | Q16: =SUM('PART IVD Part 2'!T16) -> 0 | R16: =SUM('PART IVD Part 2'!U16) -> 0
A17: D. CONVERSION TO FULL TIME/PERM STATUS | B17: 0 | C17: 0 | D17: 0 | E17: 0 | F17: 0 | G17: 0 | H17: 0 | I17: 0 | J17: 0 | K17: =SUM('PART IVD Part 2'!N17) -> 0 | L17: =SUM('PART IVD Part 2'!O17) -> 0 | M17: =SUM('PART IVD Part 2'!P17) -> 0 | N17: =SUM('PART IVD Part 2'!Q17) -> 0 | O17: =SUM('PART IVD Part 2'!R17) -> 0 | P17: =SUM('PART IVD Part 2'!S17) -> 0 | Q17: =SUM('PART IVD Part 2'!T17) -> 0 | R17: =SUM('PART IVD Part 2'!U17) -> 0
A18: E. DISCIPLINARY ACTION | B18: =SUM(B19:B25) -> 0 | C18: 0 | D18: 0 | E18: 0 | F18: 0 | G18: 0 | H18: 0 | I18: 0 | J18: 0 | K18: =SUM('PART IVD Part 2'!N18) -> 0 | L18: =SUM('PART IVD Part 2'!O18) -> 0 | M18: =SUM('PART IVD Part 2'!P18) -> 0 | N18: =SUM('PART IVD Part 2'!Q18) -> 0 | O18: =SUM('PART IVD Part 2'!R18) -> 0 | P18: =SUM('PART IVD Part 2'!S18) -> 0 | Q18: =SUM('PART IVD Part 2'!T18) -> 0 | R18: =SUM('PART IVD Part 2'!U18) -> 0
A19: 1. DEMOTION | B19: 0 | C19: 0 | D19: 0 | E19: 0 | F19: 0 | G19: 0 | H19: 0 | I19: 0 | J19: 0 | K19: =SUM('PART IVD Part 2'!N19) -> 0 | L19: =SUM('PART IVD Part 2'!O19) -> 0 | M19: =SUM('PART IVD Part 2'!P19) -> 0 | N19: =SUM('PART IVD Part 2'!Q19) -> 0 | O19: =SUM('PART IVD Part 2'!R19) -> 0 | P19: =SUM('PART IVD Part 2'!S19) -> 0 | Q19: =SUM('PART IVD Part 2'!T19) -> 0 | R19: =SUM('PART IVD Part 2'!U19) -> 0
A20: 2. REPRIMAND | B20: 0 | C20: 0 | D20: 0 | E20: 0 | F20: 0 | G20: 0 | H20: 0 | I20: 0 | J20: 0 | K20: =SUM('PART IVD Part 2'!N20) -> 0 | L20: =SUM('PART IVD Part 2'!O20) -> 0 | M20: =SUM('PART IVD Part 2'!P20) -> 0 | N20: =SUM('PART IVD Part 2'!Q20) -> 0 | O20: =SUM('PART IVD Part 2'!R20) -> 0 | P20: =SUM('PART IVD Part 2'!S20) -> 0 | Q20: =SUM('PART IVD Part 2'!T20) -> 0 | R20: =SUM('PART IVD Part 2'!U20) -> 0
A21: 3. SUSPENSION | B21: 0 | C21: 0 | D21: 0 | E21: 0 | F21: 0 | G21: 0 | H21: 0 | I21: 0 | J21: 0 | K21: =SUM('PART IVD Part 2'!N21) -> 0 | L21: =SUM('PART IVD Part 2'!O21) -> 0 | M21: =SUM('PART IVD Part 2'!P21) -> 0 | N21: =SUM('PART IVD Part 2'!Q21) -> 0 | O21: =SUM('PART IVD Part 2'!R21) -> 0 | P21: =SUM('PART IVD Part 2'!S21) -> 0 | Q21: =SUM('PART IVD Part 2'!T21) -> 0 | R21: =SUM('PART IVD Part 2'!U21) -> 0
A22: 4. REMOVAL | B22: 0 | C22: 0 | D22: 0 | E22: 0 | F22: 0 | G22: 0 | H22: 0 | I22: 0 | J22: 0 | K22: =SUM('PART IVD Part 2'!N22) -> 0 | L22: =SUM('PART IVD Part 2'!O22) -> 0 | M22: =SUM('PART IVD Part 2'!P22) -> 0 | N22: =SUM('PART IVD Part 2'!Q22) -> 0 | O22: =SUM('PART IVD Part 2'!R22) -> 0 | P22: =SUM('PART IVD Part 2'!S22) -> 0 | Q22: =SUM('PART IVD Part 2'!T22) -> 0 | R22: =SUM('PART IVD Part 2'!U22) -> 0
A23: 5. DISCIPLINARY WARNING | B23: 0 | C23: 0 | D23: 0 | E23: 0 | F23: 0 | G23: 0 | H23: 0 | I23: 0 | J23: 0 | K23: =SUM('PART IVD Part 2'!N23) -> 0 | L23: =SUM('PART IVD Part 2'!O23) -> 0 | M23: =SUM('PART IVD Part 2'!P23) -> 0 | N23: =SUM('PART IVD Part 2'!Q23) -> 0 | O23: =SUM('PART IVD Part 2'!R23) -> 0 | P23: =SUM('PART IVD Part 2'!S23) -> 0 | Q23: =SUM('PART IVD Part 2'!T23) -> 0 | R23: =SUM('PART IVD Part 2'!U23) -> 0
A24: 6. | B24: 0 | C24: 0 | D24: 0 | E24: 0 | F24: 0 | G24: 0 | H24: 0 | I24: 0 | J24: 0 | K24: =SUM('PART IVD Part 2'!N24) -> 0 | L24: =SUM('PART IVD Part 2'!O24) -> 0 | M24: =SUM('PART IVD Part 2'!P24) -> 0 | N24: =SUM('PART IVD Part 2'!Q24) -> 0 | O24: =SUM('PART IVD Part 2'!R24) -> 0 | P24: =SUM('PART IVD Part 2'!S24) -> 0 | Q24: =SUM('PART IVD Part 2'!T24) -> 0 | R24: =SUM('PART IVD Part 2'!U24) -> 0
A25: 7. | B25: 0 | C25: 0 | D25: 0 | E25: 0 | F25: 0 | G25: 0 | H25: 0 | I25: 0 | J25: 0 | K25: =SUM('PART IVD Part 2'!N25) -> 0 | L25: =SUM('PART IVD Part 2'!O25) -> 0 | M25: =SUM('PART IVD Part 2'!P25) -> 0 | N25: =SUM('PART IVD Part 2'!Q25) -> 0 | O25: =SUM('PART IVD Part 2'!R25) -> 0 | P25: =SUM('PART IVD Part 2'!S25) -> 0 | Q25: =SUM('PART IVD Part 2'!T25) -> 0 | R25: =SUM('PART IVD Part 2'!U25) -> 0
A26: F. DUTY HOURS | B26: 0 | C26: 0 | D26: 0 | E26: 0 | F26: 0 | G26: 0 | H26: 0 | I26: 0 | J26: 0 | K26: =SUM('PART IVD Part 2'!N26) -> 0 | L26: =SUM('PART IVD Part 2'!O26) -> 0 | M26: =SUM('PART IVD Part 2'!P26) -> 0 | N26: =SUM('PART IVD Part 2'!Q26) -> 0 | O26: =SUM('PART IVD Part 2'!R26) -> 0 | P26: =SUM('PART IVD Part 2'!S26) -> 0 | Q26: =SUM('PART IVD Part 2'!T26) -> 0 | R26: =SUM('PART IVD Part 2'!U26) -> 0
A27: G. PERF. EVAL./APPRAISAL | B27: 0 | C27: 0 | D27: 0 | E27: 0 | F27: 0 | G27: 0 | H27: 0 | I27: 0 | J27: 0 | K27: =SUM('PART IVD Part 2'!N27) -> 0 | L27: =SUM('PART IVD Part 2'!O27) -> 0 | M27: =SUM('PART IVD Part 2'!P27) -> 0 | N27: =SUM('PART IVD Part 2'!Q27) -> 0 | O27: =SUM('PART IVD Part 2'!R27) -> 0 | P27: =SUM('PART IVD Part 2'!S27) -> 0 | Q27: =SUM('PART IVD Part 2'!T27) -> 0 | R27: =SUM('PART IVD Part 2'!U27) -> 0
A28: H. EXAMINATION/TEST | B28: 0 | C28: 0 | D28: 0 | E28: 0 | F28: 0 | G28: 0 | H28: 0 | I28: 0 | J28: 0 | K28: =SUM('PART IVD Part 2'!N28) -> 0 | L28: =SUM('PART IVD Part 2'!O28) -> 0 | M28: =SUM('PART IVD Part 2'!P28) -> 0 | N28: =SUM('PART IVD Part 2'!Q28) -> 0 | O28: =SUM('PART IVD Part 2'!R28) -> 0 | P28: =SUM('PART IVD Part 2'!S28) -> 0 | Q28: =SUM('PART IVD Part 2'!T28) -> 0 | R28: =SUM('PART IVD Part 2'!U28) -> 0
A29: I. HARASSMENT | B29: =SUM(B30) -> 0 | C29: =SUM(C30) -> 0 | D29: 0 | E29: 0 | F29: 0 | G29: 0 | H29: 0 | I29: 0 | J29: =SUM(J30:J31) -> 0 | K29: =SUM('PART IVD Part 2'!N29) -> 0 | L29: =SUM('PART IVD Part 2'!O29) -> 0 | M29: =SUM('PART IVD Part 2'!P29) -> 0 | N29: =SUM('PART IVD Part 2'!Q29) -> 0 | O29: =SUM('PART IVD Part 2'!R29) -> 0 | P29: =SUM('PART IVD Part 2'!S29) -> 0 | Q29: =SUM('PART IVD Part 2'!T29) -> 0 | R29: =SUM('PART IVD Part 2'!U29) -> 0
A30: 1. NON-SEXUAL | B30: 0 | C30: 0 | D30: 0 | E30: 0 | F30: 0 | G30: 0 | H30: 0 | I30: 0 | J30: 0 | K30: =SUM('PART IVD Part 2'!N30) -> 0 | L30: =SUM('PART IVD Part 2'!O30) -> 0 | M30: =SUM('PART IVD Part 2'!P30) -> 0 | N30: =SUM('PART IVD Part 2'!Q30) -> 0 | O30: =SUM('PART IVD Part 2'!R30) -> 0 | P30: =SUM('PART IVD Part 2'!S30) -> 0 | Q30: =SUM('PART IVD Part 2'!T30) -> 0 | R30: =SUM('PART IVD Part 2'!U30) -> 0
A31: 2. SEXUAL | J31: 0 | K31: =SUM('PART IVD Part 2'!N31) -> 0 | L31: =SUM('PART IVD Part 2'!O31) -> 0 | M31: =SUM('PART IVD Part 2'!P31) -> 0 | N31: =SUM('PART IVD Part 2'!Q31) -> 0 | O31: =SUM('PART IVD Part 2'!R31) -> 0 | P31: =SUM('PART IVD Part 2'!S31) -> 0 | Q31: =SUM('PART IVD Part 2'!T31) -> 0 | R31: =SUM('PART IVD Part 2'!U31) -> 0
A32: J. MEDICAL EXAMINATION | B32: 0 | C32: 0 | D32: 0 | E32: 0 | F32: 0 | G32: 0 | H32: 0 | I32: 0 | J32: 0 | K32: =SUM('PART IVD Part 2'!N32) -> 0 | L32: =SUM('PART IVD Part 2'!O32) -> 0 | M32: =SUM('PART IVD Part 2'!P32) -> 0 | N32: =SUM('PART IVD Part 2'!Q32) -> 0 | O32: =SUM('PART IVD Part 2'!R32) -> 0 | P32: =SUM('PART IVD Part 2'!S32) -> 0 | Q32: =SUM('PART IVD Part 2'!T32) -> 0 | R32: =SUM('PART IVD Part 2'!U32) -> 0
A33: K. PAY INCLUDING OVERTIME | B33: 0 | C33: 0 | D33: 0 | E33: 0 | F33: 0 | G33: 0 | H33: 0 | I33: 0 | J33: 0 | K33: =SUM('PART IVD Part 2'!N33) -> 0 | L33: =SUM('PART IVD Part 2'!O33) -> 0 | M33: =SUM('PART IVD Part 2'!P33) -> 0 | N33: =SUM('PART IVD Part 2'!Q33) -> 0 | O33: =SUM('PART IVD Part 2'!R33) -> 0 | P33: =SUM('PART IVD Part 2'!S33) -> 0 | Q33: =SUM('PART IVD Part 2'!T33) -> 0 | R33: =SUM('PART IVD Part 2'!U33) -> 0
A34: L. PROMOTION/NON-SELECTION | B34: 0 | C34: 0 | D34: 0 | E34: 0 | F34: 0 | G34: 0 | H34: 0 | I34: 0 | J34: 0 | K34: =SUM('PART IVD Part 2'!N34) -> 0 | L34: =SUM('PART IVD Part 2'!O34) -> 0 | M34: =SUM('PART IVD Part 2'!P34) -> 0 | N34: =SUM('PART IVD Part 2'!Q34) -> 0 | O34: =SUM('PART IVD Part 2'!R34) -> 0 | P34: =SUM('PART IVD Part 2'!S34) -> 0 | Q34: =SUM('PART IVD Part 2'!T34) -> 0 | R34: =SUM('PART IVD Part 2'!U34) -> 0
A35: M. REASSIGNMENT | B35: =SUM(B36,B37) -> 0 | C35: =SUM(C36,C37) -> 0 | D35: 0 | E35: 0 | F35: 0 | G35: 0 | H35: 0 | I35: 0 | J35: 0 | K35: =SUM('PART IVD Part 2'!N35) -> 0 | L35: =SUM('PART IVD Part 2'!O35) -> 0 | M35: =SUM('PART IVD Part 2'!P35) -> 0 | N35: =SUM('PART IVD Part 2'!Q35) -> 0 | O35: =SUM('PART IVD Part 2'!R35) -> 0 | P35: =SUM('PART IVD Part 2'!S35) -> 0 | Q35: =SUM('PART IVD Part 2'!T35) -> 0 | R35: =SUM('PART IVD Part 2'!U35) -> 0
A36: 1. DENIED | B36: 0 | C36: 0 | D36: 0 | E36: 0 | F36: 0 | G36: 0 | H36: 0 | I36: 0 | J36: 0 | K36: =SUM('PART IVD Part 2'!N36) -> 0 | L36: =SUM('PART IVD Part 2'!O36) -> 0 | M36: =SUM('PART IVD Part 2'!P36) -> 0 | N36: =SUM('PART IVD Part 2'!Q36) -> 0 | O36: =SUM('PART IVD Part 2'!R36) -> 0 | P36: =SUM('PART IVD Part 2'!S36) -> 0 | Q36: =SUM('PART IVD Part 2'!T36) -> 0 | R36: =SUM('PART IVD Part 2'!U36) -> 0
A37: 2. DIRECTED | B37: 0 | C37: 0 | D37: 0 | E37: 0 | F37: 0 | G37: 0 | H37: 0 | I37: 0 | J37: 0 | K37: =SUM('PART IVD Part 2'!N37) -> 0 | L37: =SUM('PART IVD Part 2'!O37) -> 0 | M37: =SUM('PART IVD Part 2'!P37) -> 0 | N37: =SUM('PART IVD Part 2'!Q37) -> 0 | O37: =SUM('PART IVD Part 2'!R37) -> 0 | P37: =SUM('PART IVD Part 2'!S37) -> 0 | Q37: =SUM('PART IVD Part 2'!T37) -> 0 | R37: =SUM('PART IVD Part 2'!U37) -> 0
A38: N. REASONABLE ACCOMMODATION DISABILITY | J38: 0 | K38: =SUM('PART IVD Part 2'!N38) -> 0 | L38: =SUM('PART IVD Part 2'!O38) -> 0 | M38: =SUM('PART IVD Part 2'!P38) -> 0 | N38: =SUM('PART IVD Part 2'!Q38) -> 0 | O38: =SUM('PART IVD Part 2'!R38) -> 0 | P38: =SUM('PART IVD Part 2'!S38) -> 0 | Q38: =SUM('PART IVD Part 2'!T38) -> 0 | R38: =SUM('PART IVD Part 2'!U38) -> 0
A39: O. REINSTATEMENT | B39: 0 | C39: 0 | D39: 0 | E39: 0 | F39: 0 | G39: 0 | H39: 0 | I39: 0 | J39: 0 | K39: =SUM('PART IVD Part 2'!N39) -> 0 | L39: =SUM('PART IVD Part 2'!O39) -> 0 | M39: =SUM('PART IVD Part 2'!P39) -> 0 | N39: =SUM('PART IVD Part 2'!Q39) -> 0 | O39: =SUM('PART IVD Part 2'!R39) -> 0 | P39: =SUM('PART IVD Part 2'!S39) -> 0 | Q39: =SUM('PART IVD Part 2'!T39) -> 0 | R39: =SUM('PART IVD Part 2'!U39) -> 0
A40: P. RELIGIOUS ACCOMMODATION | I40: 0 | J40: 0 | K40: =SUM('PART IVD Part 2'!N40) -> 0 | L40: =SUM('PART IVD Part 2'!O40) -> 0 | M40: =SUM('PART IVD Part 2'!P40) -> 0 | N40: =SUM('PART IVD Part 2'!Q40) -> 0 | O40: =SUM('PART IVD Part 2'!R40) -> 0 | P40: =SUM('PART IVD Part 2'!S40) -> 0 | Q40: =SUM('PART IVD Part 2'!T40) -> 0 | R40: =SUM('PART IVD Part 2'!U40) -> 0
A41: Q. RETIREMENT | B41: 0 | C41: 0 | D41: 0 | E41: 0 | F41: 0 | G41: 0 | H41: 0 | I41: 0 | J41: 0 | K41: =SUM('PART IVD Part 2'!N41) -> 0 | L41: =SUM('PART IVD Part 2'!O41) -> 0 | M41: =SUM('PART IVD Part 2'!P41) -> 0 | N41: =SUM('PART IVD Part 2'!Q41) -> 0 | O41: =SUM('PART IVD Part 2'!R41) -> 0 | P41: =SUM('PART IVD Part 2'!S41) -> 0 | Q41: =SUM('PART IVD Part 2'!T41) -> 0 | R41: =SUM('PART IVD Part 2'!U41) -> 0
A42: R. SEX-STEROTYPING | K42: =SUM('PART IVD Part 2'!N42) -> 0 | L42: =SUM('PART IVD Part 2'!O42) -> 0 | M42: =SUM('PART IVD Part 2'!P42) -> 0 | N42: =SUM('PART IVD Part 2'!Q42) -> 0 | O42: =SUM('PART IVD Part 2'!R42) -> 0 | P42: =SUM('PART IVD Part 2'!S42) -> 0 | Q42: =SUM('PART IVD Part 2'!T42) -> 0 | R42: =SUM('PART IVD Part 2'!U42) -> 0
A43: S. TELEWORK | B43: 0 | C43: 0 | D43: 0 | E43: 0 | F43: 0 | G43: 0 | H43: 0 | I43: 0 | J43: 0 | K43: =SUM('PART IVD Part 2'!N43) -> 0 | L43: =SUM('PART IVD Part 2'!O43) -> 0 | M43: =SUM('PART IVD Part 2'!P43) -> 0 | N43: =SUM('PART IVD Part 2'!Q43) -> 0 | O43: =SUM('PART IVD Part 2'!R43) -> 0 | P43: =SUM('PART IVD Part 2'!S43) -> 0 | Q43: =SUM('PART IVD Part 2'!T43) -> 0 | R43: =SUM('PART IVD Part 2'!U43) -> 0
A44: T. TERMINATION | B44: 0 | C44: 0 | D44: 0 | E44: 0 | F44: 0 | G44: 0 | H44: 0 | I44: 0 | J44: 0 | K44: =SUM('PART IVD Part 2'!N44) -> 0 | L44: =SUM('PART IVD Part 2'!O44) -> 0 | M44: =SUM('PART IVD Part 2'!P44) -> 0 | N44: =SUM('PART IVD Part 2'!Q44) -> 0 | O44: =SUM('PART IVD Part 2'!R44) -> 0 | P44: =SUM('PART IVD Part 2'!S44) -> 0 | Q44: =SUM('PART IVD Part 2'!T44) -> 0 | R44: =SUM('PART IVD Part 2'!U44) -> 0
A45: U. TERMS/CONDITIONS OF EMPLOYMENT | B45: 0 | C45: 0 | D45: 0 | E45: 0 | F45: 0 | G45: 0 | H45: 0 | I45: 0 | J45: 0 | K45: =SUM('PART IVD Part 2'!N45) -> 0 | L45: =SUM('PART IVD Part 2'!O45) -> 0 | M45: =SUM('PART IVD Part 2'!P45) -> 0 | N45: =SUM('PART IVD Part 2'!Q45) -> 0 | O45: =SUM('PART IVD Part 2'!R45) -> 0 | P45: =SUM('PART IVD Part 2'!S45) -> 0 | Q45: =SUM('PART IVD Part 2'!T45) -> 0 | R45: =SUM('PART IVD Part 2'!U45) -> 0
A46: V. TIME AND ATTENDANCE | B46: 0 | C46: 0 | D46: 0 | E46: 0 | F46: 0 | G46: 0 | H46: 0 | I46: 0 | J46: 0 | K46: =SUM('PART IVD Part 2'!N46) -> 0 | L46: =SUM('PART IVD Part 2'!O46) -> 0 | M46: =SUM('PART IVD Part 2'!P46) -> 0 | N46: =SUM('PART IVD Part 2'!Q46) -> 0 | O46: =SUM('PART IVD Part 2'!R46) -> 0 | P46: =SUM('PART IVD Part 2'!S46) -> 0 | Q46: =SUM('PART IVD Part 2'!T46) -> 0 | R46: =SUM('PART IVD Part 2'!U46) -> 0
A47: W. TRAINING | B47: 0 | C47: 0 | D47: 0 | E47: 0 | F47: 0 | G47: 0 | H47: 0 | I47: 0 | J47: 0 | K47: =SUM('PART IVD Part 2'!N47) -> 0 | L47: =SUM('PART IVD Part 2'!O47) -> 0 | M47: =SUM('PART IVD Part 2'!P47) -> 0 | N47: =SUM('PART IVD Part 2'!Q47) -> 0 | O47: =SUM('PART IVD Part 2'!R47) -> 0 | P47: =SUM('PART IVD Part 2'!S47) -> 0 | Q47: =SUM('PART IVD Part 2'!T47) -> 0 | R47: =SUM('PART IVD Part 2'!U47) -> 0
A48: X. OTHER (Please specify below) | B48: =SUM(B49:B52) -> 0 | C48: 0 | D48: 0 | E48: 0 | F48: 0 | G48: 0 | H48: 0 | I48: 0 | J48: 0 | K48: =SUM('PART IVD Part 2'!N48) -> 0 | L48: =SUM('PART IVD Part 2'!O48) -> 0 | M48: =SUM('PART IVD Part 2'!P48) -> 0 | N48: =SUM('PART IVD Part 2'!Q48) -> 0 | O48: =SUM('PART IVD Part 2'!R48) -> 0 | P48: =SUM('PART IVD Part 2'!S48) -> 0 | Q48: =SUM('PART IVD Part 2'!T48) -> 0 | R48: =SUM('PART IVD Part 2'!U48) -> 0
A49: 1. | B49: 0 | C49: 0 | D49: 0 | E49: 0 | F49: 0 | G49: 0 | H49: 0 | I49: 0 | J49: 0 | K49: =SUM('PART IVD Part 2'!N49) -> 0 | L49: =SUM('PART IVD Part 2'!O49) -> 0 | M49: =SUM('PART IVD Part 2'!P49) -> 0 | N49: =SUM('PART IVD Part 2'!Q49) -> 0 | O49: =SUM('PART IVD Part 2'!R49) -> 0 | P49: =SUM('PART IVD Part 2'!S49) -> 0 | Q49: =SUM('PART IVD Part 2'!T49) -> 0 | R49: =SUM('PART IVD Part 2'!U49) -> 0
A50: 2. | B50: 0 | C50: 0 | D50: 0 | E50: 0 | F50: 0 | G50: 0 | H50: 0 | I50: 0 | J50: 0 | K50: =SUM('PART IVD Part 2'!N50) -> 0 | L50: =SUM('PART IVD Part 2'!O50) -> 0 | M50: =SUM('PART IVD Part 2'!P50) -> 0 | N50: =SUM('PART IVD Part 2'!Q50) -> 0 | O50: =SUM('PART IVD Part 2'!R50) -> 0 | P50: =SUM('PART IVD Part 2'!S50) -> 0 | Q50: =SUM('PART IVD Part 2'!T50) -> 0 | R50: =SUM('PART IVD Part 2'!U50) -> 0
A51: 3. | B51: 0 | C51: 0 | D51: 0 | E51: 0 | F51: 0 | G51: 0 | H51: 0 | I51: 0 | J51: 0 | K51: =SUM('PART IVD Part 2'!N51) -> 0 | L51: =SUM('PART IVD Part 2'!O51) -> 0 | M51: =SUM('PART IVD Part 2'!P51) -> 0 | N51: =SUM('PART IVD Part 2'!Q51) -> 0 | O51: =SUM('PART IVD Part 2'!R51) -> 0 | P51: =SUM('PART IVD Part 2'!S51) -> 0 | Q51: =SUM('PART IVD Part 2'!T51) -> 0 | R51: =SUM('PART IVD Part 2'!U51) -> 0
A52: 4. | B52: 0 | C52: 0 | D52: 0 | E52: 0 | F52: 0 | G52: 0 | H52: 0 | I52: 0 | J52: 0 | K52: =SUM('PART IVD Part 2'!N52) -> 0 | L52: =SUM('PART IVD Part 2'!O52) -> 0 | M52: =SUM('PART IVD Part 2'!P52) -> 0 | N52: =SUM('PART IVD Part 2'!Q52) -> 0 | O52: =SUM('PART IVD Part 2'!R52) -> 0 | P52: =SUM('PART IVD Part 2'!S52) -> 0 | Q52: =SUM('PART IVD Part 2'!T52) -> 0 | R52: =SUM('PART IVD Part 2'!U52) -> 0
A53: 1. FINAL AGENCY DECISION FINDINGS | B53: 0 | C53: 0 | D53: 0 | E53: 0 | F53: 0 | G53: 0 | H53: 0 | I53: 0 | J53: 0
A54: 1A. NUMBER OF FADs WITH FINDINGS | B54: 0 | C54: 0 | D54: 0 | E54: 0 | F54: 0 | G54: 0 | H54: 0 | I54: 0 | J54: 0
A55: 1B. NUMBER OF COMPLAINANTS ISSUED FAD FINDINGS | B55: 0 | C55: 0 | D55: 0 | E55: 0 | F55: 0 | G55: 0 | H55: 0 | I55: 0 | J55: 0
A57: 2. AJ DECISION FINDINGS | B57: 0 | C57: 0 | D57: 0 | E57: 0 | F57: 0 | G57: 0 | H57: 0 | I57: 0 | J57: 0
A58: 2A. NUMBER AJ DECISIONS WITH FINDINGS | B58: 0 | C58: 0 | D58: 0 | E58: 0 | F58: 0 | G58: 0 | H58: 0 | I58: 0 | J58: 0
A60: 3. FINAL AGENCY ORDER FINDINGS FULLY IMPLEMENTED | B60: 0 | C60: 0 | D60: 0 | E60: 0 | F60: 0 | G60: 0 | H60: 0 | I60: 0 | J60: 0
A61: 3A. # OF FINAL ORDERS (FOs) WITH FINDINGS IMPLEMENTED | B61: 0 | C61: 0 | D61: 0 | E61: 0 | F61: 0 | G61: 0 | H61: 0 | I61: 0 | J61: 0
A62: 3B. # COMPLAINANTS ISSUED FOs WITH FINDINGS IMPLEMENTED | B62: 0 | C62: 0 | D62: 0 | E62: 0 | F62: 0 | G62: 0 | H62: 0 | I62: 0 | J62: 0
A63: EEOC FORM 462 (ADDED SEPTEMBER 2016) | M63: page 3a

Sheet PART IVD Part 2
A1: ANNUAL FEDERAL EQUAL EMPLOYMENT OPPORTUNITY
A2: STATISTICAL REPORT OF DISCRIMINATION COMPLAINTS
A3: (REPORTING PERIOD BEGINS OCTOBER 1ST AND ENDS SEPTEMBER 30TH)
A4: ="AGENCY OR DEPARTMENT: " & Profile!D4 -> AGENCY OR DEPARTMENT: DD48 | T4: ="REPORTING PERIOD: FY" & Profile!D12 -> REPORTING PERIOD: FY2019
A5: PART IV D - BASES AND ISSUES FOUND IN FADs AND FINAL ORDERS (Part 2)
B8: BASES OF ALLEGED DISCRIMINATION FOUND IN FADs AND FINAL ORDERS
B9: SEX | E9: PREGNANCY | F9: NATIONAL ORIGIN | H9: EQUAL | J9: AGE | K9: DISABILITY | M9: GINA | N9: NUMBER | O9: NUMBER OF FADs | P9: NUMBER | Q9: NUMBER | R9: NUMBER | S9: NUMBER | T9: # FINAL ORDERS | U9: # COMPLAINANTS ISSUED
E10: DISCRIMINATION ACT | H10: PAY ACT | N10: FAD | O10: WITH | P10: COMPLAINANTS ISSUED | Q10: AJ DECISION | R10: AJ DECISIONS | S10: FINAL ORDER | T10: W/ FINDINGS FULLY | U10: FINAL ORDERS W/ FINDINGS
A11: ISSUES OF ALLEGED DISCRIMINATION | B11: MALE | C11: FEMALE | D11: LGBT | F11: HISPANIC/ | G11: OTHER | H11: MALE | I11: FEMALE | K11: MENTAL | L11: PHYSICAL | N11: FINDINGS | O11: FINDINGS | P11: FAD FINDINGS | Q11: FINDINGS | R11: WITH FINDINGS | S11: FINDINGS FULLY | T11: IMPLEMENTED | U11: FULLY IMPLEMENTED
A12: FOUND IN FADs | F12: LATINO | N12: BY ISSUE | O12: ISSUED | P12: BY ISSUE | Q12: BY ISSUE | R12: BY ISSUE | S12: IMPLEMENTED BY ISSUE | T12: BY ISSUE | U12: BY ISSUE
A13: AND FINAL ORDERS
A14: A. APPOINTMENT/HIRE | B14: 0 | C14: 0 | D14: 0 | E14: 0 | F14: 0 | G14: 0 | J14: 0 | K14: 0 | L14: 0 | M14: 0 | N14: 0 | O14: 0 | P14: 0 | Q14: 0 | R14: 0 | S14: 0 | T14: 0 | U14: 0
A15: B. ASSIGNMENT OF DUTIES | B15: 0 | C15: 0 | D15: 0 | E15: 0 | F15: 0 | G15: 0 | J15: 0 | K15: 0 | L15: 0 | M15: 0 | N15: 0 | O15: 0 | P15: 0 | Q15: 0 | R15: 0 | S15: 0 | T15: 0 | U15: 0
A16: C. AWARDS | B16: 0 | C16: 0 | D16: 0 | E16: 0 | F16: 0 | G16: 0 | J16: 0 | K16: 0 | L16: 0 | M16: 0 | N16: 0 | O16: 0 | P16: 0 | Q16: 0 | R16: 0 | S16: 0 | T16: 0 | U16: 0
A17: D. CONVERSION TO FULL TIME/PERM STATUS | B17: 0 | C17: 0 | D17: 0 | E17: 0 | F17: 0 | G17: 0 | J17: 0 | K17: 0 | L17: 0 | M17: 0 | N17: 0 | O17: 0 | P17: 0 | Q17: 0 | R17: 0 | S17: 0 | T17: 0 | U17: 0
A18: E. DISCIPLINARY ACTION | B18: =SUM(B19:B25) -> 0 | C18: 0 | D18: 0 | E18: 0 | F18: 0 | G18: 0 | J18: =SUM(J19:J25) -> 1 | K18: =SUM(K19:K25) -> 4 | L18: =SUM(L19:L25) -> 3 | M18: =SUM(M19:M25) -> 0 | N18: =SUM(N19,N20,N21,N22,N23,N24,N25) -> 0 | O18: 0 | P18: 0 | Q18: =SUM(Q19,Q20,Q21,Q22,Q23,Q24,Q25) -> 0 | R18: 0 | S18: =SUM(S19,S20,S21,S22,S23,S24,S25) -> 0 | T18: 0 | U18: 0
A19: 1. DEMOTION | B19: 0 | C19: 0 | D19: 0 | E19: 0 | F19: 0 | G19: 0 | J19: 0 | K19: 0 | L19: 0 | M19: 0 | N19: 0 | O19: 0 | P19: 0 | Q19: 0 | R19: 0 | S19: 0 | T19: 0 | U19: 0
A20: 2. REPRIMAND | B20: 0 | C20: 0 | D20: 0 | E20: 0 | F20: 0 | G20: 0 | J20: 0 | K20: 0 | L20: 0 | M20: 0 | N20: 0 | O20: 0 | P20: 0 | Q20: 0 | R20: 0 | S20: 0 | T20: 0 | U20: 0
A21: 3. SUSPENSION | B21: 0 | C21: 0 | D21: 0 | E21: 0 | F21: 0 | G21: 0 | J21: 0 | K21: 0 | L21: 0 | M21: 0 | N21: 0 | O21: 0 | P21: 0 | Q21: 0 | R21: 0 | S21: 0 | T21: 0 | U21: 0
A22: 4. REMOVAL | B22: 0 | C22: 0 | D22: 0 | E22: 0 | F22: 0 | G22: 0 | J22: 1 | K22: 4 | L22: 3 | M22: 0 | N22: 0 | O22: 0 | P22: 0 | Q22: 0 | R22: 0 | S22: 0 | T22: 0 | U22: 0
A23: 5. DISCIPLINARY WARNING | B23: 0 | C23: 0 | D23: 0 | E23: 0 | F23: 0 | G23: 0 | J23: 0 | K23: 0 | L23: 0 | M23: 0 | N23: 0 | O23: 0 | P23: 0 | Q23: 0 | R23: 0 | S23: 0 | T23: 0 | U23: 0
A24: ='PART IVD Part 1'!A24 -> 6. | B24: 0 | C24: 0 | D24: 0 | E24: 0 | F24: 0 | G24: 0 | J24: 0 | K24: 0 | L24: 0 | M24: 0 | N24: 0 | O24: 0 | P24: 0 | Q24: 0 | R24: 0 | S24: 0 | T24: 0 | U24: 0
A25: ='PART IVD Part 1'!A25 -> 7. | B25: 0 | C25: 0 | D25: 0 | E25: 0 | F25: 0 | G25: 0 | J25: 0 | K25: 0 | L25: 0 | M25: 0 | N25: 0 | O25: 0 | P25: 0 | Q25: 0 | R25: 0 | S25: 0 | T25: 0 | U25: 0
A26: F. DUTY HOURS | B26: 0 | C26: 0 | D26: 0 | E26: 0 | F26: 0 | G26: 0 | J26: 0 | K26: 0 | L26: 0 | M26: 0 | N26: 0 | O26: 0 | P26: 0 | Q26: 0 | R26: 0 | S26: 0 | T26: 0 | U26: 0
A27: G. PERF. EVAL./APPRAISAL | B27: 0 | C27: 0 | D27: 0 | E27: 0 | F27: 0 | G27: 0 | J27: 0 | K27: 0 | L27: 0 | M27: 0 | N27: 0 | O27: 0 | P27: 0 | Q27: 0 | R27: 0 | S27: 0 | T27: 0 | U27: 0
A28: H. EXAMINATION/TEST | B28: 0 | C28: 0 | D28: 0 | E28: 0 | F28: 0 | G28: 0 | J28: 0 | K28: 0 | L28: 0 | M28: 0 | N28: 0 | O28: 0 | P28: 0 | Q28: 0 | R28: 0 | S28: 0 | T28: 0 | U28: 0
A29: I. HARASSMENT | B29: =SUM(B30,B31) -> 0 | C29: =SUM(C30,C31) -> 0 | D29: =SUM(D30,D31) -> 0 | E29: =SUM(E30,E31) -> 0 | F29: =SUM(F30) -> 0 | G29: =SUM(G30) -> 0 | J29: =SUM(J30) -> 0 | K29: =SUM(K30) -> 0 | L29: =SUM(L30) -> 0 | M29: =SUM(M30) -> 0 | N29: =SUM(N30,N31) -> 0 | O29: 0 | P29: 0 | Q29: =SUM(Q30,Q31) -> 0 | R29: 0 | S29: =SUM(S30,S31) -> 0 | T29: 0 | U29: 0
A30: 1. NON-SEXUAL | B30: 0 | C30: 0 | D30: 0 | E30: 0 | F30: 0 | G30: 0 | J30: 0 | K30: 0 | L30: 0 | M30: 0 | N30: 0 | O30: 0 | P30: 0 | Q30: 0 | R30: 0 | S30: 0 | T30: 0 | U30: 0
A31: 2. SEXUAL | B31: 0 | C31: 0 | D31: 0 | E31: 0 | N31: 0 | O31: 0 | P31: 0 | Q31: 0 | R31: 0 | S31: 0 | T31: 0 | U31: 0
A32: J. MEDICAL EXAMINATION | B32: 0 | C32: 0 | D32: 0 | E32: 0 | F32: 0 | G32: 0 | J32: 0 | K32: 0 | L32: 0 | M32: 0 | N32: 0 | O32: 0 | P32: 0 | Q32: 0 | R32: 0 | S32: 0 | T32: 0 | U32: 0
A33: K. PAY INCLUDING OVERTIME | B33: 0 | C33: 0 | D33: 0 | E33: 0 | F33: 0 | G33: 0 | H33: 0 | I33: 0 | J33: 0 | K33: 0 | L33: 0 | M33: 0 | N33: 0 | O33: 0 | P33: 0 | Q33: 0 | R33: 0 | S33: 0 | T33: 0 | U33: 0
A34: L. PROMOTION/NON-SELECTION | B34: 0 | C34: 0 | D34: 0 | E34: 0 | F34: 0 | G34: 0 | J34: 0 | K34: 0 | L34: 0 | M34: 0 | N34: 0 | O34: 0 | P34: 0 | Q34: 0 | R34: 0 | S34: 0 | T34: 0 | U34: 0
A35: M. REASSIGNMENT | B35: =SUM(B36:B37) -> 0 | C35: 0 | D35: 0 | E35: 0 | F35: 0 | G35: 0 | J35: =SUM(J36:J37) -> 0 | K35: =SUM(K36:K37) -> 0 | L35: =SUM(L36:L37) -> 0 | M35: =SUM(M36:M37) -> 0 | N35: =SUM(N36,N37) -> 0 | O35: 0 | P35: 0 | Q35: =SUM(Q36,Q37) -> 0 | R35: 0 | S35: =SUM(S36,S37) -> 0 | T35: 0 | U35: 0
A36: 1. DENIED | B36: 0 | C36: 0 | D36: 0 | E36: 0 | F36: 0 | G36: 0 | J36: 0 | K36: 0 | L36: 0 | M36: 0 | N36: 0 | O36: 0 | P36: 0 | Q36: 0 | R36: 0 | S36: 0 | T36: 0 | U36: 0
A37: 2. DIRECTED | B37: 0 | C37: 0 | D37: 0 | E37: 0 | F37: 0 | G37: 0 | J37: 0 | K37: 0 | L37: 0 | M37: 0 | N37: 0 | O37: 0 | P37: 0 | Q37: 0 | R37: 0 | S37: 0 | T37: 0 | U37: 0
A38: N. REASONABLE ACCOMMODATION DISABILITY | E38: 0 | K38: 0 | L38: 0 | M38: 0 | N38: 0 | O38: 0 | P38: 0 | Q38: 0 | R38: 0 | S38: 0 | T38: 0 | U38: 0
A39: O. REINSTATEMENT | B39: 0 | C39: 0 | D39: 0 | E39: 0 | F39: 0 | G39: 0 | J39: 0 | K39: 0 | L39: 0 | M39: 0 | N39: 0 | O39: 0 | P39: 0 | Q39: 0 | R39: 0 | S39: 0 | T39: 0 | U39: 0
A40: P. RELIGIOUS ACCOMMODATION | N40: 0 | O40: 0 | P40: 0 | Q40: 0 | R40: 0 | S40: 0 | T40: 0 | U40: 0
A41: Q. RETIREMENT | B41: 0 | C41: 0 | D41: 0 | E41: 0 | F41: 0 | G41: 0 | J41: 0 | K41: 0 | L41: 0 | M41: 0 | N41: 0 | O41: 0 | P41: 0 | Q41: 0 | R41: 0 | S41: 0 | T41: 0 | U41: 0
A42: R. SEX-STEROTYPING | B42: 0 | C42: 0 | D42: 0 | N42: 0 | O42: 0 | P42: 0 | Q42: 0 | R42: 0 | S42: 0 | T42: 0 | U42: 0
A43: S. TELEWORK | B43: 0 | C43: 0 | D43: 0 | E43: 0 | F43: 0 | G43: 0 | J43: 0 | K43: 0 | L43: 0 | M43: 0 | N43: 0 | O43: 0 | P43: 0 | Q43: 0 | R43: 0 | S43: 0 | T43: 0 | U43: 0
A44: T. TERMINATION | B44: 0 | C44: 0 | D44: 0 | E44: 0 | F44: 0 | G44: 0 | J44: 0 | K44: 0 | L44: 0 | M44: 0 | N44: 0 | O44: 0 | P44: 0 | Q44: 0 | R44: 0 | S44: 0 | T44: 0 | U44: 0
A45: U. TERMS/CONDITIONS OF EMPLOYMENT | B45: 0 | C45: 0 | D45: 0 | E45: 0 | F45: 0 | G45: 0 | J45: 0 | K45: 0 | L45: 0 | M45: 0 | N45: 0 | O45: 0 | P45: 0 | Q45: 0 | R45: 0 | S45: 0 | T45: 0 | U45: 0
A46: V. TIME AND ATTENDANCE | B46: 0 | C46: 0 | D46: 0 | E46: 0 | F46: 0 | G46: 0 | J46: 0 | K46: 0 | L46: 0 | M46: 0 | N46: 0 | O46: 0 | P46: 0 | Q46: 0 | R46: 0 | S46: 0 | T46: 0 | U46: 0
A47: W. TRAINING | B47: 0 | C47: 0 | D47: 0 | E47: 0 | F47: 0 | G47: 0 | J47: 0 | K47: 0 | L47: 0 | M47: 0 | N47: 0 | O47: 0 | P47: 0 | Q47: 0 | R47: 0 | S47: 0 | T47: 0 | U47: 0
A48: X. OTHER (Please specify below) | B48: =SUM(B49:B52) -> 0 | C48: 0 | D48: 0 | E48: 0 | F48: 0 | G48: 0 | J48: =SUM(J49:J52) -> 0 | K48: =SUM(K49:K52) -> 0 | L48: =SUM(L49:L52) -> 0 | M48: =SUM(M49:M52) -> 0 | N48: =SUM(N49,N50,N51,N52) -> 0 | O48: 0 | P48: 0 | Q48: =SUM(Q49,Q50,Q51,Q52) -> 0 | R48: 0 | S48: =SUM(S49,S50,S51,S52) -> 0 | T48: 0 | U48: 0
A49: ='PART IVD Part 1'!A49 -> 1. | B49: 0 | C49: 0 | D49: 0 | E49: 0 | F49: 0 | G49: 0 | J49: 0 | K49: 0 | L49: 0 | M49: 0 | N49: 0 | O49: 0 | P49: 0 | Q49: 0 | R49: 0 | S49: 0 | T49: 0 | U49: 0
A50: ='PART IVD Part 1'!A50 -> 2. | B50: 0 | C50: 0 | D50: 0 | E50: 0 | F50: 0 | G50: 0 | J50: 0 | K50: 0 | L50: 0 | M50: 0 | N50: 0 | O50: 0 | P50: 0 | Q50: 0 | R50: 0 | S50: 0 | T50: 0 | U50: 0
A51: ='PART IVD Part 1'!A51 -> 3. | B51: 0 | C51: 0 | D51: 0 | E51: 0 | F51: 0 | G51: 0 | J51: 0 | K51: 0 | L51: 0 | M51: 0 | N51: 0 | O51: 0 | P51: 0 | Q51: 0 | R51: 0 | S51: 0 | T51: 0 | U51: 0
A52: ='PART IVD Part 1'!A52 -> 4. | B52: 0 | C52: 0 | D52: 0 | E52: 0 | F52: 0 | G52: 0 | J52: 0 | K52: 0 | L52: 0 | M52: 0 | N52: 0 | O52: 0 | P52: 0 | Q52: 0 | R52: 0 | S52: 0 | T52: 0 | U52: 0
A53: 1. FINAL AGENCY DECISION FINDINGS | B53: 0 | C53: 0 | D53: 0 | E53: 0 | F53: 0 | G53: 0 | H53: 0 | I53: 0 | J53: 0 | K53: 0 | L53: 0 | M53: 0
A54: 1A. NUMBER OF FADs WITH FINDINGS | B54: 0 | C54: 0 | D54: 0 | E54: 0 | F54: 0 | G54: 0 | H54: 0 | I54: 0 | J54: 0 | K54: 0 | L54: 0 | M54: 0
A55: 1B. NUMBER OF COMPLAINANTS ISSUED FAD FINDINGS | B55: 0 | C55: 0 | D55: 0 | E55: 0 | F55: 0 | G55: 0 | H55: 0 | I55: 0 | J55: 0 | K55: 0 | L55: 0 | M55: 0
A57: 2. AJ DECISION FINDINGS | B57: 0 | C57: 0 | D57: 0 | E57: 0 | F57: 0 | G57: 0 | H57: 0 | I57: 0 | J57: 0 | K57: 0 | L57: 0 | M57: 0
A58: 2A. NUMBER AJ DECISIONS WITH FINDINGS | B58: 0 | C58: 0 | D58: 0 | E58: 0 | F58: 0 | G58: 0 | H58: 0 | I58: 0 | J58: 0 | K58: 0 | L58: 0 | M58: 0
A60: 3. FINAL AGENCY ORDER FINDINGS FULLY IMPLEMENTED | B60: 0 | C60: 0 | D60: 0 | E60: 0 | F60: 0 | G60: 0 | H60: 0 | I60: 0 | J60: 0 | K60: 0 | L60: 0 | M60: 0
A61: 3A. # OF FINAL ORDERS (FOs) WITH FINDINGS IMPLEMENTED | B61: 0 | C61: 0 | D61: 0 | E61: 0 | F61: 0 | G61: 0 | H61: 0 | I61: 0 | J61: 0 | K61: 0 | L61: 0 | M61: 0
A62: 3B. # COMPLAINANTS ISSUED FOs WITH FINDINGS IMPLEMENTED | B62: 0 | C62: 0 | D62: 0 | E62: 0 | F62: 0 | G62: 0 | H62: 0 | I62: 0 | J62: 0 | K62: 0 | L62: 0 | M62: 0
A63: EEOC FORM 462 (REVISED SEPTEMBER 2016) | P63: page 3c

Sheet PARTS V AND VI
A1: ANNUAL FEDERAL EQUAL EMPLOYMENT OPPORTUNITY
A2: STATISTICAL REPORT OF DISCRIMINATION COMPLAINTS
A3: (REPORTING PERIOD BEGINS OCTOBER 1ST AND ENDS SEPTEMBER 30TH)
A4: ="AGENCY OR DEPARTMENT: " & Profile!D4 -> AGENCY OR DEPARTMENT: DD48 | K4: ="REPORTING PERIOD: FY" & Profile!D12 -> REPORTING PERIOD: FY2019
A6: PART V - SUMMARY OF CLOSURES BY STATUTE
A8: A. STATUTE | C8: (IF A SINGLE COMPLAINT HAS MULTIPLE STATUTES RECORD EACH ON THE APPROPRIATE LINE.)
A9: 7 | B9: 1. | C9: TITLE VII
A10: 0 | B10: 1a. | C10: PREGNANCY DISCRIMINATION ACT (PDA)
A11: 5 | B11: 2. | C11: AGE DISRIMINATION IN EMPLOYMENT ACT (ADEA)
A12: 5 | B12: 3. | C12: REHABILITATION ACT
A13: 0 | B13: 4. | C13: EQUAL PAY ACT (EPA)
A14: 0 | B14: 5. | C14: GENETIC INFORMATION NONDISCRIMINATION ACT (GINA)
A16: B. TOTAL BY STATUTES
A17: =SUM(A9,A10,A11,A12,A13,A14) -> 17 | C17: THIS NUMBER MAY BE LARGER THAN THE TOTAL NUMBER OF COMPLAINTS CLOSED.
A18: (A1+A1a+A2+A3+A4+A5)
A20: PART VI - SUMMARY OF CLOSURES BY CATEGORY
L21: TOTAL | N21: TOTAL | P21: AVERAGE
L22: NUMBER | N22: DAYS | P22: DAYS
A23: A. TOTAL NUMBER OF CLOSURES | K23: (1+2+3) | L23: =SUM(L24,L27,L30) -> 8 | N23: =SUM(N24,N27,N30) -> 3514 | P23: =IF(L23=0,0,N23/L23) -> 439.25
B24: 1. WITHDRAWALS | L24: =SUM(L25,L26) -> 0 | N24: =SUM(N25,N26) -> 0 | P24: 0
B25: a. NON-ADR WITHDRAWALS | L25: 0 | N25: 0 | P25: 0
B26: b. ADR WITHDRAWALS | L26: 0 | N26: 0 | P26: 0
B27: 2. SETTLEMENTS | L27: =SUM(L28,L29) -> 3 | N27: =SUM(N28,N29) -> 1857 | P27: 619
B28: a. NON-ADR SETTLEMENTS | L28: 3 | N28: 1857 | P28: 619
B29: b. ADR SETTLEMENTS | L29: 0 | N29: 0 | P29: 0
B30: 3. FINAL AGENCY ACTIONS | K30: ( B+C ) | L30: =SUM(L31,L35) -> 5 | N30: =SUM(N31,N35) -> 1657 | P30: 331.4
A31: B. FINAL AGENCY DECISIONS WITHOUT AN ADMINISTRATIVE JUDGE DECISION | K31: (1+2+3) | L31: =SUM(L32,L33,L34) -> 4 | N31: =SUM(N32,N33,N34) -> 809 | P31: 202.25
B32: 1. FINDING DISCRIMINATION | L32: 0 | N32: 0 | P32: 0
B33: 2. FINDING NO DISCRIMINATION | L33: 4 | N33: 809 | P33: 202.25
B34: 3. DISMISSAL OF COMPLAINTS | L34: 0 | N34: 0 | P34: 0
A35: C. FINAL AGENCY ORDERS WITH AN ADMINISTRATIVE JUDGE (AJ) DECISION | K35: (1+2) | L35: =SUM(L36,L40) -> 1 | N35: =SUM(N36,N40) -> 848 | P35: 848
B36: 1. AJ DECISION FULLY IMPLEMENTED | K36: (a+b+c) | L36: =SUM(L37,L38,L39) -> 1 | N36: =SUM(N37,N38,N39) -> 848 | P36: 848
B37: (a) FINDING DISCRIMINATION | L37: 0 | N37: 0 | P37: 0
B38: (b) FINDING NO DISCRIMINATION | L38: 1 | N38: 848 | P38: 848
B39: (c) DISMISSAL OF COMPLAINTS | L39: 0 | N39: 0 | P39: 0
B40: 2. AJ DECISION NOT FULLY IMPLEMENTED | K40: (a+b+c) | L40: =SUM(L41,L45,L46) -> 0 | N40: =SUM(N41,N45,N46) -> 0 | P40: 0
B41: (a) FINDING DISCRIMINATION | K41: (i+ii+iii) | L41: =SUM(L42,L43,L44) -> 0 | N41: =SUM(N42,N43,N44) -> 0 | P41: 0
B42: i. AGENCY APPEALED FINDING BUT NOT REMEDY | L42: 0 | N42: 0 | P42: 0
B43: ii. AGENCY APPEALED REMEDY BUT NOT FINDING | L43: 0 | N43: 0 | P43: 0
B44: iii. AGENCY APPEALED BOTH FINDING AND REMEDY | L44: 0 | N44: 0 | P44: 0
B45: (b) FINDING NO DISCRIMINATION | L45: 0 | N45: 0 | P45: 0
B46: (c) DISMISSAL OF COMPLAINTS | L46: 0 | N46: 0 | P46: 0
A47: EEOC FORM 462 (REVISED NOV 2014) | Q47: page 5

Sheet PARTS VI AND VII
A1: ANNUAL FEDERAL EQUAL EMPLOYMENT OPPORTUNITY
A2: STATISTICAL REPORT OF DISCRIMINATION COMPLAINTS
A3: (REPORTING PERIOD BEGINS OCTOBER 1ST AND ENDS SEPTEMBER 30TH)
A4: ="AGENCY OR DEPARTMENT: " & Profile!D4 -> AGENCY OR DEPARTMENT: DD48 | B4: ="REPORTING PERIOD: FY" & Profile!D12 -> REPORTING PERIOD: FY2019
A6: PART VI - SUMMARY OF CLOSURES BY CATEGORY (Continued)
B7: TOTAL | C7: TOTAL | D7: AVERAGE
B8: NUMBER | C8: DAYS | D8: DAYS
A9: D. FINAL AGENCY MERIT DECISIONS (FAD) ISSUED (1+2+3+4) | B9: =SUM(B10,B13,B16,B19) -> 4 | C9: =SUM(C10,C13,C16,C19) -> 194 | D9: =IF(B9=0,0,C9/B9) -> 48.5
A10: 1. COMPLAINANT REQUESTED IMMEDIATE FAD (1a+1b) | B10: =SUM(B11,B12) -> 0 | C10: =SUM(C11,C12) -> 0 | D10: 0
A11: a. AGENCY ISSUED FAD WITHIN 60 DAYS OF RECEIPT OF FAD REQUEST | B11: 0 | C11: 0 | D11: 0
A12: b. AGENCY ISSUED FAD MORE THAN 60 DAYS BEYOND RECEIPT OF FAD REQUEST | B12: 0 | C12: 0 | D12: 0
A13: 2. COMPLAINANT DID NOT ELECT HEARING OR FAD (2a+2b) | B13: =SUM(B14,B15) -> 1 | C13: =SUM(C14,C15) -> 88 | D13: 88
A14: a. AGENCY ISSUED FAD WITHIN 60 DAYS OF END OF 30-DAY ELECTION PERIOD | B14: 0 | C14: 0 | D14: 0
A15: b. AGENCY ISSUED FAD MORE THAN 60 DAYS BEYOND END OF 30-DAY ELECTION PERIOD | B15: 1 | C15: 88 | D15: 88
A16: 3. HEARING REQUESTED; AJ RETURNED CASE TO AGENCY FOR FAD WITHOUT AJ DECISION (3a+3b) | B16: =SUM(B17,B18) -> 0 | C16: =SUM(C17,C18) -> 0 | D16: 0
A17: a. AGENCY ISSUED FAD WITHIN 60 DAYS OF RECEIPT OF AJ RETURNED CASE FOR FAD ISSUANCE | B17: 0 | C17: 0 | D17: 0
A18: b. AGENCY ISSUED FAD MORE THAN 60 DAYS AFTER RECEIPT OF AJ RETURNED CASE FOR FAD ISSUANCE | B18: 0 | C18: 0 | D18: 0
A19: 4. FINAL AGENCY DECISION ISSUED ON A MIXED CASE (4a+4b) | B19: =SUM(B20,B21) -> 3 | C19: =SUM(C20,C21) -> 106 | D19: 35.33333333
A20: a. AGENCY ISSUED FAD WITHIN 45 DAYS AFTER INVESTIGATION | B20: 2 | C20: 59 | D20: 29.5
A21: b. AGENCY ISSUED FAD MORE THAN 45 DAYS AFTER INVESTIGATION | B21: 1 | C21: 47 | D21: 47
A23: PART VII - SUMMARY OF FORMAL COMPLAINTS CLOSED BY TYPES OF BENEFITS
B24: NUMBER | D24: AMOUNT
A25: A. TOTAL COMPLAINTS CLOSED WITH BENEFITS | B25: 3
A26: B. TOTAL CLOSURES WITH MONETARY BENEFITS TO COMPLAINANT | B26: 3 | D26: =SUM(D27,D28,D29,D30) -> 26446
A27: 1. BACK PAY/FRONT PAY | B27: 0 | D27: 0
A28: 2. LUMP SUM PAYMENT | B28: 2 | D28: 4794.48
A29: 3. COMPENSATORY DAMAGES | B29: 0 | D29: 0
A30: 4. ATTORNEY FEES AND COSTS | B30: 3 | D30: 21651.52
A31: 5. | B31: 0 | D31: 0
A32: 6. | B32: 0 | D32: 0
A33: D. INTENTIONALLY LEFT BLANK
A34: E. TOTAL CLOSURES WITH NON-MONETARY BENEFITS TO COMPLAINANT | B34: 3
A35: F. TYPES OF BENEFITS IN NON-MONETARY CLOSURES | B35: NUMBER OF CLOSURES THAT RECEIVED MONETARY BENEFITS AS WELL | D35: NUMBER OF CLOSURES THAT RECEIVED ONLY NON-MONETARY BENEFITS
A36: 1. HIRES | B36: =SUM(B37,B38) -> 0 | D36: =SUM(D37,D38) -> 0
A37: a. RETROACTIVE | B37: 0 | D37: 0
A38: b. NON-RETROACTIVE | B38: 0 | D38: 0
A39: 2. PROMOTIONS | B39: =SUM(B40,B41) -> 0 | D39: =SUM(D40,D41) -> 0
A40: a. RETROACTIVE | B40: 0 | D40: 0
A41: b. NON-RETROACTIVE | B41: 0 | D41: 0
A42: 3. EXPUNGEMENTS | B42: 0 | D42: 0
A43: 4. REASSIGNMENTS | B43: 0 | D43: 0
A44: 5. REMOVALS RESCINDED | B44: =SUM(B45,B46) -> 1 | D44: =SUM(D45,D46) -> 1
A45: a. REINSTATEMENT | B45: 0 | D45: 0
A46: b. VOLUNTARY RESIGNATION | B46: 1 | D46: 1
A47: 6. ACCOMMODATIONS | B47: 0 | D47: 0
A48: 7. TRAINING | B48: 0 | D48: 0
A49: 8. APOLOGY | B49: 0 | D49: 0
A50: 9. DISCIPLINARY ACTIONS | B50: =SUM(B51,B52) -> 1 | D50: =SUM(D51,D52) -> 1
A51: a. RESCINDED | B51: 1 | D51: 1
A52: b. MODIFIED | B52: 0 | D52: 0
A53: 10. PERFORMANCE EVALUATION MODIFIED | B53: 1 | D53: 1
A54: 11. LEAVE RESTORED | B54: 1 | D54: 1
A55: 12. NEUTRAL REFERENCE | B55: 1 | D55: 1
A56: 13. | B56: 0 | D56: 0
A57: 14. | B57: 0 | D57: 0
A58: EEOC FORM 462 (REVISED SEPTEMBER 2015) | D58: page 6

Sheet Parts VIII AND IX
A1: ANNUAL FEDERAL EQUAL EMPLOYMENT OPPORTUNITY
A2: STATISTICAL REPORT OF DISCRIMINATION COMPLAINTS
A3: (REPORTING PERIOD BEGINS OCTOBER 1ST AND ENDS SEPTEMBER 30TH)
A4: ="AGENCY OR DEPARTMENT: " & Profile!D4 -> AGENCY OR DEPARTMENT: DD48 | D4: ="REPORTING PERIOD: FY" & Profile!D12 -> REPORTING PERIOD: FY2019
A6: PART VIII - SUMMARY OF PENDING COMPLAINTS BY CATEGORY
B7: NUMBER | C7: NUMBER | D7: AVERAGE | E7: DAYS PENDING | F7: OLDEST CASE EEOC
A8: A. TOTAL COMPLAINTS PENDING (SAME AS PART II Line I) | B8: PENDING | C8: OF DAYS | D8: DAYS | E8: OLDEST CASE | F8: HEARING #
A9: (1+1a+2+3+4) | B9: =SUM(B11,B13,B15,B19,B21) -> 14 | C9: =SUM(C11,C13,C15,C19,C21) -> 7439
A11: 1. COMPLAINTS PENDING WRITTEN NOTIFICATION (Acknowledgement Letter) | B11: 0 | C11: 0 | D11: =IF(B11=0,0,C11/B11) -> 0 | E11: 0
A13: 1a. COMPLAINTS PENDING DECISION TO ACCEPT/DISMISS | B13: 1 | C13: 33 | D13: =IF(B13=0,0,C13/B13) -> 33 | E13: 33
A15: 2. COMPLAINTS PENDING IN INVESTIGATION | B15: 2 | C15: 208 | D15: =IF(B15=0,0,C15/B15) -> 104 | E15: 117
A17: 2a. COMPLAINTS PENDING 180 DAY INVESTIGATION NOTICE | B17: 0 | C17: 0 | D17: =IF(B17=0,0,C17/B17) -> 0 | E17: 0
A19: 3. COMPLAINTS PENDING IN HEARINGS | B19: 11 | C19: 7198 | D19: =IF(B19=0,0,C19/B19) -> 654.3636364 | E19: 1059 | F19: 570-2018-00174X
A21: 4. COMPLAINTS PENDING A FINAL AGENCY ACTION | B21: 0 | C21: 0 | D21: =IF(B21=0,0,C21/B21) -> 0 | E21: 0
A23: PART IX - SUMMARY OF INVESTIGATIONS COMPLETED
D24: TOTAL | E24: TOTAL DAYS | F24: AVERAGE
A25: A. INVESTIGATIONS COMPLETED DURING REPORTING PERIOD | C25: (1+3) | D25: =SUM(D27,D36) -> 9 | E25: =SUM(E27,E36) -> 8053653 | F25: =IF(D25=0,0,E25/D25) -> 894850.3333
A26: AGENCY INVESTIGATIONS
A27: 1. INVESTIGATIONS COMPLETED BY AGENCY PERSONNEL | C27: (a+b+c) | D27: =SUM(D28,D29,D32) -> 6 | E27: =SUM(E28,E29,E32) -> 8053206 | F27: =IF(D27=0,0,E27/D27) -> 1342201
A28: a. INVESTIGATIONS COMPLETED IN 180 DAYS OR LESS | D28: 1 | E28: 166 | F28: 166
A29: b. INVESTIGATIONS COMPLETED IN 181 - 360 DAYS | D29: =SUM(D30,D31) -> 5 | E29: =SUM(E30,E31) -> 1078 | F29: 215.6
A30: 1. TIMELY COMPLETED INVESTIGATIONS | D30: 1 | E30: 218 | F30: 218
A31: 2. UNTIMELY COMPLETED INVESTIGATIONS | D31: 4 | E31: 860 | F31: 215
A32: c. INVESTIGATIONS COMPLETED IN 361 OR MORE DAYS | D32: 0 | E32: 8051962 | F32: 0
A33: 2. AGENCY INVESTIGATION COSTS | D33: 34494 | F33: =IF(D27=0,0,D33/D27) -> 5749
A35: CONTRACT INVESTIGATIONS
A36: 3. INVESTIGATIONS COMPLETED BY CONTRACTORS | C36: (a+b+c) | D36: =SUM(D37,D38,D41) -> 3 | E36: =SUM(E37,E38,E41) -> 447 | F36: =IF(D36=0,0,E36/D36) -> 149
A37: a. INVESTIGATIONS COMPLETED IN 180 DAYS OR LESS | D37: 3 | E37: 447 | F37: 149
A38: b. INVESTIGATIONS COMPLETED IN 181 - 360 DAYS | D38: =SUM(D39,D40) -> 0 | E38: =SUM(E39,E40) -> 0 | F38: 0
A39: 1. TIMELY COMPLETED INVESTIGATIONS | D39: 0 | E39: 0 | F39: 0
A40: 2. UNTIMELY COMPLETED INVESTIGATIONS | D40: 0 | E40: 0 | F40: 0
A41: c. INVESTIGATIONS COMPLETED IN 361 OR MORE DAYS | D41: 0 | E41: 0 | F41: 0
A42: 4. CONTRACTOR INVESTIGATION COSTS | D42: 9531 | F42: =IF(D36=0,0,D42/D36) -> 3177
A57: EEOC FORM 462 (REVISED NOV 2014) | F57: page 7

Sheet PART X
A1: ANNUAL FEDERAL EQUAL EMPLOYMENT OPPORTUNITY
A2: STATISTICAL REPORT OF DISCRIMINATION COMPLAINTS
A3: (REPORTING PERIOD BEGINS OCTOBER 1ST AND ENDS SEPTEMBER 30TH)
A4: ="AGENCY OR DEPARTMENT: " & Profile!D4 -> AGENCY OR DEPARTMENT: DD48 | F4: ="REPORTING PERIOD: FY" & Profile!D12 -> REPORTING PERIOD: FY2019
A6: PART X - SUMMARY OF ADR PROGRAM ACTIVITIES
A7: INFORMAL PHASE (PRE-COMPLAINT)
A8: A. INTENTIONALLY LEFT BLANK
A9: B. ADR ACTIONS IN COMPLETED/ENDED COUNSELINGS | D9: COUNSELINGS | E9: INDIVIDUALS
A10: 1. | B10: ADR OFFERED BY AGENCY | D10: 2 | E10: 2
A11: 2. | B11: REJECTED BY INDIVIDUAL (COUNSELEE) | D11: 1 | E11: 1
A12: 3. | B12: INTENTIONALLY LEFT BLANK
A13: 4. | B13: TOTAL ACCEPTED INTO ADR PROGRAM | D13: =D10-D11 -> 1 | E13: 1
A14: C. ADR RESOURCES USED IN COMPLETED/ENDED COUNSELINGS (TOTALS) | D14: =SUM(D15,D16,D19,D20,D21,D22,D23) -> 1 | E14: 1
A15: 1. | B15: INHOUSE | D15: 0 | E15: 0
A16: 2. | B16: ANOTHER FEDERAL AGENCY | D16: 1 | E16: 1
A17: 3. | B17: PRIVATE ORGANIZATIONS, (e.g., CONTRACTORS,
B18: BAR ASSOCIATIONS, INDIVIDUAL VOLUNTEERS
B19: OR COLLEGE/UNIVERSITY PERSONNEL) | D19: 0 | E19: 0
A20: 4. | B20: MULTIPLE RESOURCES USED (Please specify in a comment box) | D20: 0 | E20: 0
A21: 5. | B21: FEDERAL EXECUTIVE BOARD | D21: 0 | E21: 0
A22: 6. | D22: 0 | E22: 0
A23: 7. | D23: 0 | E23: 0
D24: COUNSELINGS | E24: INDIVIDUALS | F24: DAYS | G24: AVERAGE DAYS
A25: D. ADR TECHNIQUES USED IN COMPLETED/ENDED COUNSELINGS (TOTALS) | D25: =SUM(D26,D27,D28,D29,D30,D31,D32,D33,D34,D35) -> 1 | E25: 1 | F25: =SUM(F26,F27,F28,F29,F30,F31,F32,F33,F34,F35) -> 28 | G25: =IF(D25=0,0,F25/D25) -> 28
A26: 1. | B26: MEDIATION | D26: 1 | E26: 1 | F26: 28 | G26: 28
A27: 2. | B27: SETTLEMENT CONFERENCES | D27: 0 | E27: 0 | F27: 0 | G27: 0
A28: 3. | B28: EARLY NEUTRAL EVALUATIONS | D28: 0 | E28: 0 | F28: 0 | G28: 0
A29: 4 | B29: FACTFINDING | D29: 0 | E29: 0 | F29: 0 | G29: 0
A30: 5. | B30: FACILITATION | D30: 0 | E30: 0 | F30: 0 | G30: 0
A31: 6 | B31: OMBUDSMAN | D31: 0 | E31: 0 | F31: 0 | G31: 0
A32: 7. | B32: PEER REVIEW | D32: 0 | E32: 0 | F32: 0 | G32: 0
A33: 8. | B33: MULTIPLE TECHNIQUES USED (Please specify in a comment box) | D33: 0 | E33: 0 | F33: 0 | G33: 0
A34: 9. | D34: 0 | E34: 0 | F34: 0 | G34: 0
A35: 10. | D35: 0 | E35: 0 | F35: 0 | G35: 0
A36: E. STATUS OF ADR CASES IN COMPLETED/ENDED COUNSELINGS | D36: COUNSELINGS | E36: INDIVIDUALS | F36: DAYS | G36: AVERAGE DAYS
A37: 1. | B37: TOTAL CLOSED | D37: =SUM(D38,D39,D41,D42,D43) -> 1 | E37: 1 | F37: =SUM(F38,F39,F40,F41,F42,F43) -> 28 | G37: =IF(D37=0,0,F37/D37) -> 28
B38: a. | C38: SETTLEMENTS WITH BENEFITS (Monetary and Non-monetary) | D38: 0 | E38: 0 | F38: 0 | G38: =IF(D38=0,0,F38/D38) -> 0
B39: b. | C39: NO FORMAL COMPLAINT FILED | D39: 0 | E39: 0 | F39: 0 | G39: =IF(D39=0,0,F39/D39) -> 0
B40: c. | C40: COMPLAINT FILED
C41: i. NO RESOLUTION | D41: 1 | E41: 1 | F41: 28 | G41: =IF(D41=0,0,F41/D41) -> 28
C42: ii. NO ADR ATTEMPT (aka Part X.E.1.d) | D42: 0 | E42: 0 | F42: 0 | G42: =IF(D42=0,0,F42/D42) -> 0
B43: e. | C43: DECISION TO FILE COMPLAINT PENDING AT THE END OF THE REPORTING PERIOD | D43: 0 | E43: 0 | F43: 0 | G43: =IF(D43=0,0,F43/D43) -> 0
A44: 2. | B44: INTENTIONALLY LEFT BLANK
A45: EEOC FORM 462 (REVISED NOV 2014) | G45: page 8

Sheet PART XI
A1: ANNUAL FEDERAL EQUAL EMPLOYMENT OPPORTUNITY
A2: STATISTICAL REPORT OF DISCRIMINATION COMPLAINTS
A3: (REPORTING PERIOD BEGINS OCTOBER 1ST AND ENDS SEPTEMBER 30TH)
A4: ="AGENCY OR DEPARTMENT: " & Profile!D4 -> AGENCY OR DEPARTMENT: DD48 | F4: ="REPORTING PERIOD: FY" & Profile!D12 -> REPORTING PERIOD: FY2019
A6: PART XI - SUMMARY OF ADR PROGRAM ACTIVITIES
A7: FORMAL PHASE (COMPLAINT FILED)
A9: B. ADR ACTIONS IN COMPLAINT CLOSURES | D9: COMPLAINTS | E9: COMPLAINANTS
A10: 1 | B10: ADR OFFERED BY AGENCY | D10: 0 | E10: 0
A11: 2. | B11: REJECTED BY COMPLAINANT | D11: 0 | E11: 0
A12: 3. | B12: INTENTIONALLY LEFT BLANK
A13: 4. | B13: TOTAL ACCEPTED INTO ADR PROGRAM | D13: =D10-D11 -> 0 | E13: 0
A14: C. ADR RESOURCES USED IN COMPLAINT CLOSURES (TOTALS) | D14: =SUM(D15,D16,D19,D20,D21,D22,D23) -> 0 | E14: 0
A15: 1 | B15: INHOUSE | D15: 0 | E15: 0
A16: 2. | B16: ANOTHER FEDERAL AGENCY | D16: 0 | E16: 0
A17: 3. | B17: PRIVATE ORGANIZATIONS, (e.g., CONTRACTORS,
B18: BAR ASSOCIATIONS, INDIVIDUAL VOLUNTEERS
B19: OR COLLEGE/UNIVERSITY PERSONNEL) | D19: 0 | E19: 0
A20: 4. | B20: MULTIPLE RESOURCES USED (Please specify in a comment box) | D20: 0 | E20: 0
A21: 5. | B21: FEDERAL EXECUTIVE BOARD | D21: 0 | E21: 0
A22: 6. | D22: 0 | E22: 0
A23: 7. | D23: 0 | E23: 0
D24: COMPLAINTS | E24: COMPLAINANTS | F24: DAYS | G24: AVERAGE DAYS
A25: D. ADR TECHNIQUES USED IN COMPLAINT CLOSURES (TOTALS) | D25: =SUM(D26,D27,D28,D29,D30,D31,D32,D33,D34,D35,D36) -> 0 | E25: 0 | F25: =SUM(F26,F27,F28,F29,F30,F31,F32,F33,F34,F35,F36) -> 0 | G25: =IF(F25=0,0,F25/D25) -> 0
A26: 1. | B26: MEDIATION | D26: 0 | E26: 0 | F26: 0 | G26: 0
A27: 2. | B27: SETTLEMENT CONFERENCES | D27: 0 | E27: 0 | F27: 0 | G27: 0
A28: 3. | B28: EARLY NEUTRAL EVALUATIONS | D28: 0 | E28: 0 | F28: 0 | G28: 0
A29: 4. | B29: FACTFINDING | D29: 0 | E29: 0 | F29: 0 | G29: 0
A30: 5. | B30: FACILITATION | D30: 0 | E30: 0 | F30: 0 | G30: 0
A31: 6. | B31: OMBUDSMAN | D31: 0 | E31: 0 | F31: 0 | G31: 0
A32: 7. | B32: MINI-TRIALS | D32: 0 | E32: 0 | F32: 0 | G32: 0
A33: 8. | B33: PEER REVIEW | D33: 0 | E33: 0 | F33: 0 | G33: 0
A34: 9. | B34: MULTIPLE TECHNIQUES USED (Please specify in a comment box) | D34: 0 | E34: 0 | F34: 0 | G34: 0
A35: 10. | D35: 0 | E35: 0 | F35: 0 | G35: 0
A36: 11. | D36: 0 | E36: 0 | F36: 0 | G36: 0
A37: E. STATUS OF CASES IN COMPLAINT CLOSURES | D37: COMPLAINTS | E37: COMPLAINANTS | F37: DAYS | G37: AVERAGE DAYS
A38: 1. | B38: TOTAL CLOSED | D38: =SUM(D39,D40,D41,D42) -> 0 | E38: 0 | F38: =SUM(F39,F40,F41,F42) -> 0 | G38: =IF(F38=0,0,F38/D38) -> 0
B39: a. | C39: SETTLEMENTS WITH BENEFITS (Monetary and Non-monetary) | D39: 0 | E39: 0 | F39: 0 | G39: =IF(F39=0,0,F39/D39) -> 0
B40: b. | C40: WITHDRAWAL FROM EEO PROCESS | D40: 0 | E40: 0 | F40: 0 | G40: =IF(F40=0,0,F40/D40) -> 0
B41: c. | C41: NO RESOLUTION | D41: 0 | E41: 0 | F41: 0 | G41: =IF(F41=0,0,F41/D41) -> 0
B42: d. | C42: NO ADR ATTEMPT | D42: 0 | E42: 0 | F42: 0 | G42: =IF(F42=0,0,F42/D42) -> 0
A43: 2. | B43: INTENTIONALLY LEFT BLANK
A44: F. BENEFITS RECEIVED | D44: COMPLAINTS | E44: COMPLAINANTS | F44: AMOUNT
A45: 1. | B45: MONETARY (INSERT TOTALS) | D45: 0 | E45: 0 | F45: =SUM(F46,F47,F48,F49,F50) -> 0
B46: a. COMPENSATORY DAMAGES | D46: 0 | E46: 0 | F46: 0
B47: b. BACKPAY/FRONTPAY | D47: 0 | E47: 0 | F47: 0
B48: c. LUMP SUM | D48: 0 | E48: 0 | F48: 0
B49: d. ATTORNEY FEES AND COSTS | D49: 0 | E49: 0 | F49: 0
B50: e. | D50: 0 | E50: 0 | F50: 0
A51: 2. | B51: NON-MONETARY (INSERT TOTALS) | D51: 0 | E51: 0
B52: a. HIRES | D52: =SUM(D53,D54) -> 0 | E52: 0
B53: i. RETROACTIVE | D53: 0 | E53: 0
B54: ii. NON-RETROACTIVE | D54: 0 | E54: 0
B55: b. PROMOTIONS | D55: =SUM(D56,D57) -> 0 | E55: 0
B56: i. RETROACTIVE | D56: 0 | E56: 0
B57: ii. NON-RETROACTIVE | D57: 0 | E57: 0
B58: c. EXPUNGEMENTS | D58: 0 | E58: 0
B59: d. REASSIGNMENTS | D59: 0 | E59: 0
B60: e. REMOVALS RESCINDED | D60: =SUM(D61,D62) -> 0 | E60: 0
B61: i. REINSTATEMENT | D61: 0 | E61: 0
B62: ii. VOLUNTARY RESIGNATION | D62: 0 | E62: 0
B63: f. ACCOMMODATIONS | D63: 0 | E63: 0
B64: g. TRAINING | D64: 0 | E64: 0
B65: h. APOLOGY | D65: 0 | E65: 0
B66: i. DISCIPLINARY ACTIONS | D66: =SUM(D67,D68) -> 0 | E66: 0
B67: i. RESCINDED | D67: 0 | E67: 0
B68: ii. MODIFIED | D68: 0 | E68: 0
B69: j. PERFORMANCE EVALUATION MODIFIED | D69: 0 | E69: 0
B70: k. LEAVE RESTORED | D70: 0 | E70: 0
B71: l. NEUTRAL REFERENCE | D71: 0 | E71: 0
B72: m. | D72: 0 | E72: 0
B73: n. | D73: 0 | E73: 0
A74: EEOC FORM 462 (REVISED SEPTEMBER 2015) | G74: page 9

Sheet PART XII
A1: ANNUAL FEDERAL EQUAL EMPLOYMENT OPPORTUNITY
A2: STATISTICAL REPORT OF DISCRIMINATION COMPLAINTS
A3: (REPORTING PERIOD BEGINS OCTOBER 1ST AND ENDS SEPTEMBER 30TH)
A4: ="AGENCY OR DEPARTMENT: " & Profile!D4 -> AGENCY OR DEPARTMENT: DD48 | E4: ="REPORTING PERIOD: FY" & Profile!D12 -> REPORTING PERIOD: FY2019
A6: PART XII - SUMMARY OF EEO ADR PROGRAM ACTIVITIES
A7: EEO ADR RESOURCES
A8: A. NO LONGER COLLECTED
A12: B. EMPLOYEES THAT CAN PARTICIPATE IN EEO ADR | D12: 1225
A14: C. RESOURCES THAT MANAGE EEO ADR PROGRAM (DOES NOT
A15: INCLUDE NEUTRALS AS REPORTED IN PARTS X. & XI.) | D15: 4
B16: 1. | C16: IN-HOUSE FULL TIME (40 HOURS EEO ADR ONLY) | D16: 4
B17: 2. | C17: IN-HOUSE PART TIME (32 HOURS EEO ADR ONLY) | D17: 0
B18: 3. | C18: IN-HOUSE COLLATERAL DUTY (OTHERS/NON-CONTRACT) | D18: 0
B19: 4. CONTRACT (ANOTHER FEDERAL AGENCY/PRIVATE ORGANIZATIONS) | D19: 0
D20: AMOUNT
A21: D. EEO ADR FUNDING SPENT | D21: 0
A23: E. EEO ADR CONTACT INFORMATION
A25: 1. NAME OF EEO ADR PROGRAM DIRECTOR / MANAGER | D25: Johnny K. Jones
A27: 2. TITLE | D27: Director, Office of EEO
A29: 3. TELEPHONE NUMBER | D29: 5713721962
A31: 4. EMAIL | D31: johnny.k.jones1.civ@mail.mil
A34: F. EEO ADR PROGRAM INFORMATION | D34: MUST use 'X' to designate response to questions
F35: YES | G35: NO
A36: 1. Does the agency require the alleged responsible management official to participate in EEO ADR? | G36: x
A37: 1a. If yes, is there a written policy requiring the participation?
A38: 2. Does the alleged responsible management official have a role in deciding if the case is appropriate for EEO ADR? | F38: x
A42: The FY 2019 Form 462 report must be “Accepted/Finalized” by EEOC by October 31, 2019 to be considered timely.
A44: EEOC FORM 462 (REVISED SEPTEMBER 2016) | G44: page 10

Sheet Data Checks
A1: Data Checks
A4: Pass/Fail | B4: Value 1 | C4: Must Be | D4: Value 2 | E4: Part | F4: Table Name | G4: 462 Line Item | H4: Must_Be | I4: 462 Line Item(s) | J4: Comments | K4: Org Code | L4: Year | M4: Comment Req | N4: Presence in document | O4: Column4 | P4: Unique ID | Q4: Removed from QRM in FY17
A5: =IF(B5>=D5,"Pass","Fail") -> Pass | B5: ='XML Mapping'!$F$2 -> 24 | C5: >= | D5: =N('XML Mapping'!F4329) -> 1 | E5: PART I | F5: Pre-Complaint Counseling | G5: C -- Total Completed/Ended Counselings | H5: >= | I5: Part X. E.1 Total Closed, Counselings | K5: =Profile!$D$3 -> 0 | L5: =Profile!$D$12 -> 2019 | P5: 4
A6: =IF(B6=D6,"Pass","Fail") -> Pass | B6: =N('XML Mapping'!F3) -> 22 | C6: = | D6: =N('XML Mapping'!$F$23) -> 22 | E6: PART I | F6: Pre-Complaint Counseling | G6: C -- Total Completed/Ended Counselings - Individuals | H6: = | I6: D3 Completed Ended Counselings, Individuals | K6: =Profile!$D$3 -> 0 | L6: =Profile!$D$12 -> 2019 | P6: 5
A7: =IF(B7=D7,"Pass","Fail") -> Pass | B7: =N('XML Mapping'!$F$2) -> 24 | C7: = | D7: =N('XML Mapping'!$F$22) -> 24 | E7: PART I | F7: Pre-Complaint Counseling | G7: C -- Total Completed/Ended Counselings | H7: = | I7: D3 Completed Ended Counselings | K7: =Profile!$D$3 -> 0 | L7: =Profile!$D$12 -> 2019 | P7: 6
A8: =IF(AND(B8<=D8,NOT(EXACT(D8,""))),"Pass","Fail") -> Pass | B8: =N('XML Mapping'!$F$22) -> 24 | C8: <= | D8: =N('XML Mapping'!F18)+N('XML Mapping'!F20) -> 31 | E8: PART I | F8: Pre-Complaint Counseling | G8: D3 -- Completed Counseling | H8: <= | I8: D1 + D2 | K8: =Profile!$D$3 -> 0 | L8: =Profile!$D$12 -> 2019 | P8: 7
A9: =IF(B9=D9,"Pass","Fail") -> Pass | B9: =N('XML Mapping'!F24) -> 0 | C9: = | D9: =N('XML Mapping'!F168)+N('XML Mapping'!F4333) -> 0 | E9: PART I | F9: Pre-Complaint Counseling | G9: D3a -- Settlements (Monetary and Non-Monetary) Counselings | H9: = | I9: I + Part X. E.1.a Counselings | K9: =Profile!$D$3 -> 0 | L9: =Profile!$D$12 -> 2019 | P9: 8
A10: =IF(B10<=D10,"Pass","Fail") -> Pass | B10: =N('XML Mapping'!F24) -> 0 | C10: <= | D10: =SUM(N('XML Mapping'!F34), N('XML Mapping'!F55), N('XML Mapping'!F101),N('XML Mapping'!F122)) -> 0 | E10: PART I | F10: Pre-Complaint Counseling | G10: D3a -- Settlements (Monetary and Non-Monetary) Counselings | H10: <= | I10: Part I E. Total Counselings + Part I F. Total Counselings + Part I G. Total Counselings + Part I H. Total Counselings | K10: =Profile!$D$3 -> 0 | L10: =Profile!$D$12 -> 2019 | M10: WARNING: Comment may be required to pass! | P10: 9
A11: =IF(B11<=D11,"Pass","Fail") -> Pass | B11: =N('XML Mapping'!F25) -> 0 | C11: <= | D11: =SUM(N('XML Mapping'!F35), N('XML Mapping'!F56), N('XML Mapping'!F102),N('XML Mapping'!F123)) -> 0 | E11: PART I | F11: Pre-Complaint Counseling | G11: D3a -- Settlements (Monetary and Non-Monetary) Individuals | H11: <= | I11: Part I E. Total Individuals + Part I F. Total Individuals + Part I G. Total Individuals + Part I H. Total Individuals | K11: =Profile!$D$3 -> 0 | L11: =Profile!$D$12 -> 2019 | P11: 10
A12: =IF(B12>=D12,"Pass","Fail") -> Pass | B12: =N('XML Mapping'!F26) -> 10 | C12: >= | D12: =N('XML Mapping'!F4337) -> 0 | E12: PART I | F12: Pre-Complaint Counseling | G12: D3b -- Withdrawal/No Complaint Filed | H12: >= | I12: Part X. E.1.b | K12: =Profile!$D$3 -> 0 | L12: =Profile!$D$12 -> 2019 | P12: 11
A13: =IF(B13=D13,"Pass","Fail") -> Pass | B13: =SUM('XML Mapping'!F18,'XML Mapping'!F20) -> 31 | C13: = | D13: =SUM('XML Mapping'!F22,'XML Mapping'!F32) -> 31 | E13: PART I | F13: Pre-Complaint Counseling | G13: D.1. On Hand at the Beginning of the Reporting Period, Counselings + D.2. Initiated During the Reporting Period, Counselings | H13: = | I13: D.3. Completed/Ended Counselings, Counselings + D.4. Counselings Pending at the End of the Reporting Period, Counselings | K13: =Profile!$D$3 -> 0 | L13: =Profile!$D$12 -> 2019 | N13: Missing from document | P13: 14
A14: =IF(B14<=D14,"Pass","Fail") -> Pass | B14: =N('XML Mapping'!F34) -> 0 | C14: <= | D14: =N('XML Mapping'!F24) -> 0 | E14: PART I | F14: Pre-Complaint Counseling | G14: E -- Total Non-ADR Settlements with Monetary Benefits, Counselings | H14: <= | I14: D3a, Counselings | K14: =Profile!$D$3 -> 0 | L14: =Profile!$D$12 -> 2019 | P14: 16
A15: Pass | B15: =N('XML Mapping'!F35) -> 0 | C15: <= | D15: =N('XML Mapping'!F25) -> 0 | E15: PART I | F15: Pre-Complaint Counseling | G15: E -- Total Non-ADR Settlements with Monetary Benefits, Individuals | H15: <= | I15: D3a, Individuals | K15: =Profile!$D$3 -> 0 | L15: =Profile!$D$12 -> 2019 | P15: 17
A16: Pass | B16: =N('XML Mapping'!F34) -> 0 | C16: <= | D16: =SUMIF('XML Mapping'!C37:C54,'XML Mapping'!C34,'XML Mapping'!F37:F54) -> 0 | E16: PART I | F16: Pre-Complaint Counseling | G16: E -- Total Non-ADR Settlements with Monetary Benefits, Counselings | H16: <= | I16: E1 + E2 + E3 + E4 + E5 + E6 | K16: =Profile!$D$3 -> 0 | L16: =Profile!$D$12 -> 2019 | P16: 18
A17: Pass | B17: =N('XML Mapping'!F35) -> 0 | C17: <= | D17: =N('XML Mapping'!F169) -> 0 | E17: PART I | F17: Pre-Complaint Counseling | G17: E -- Total Non-ADR Settlements with Monetary Benefits, Individuals | H17: <= | I17: I, Individuals | K17: =Profile!$D$3 -> 0 | L17: =Profile!$D$12 -> 2019 | P17: 19
A18: Pass | B18: =N('XML Mapping'!F34) -> 0 | C18: <= | D18: =N('XML Mapping'!F168) -> 0 | E18: PART I | F18: Pre-Complaint Counseling | G18: E -- Total Non-ADR Settlements with Monetary Benefits, Counselings | H18: <= | I18: I, Counselings | K18: =Profile!$D$3 -> 0 | L18: =Profile!$D$12 -> 2019 | P18: 20
A19: Pass | B19: =N('XML Mapping'!F35) -> 0 | C19: <= | D19: =SUMIF('XML Mapping'!C37:C54,'XML Mapping'!C35,'XML Mapping'!F37:F54) -> 0 | E19: PART I | F19: Pre-Complaint Counseling | G19: E -- Total Non-ADR Settlements with Monetary Benefits, Individuals | H19: <= | I19: E1 + E2 + E3 + E4 + E5 + E6 | K19: =Profile!$D$3 -> 0 | L19: =Profile!$D$12 -> 2019 | P19: 21
A20: =IF(IF(SUM(N('XML Mapping'!F49),N('XML Mapping'!F50))>0, AND(TRIM(B20)<>"5.", LEN(B20)>0), TRUE),"Pass","Fail") -> Pass | B20: ='PART I'!$E$13&"" -> 5. | C20: != | D20: =I20 -> 5. or is not NULL | E20: PART I | F20: Pre-Complaint Counseling | G20: If E.5, Counselings + E.5, Individuals > 0, then Description for E.5 | H20: != | I20: 5. or is not NULL | K20: =Profile!$D$3 -> 0 | L20: =Profile!$D$12 -> 2019 | P20: 26 | Q20: YES
A21: =IF(IF(SUM(N('XML Mapping'!F52),N('XML Mapping'!F53))>0, AND(TRIM(B21)<>"6.", LEN(B21)>0), TRUE),"Pass","Fail") -> Pass | B21: ='PART I'!$E$14&"" -> 6. | C21: != | D21: 6. or is not NULL | E21: PART I | F21: Pre-Complaint Counseling | G21: If E.6, Counselings + E.6, Individuals > 0, then Description for E.6 | H21: != | I21: 6. or is not NULL | K21: =Profile!$D$3 -> 0 | L21: =Profile!$D$12 -> 2019 | P21: 27 | Q21: YES
A22: =IF(B22<=D22,"Pass","Fail") -> Pass | B22: =N('XML Mapping'!F55) -> 0 | C22: <= | D22: =N('XML Mapping'!F57) + N('XML Mapping'!F63) + N('XML Mapping'!F69) + N('XML Mapping'!F71) + N('XML Mapping'!F73) + N('XML Mapping'!F79) + N('XML Mapping'!F81) + N('XML Mapping'!F83) + N('XML Mapping'!F85) + N('XML Mapping'!F91) + N('XML Mapping'!F93) + N('XML Mapping'!F95) + N('XML Mapping'!F97) + N('XML Mapping'!F99) -> 0 | E22: PART I | F22: Pre-Complaint Counseling | G22: F -- Total Non-ADR Settlements With Non-Monetary Benefits, Counselings | H22: <= | I22: F1 + F2 + F3 + F4 + F5 + F6 + F7 + F8 + F9 + F10 + F11 + F12 + F13 + F14 | K22: =Profile!$D$3 -> 0 | L22: =Profile!$D$12 -> 2019 | P22: 28
A23: Pass | B23: =N('XML Mapping'!F56) -> 0 | C23: <= | D23: =N('XML Mapping'!F58) + N('XML Mapping'!F64) + N('XML Mapping'!F70) + N('XML Mapping'!F72) + N('XML Mapping'!F74) + N('XML Mapping'!F80) + N('XML Mapping'!F82) + N('XML Mapping'!F84) + N('XML Mapping'!F86) + N('XML Mapping'!F92) + N('XML Mapping'!F94) + N('XML Mapping'!F96) + N('XML Mapping'!F98) + N('XML Mapping'!F100) -> 0 | E23: PART I | F23: Pre-Complaint Counseling | G23: F -- Total Non-ADR Settlements With Non-Monetary Benefits, Individuals | H23: <= | I23: F1 + F2 + F3 + F4 + F5 + F6 + F7 + F8 + F9 + F10 + F11 + F12 + F13 + F14 | K23: =Profile!$D$3 -> 0 | L23: =Profile!$D$12 -> 2019 | P23: 29
A24: Pass | B24: =N('XML Mapping'!F56) -> 0 | C24: <= | D24: =N('XML Mapping'!F169) -> 0 | E24: PART I | F24: Pre-Complaint Counseling | G24: F -- Total Non-ADR Settlements With Non-Monetary Benefits, Individuals | H24: <= | I24: I, Individuals | K24: =Profile!$D$3 -> 0 | L24: =Profile!$D$12 -> 2019 | P24: 30
A25: Pass | B25: =N('XML Mapping'!F55) -> 0 | C25: <= | D25: =N('XML Mapping'!F168) -> 0 | E25: PART I | F25: Pre-Complaint Counseling | G25: F -- Total Non-ADR Settlements With Non-Monetary Benefits, Counselings | H25: <= | I25: I, Counselings | K25: =Profile!$D$3 -> 0 | L25: =Profile!$D$12 -> 2019 | P25: 31
A26: Pass | B26: =N('XML Mapping'!F55) -> 0 | C26: <= | D26: =N('XML Mapping'!F24) -> 0 | E26: PART I | F26: Pre-Complaint Counseling | G26: F -- Total Non-ADR Settlements With Non-Monetary Benefits, Counselings | H26: <= | I26: D3a, Counselings | K26: =Profile!$D$3 -> 0 | L26: =Profile!$D$12 -> 2019 | N26: Missing from document | P26: 32
A27: Pass | B27: =N('XML Mapping'!F56) -> 0 | C27: <= | D27: =N('XML Mapping'!F25) -> 0 | E27: PART I | F27: Pre-Complaint Counseling | G27: F -- Total Non-ADR Settlements With Non-Monetary Benefits, Individuals | H27: <= | I27: D3a, Individuals | K27: =Profile!$D$3 -> 0 | L27: =Profile!$D$12 -> 2019 | N27: Missing from document | P27: 33
A28: =IF(IF(SUM(N('XML Mapping'!F97),N('XML Mapping'!F98))>0, AND(TRIM(B28)<>"13.", LEN(B28)>0), TRUE),"Pass","Fail") -> Pass | B28: ='PART I'!$E$40&"" -> 13. | C28: != | D28: =I28 -> 13. or is not NULL | E28: PART I | F28: Pre-Complaint Counseling | G28: If F.13, Counselings + F.13, Individuals > 0, then Description for F.13 | H28: != | I28: 13. or is not NULL | K28: =Profile!$D$3 -> 0 | L28: =Profile!$D$12 -> 2019 | P28: 38 | Q28: YES
A29: =IF(IF(SUM(N('XML Mapping'!F99),N('XML Mapping'!F100))>0, AND(TRIM(B29)<>"14.", LEN(B29)>0), TRUE),"Pass","Fail") -> Pass | B29: ='PART I'!$E$41&"" -> 14. | C29: != | D29: 14. or is not NULL | E29: PART I | F29: Pre-Complaint Counseling | G29: If F.14, Counselings + F.14, Individuals > 0, then Description for F.14 | H29: != | I29: 14. or is not NULL | K29: =Profile!$D$3 -> 0 | L29: =Profile!$D$12 -> 2019 | P29: 39 | Q29: YES
A30: =IF(B30<=D30,"Pass","Fail") -> Pass | B30: =N('XML Mapping'!F101) -> 0 | C30: <= | D30: =SUMIF('XML Mapping'!C104:C121,'XML Mapping'!C101,'XML Mapping'!F104:F121) -> 0 | E30: PART I | F30: Pre-Complaint Counseling | G30: G -- Total ADR Settlements with Monetary Benefits, Counselings | H30: <= | I30: G1 + G2 + G3 + G4 + G5 + G6 | K30: =Profile!$D$3 -> 0 | L30: =Profile!$D$12 -> 2019 | N30: Missing from document | P30: 40
A31: =IF(B31<=D31,"Pass","Fail") -> Pass | B31: =N('XML Mapping'!F102) -> 0 | C31: <= | D31: =N('XML Mapping'!F4334) -> 0 | E31: PART I | F31: Pre-Complaint Counseling | G31: G -- Total ADR Settlements with Monetary Benefits, Individuals | H31: <= | I31: Part X. E1a | K31: =Profile!$D$3 -> 0 | L31: =Profile!$D$12 -> 2019 | P31: 41
A32: =IF(B32<=D32,"Pass","Fail") -> Pass | B32: =N('XML Mapping'!F102) -> 0 | C32: <= | D32: =SUMIF('XML Mapping'!C104:C121,'XML Mapping'!C102,'XML Mapping'!F104:F121) -> 0 | E32: PART I | F32: Pre-Complaint Counseling | G32: G -- Total ADR Settlements with Monetary Benefits, Individuals | H32: <= | I32: G1 + G2 + G3 + G4 + G5 + G6 | K32: =Profile!$D$3 -> 0 | L32: =Profile!$D$12 -> 2019 | N32: Missing from document | P32: 42
A33: =IF(B33<=D33,"Pass","Fail") -> Pass | B33: =N('XML Mapping'!F101) -> 0 | C33: <= | D33: =N('XML Mapping'!$F$24) -> 0 | E33: PART I | F33: Pre-Complaint Counseling | G33: G -- Total ADR Settlements with Monetary Benefits, Counselings | H33: <= | I33: D3a, Counselings | K33: =Profile!$D$3 -> 0 | L33: =Profile!$D$12 -> 2019 | N33: Missing from document | P33: 43
A34: =IF(B34<=D34,"Pass","Fail") -> Pass | B34: =N('XML Mapping'!F102) -> 0 | C34: <= | D34: =N('XML Mapping'!$F$25) -> 0 | E34: PART I | F34: Pre-Complaint Counseling | G34: G -- Total ADR Settlements with Monetary Benefits, Individuals | H34: <= | I34: D3a, Individuals | K34: =Profile!$D$3 -> 0 | L34: =Profile!$D$12 -> 2019 | N34: Missing from document | P34: 44
A35: =IF(IF(SUM(N('XML Mapping'!F116),N('XML Mapping'!F117))>0, AND(TRIM(B35)<>"5.", LEN(B35)>0), TRUE),"Pass","Fail") -> Pass | B35: ='PART I'!$E$50&"" -> 5. | C35: != | D35: =I35 -> 5. or is not NULL | E35: PART I | F35: Pre-Complaint Counseling | G35: If G.5, Counselings + G.5, Individuals > 0, then Description for G.5 | H35: != | I35: 5. or is not NULL | K35: =Profile!$D$3 -> 0 | L35: =Profile!$D$12 -> 2019 | P35: 49 | Q35: YES
A36: =IF(IF(SUM(N('XML Mapping'!F119),N('XML Mapping'!F120))>0, AND(TRIM(B36)<>"6.", LEN(B36)>0), TRUE),"Pass","Fail") -> Pass | B36: ='PART I'!$E$51&"" -> 6. | C36: != | D36: 6. or is not NULL | E36: PART I | F36: Pre-Complaint Counseling | G36: If G.6, Counselings + G.6, Individuals > 0, then Description for G.6 | H36: != | I36: 6. or is not NULL | K36: =Profile!$D$3 -> 0 | L36: =Profile!$D$12 -> 2019 | P36: 50 | Q36: YES
A37: =IF(B37<=D37,"Pass","Fail") -> Pass | B37: =N('XML Mapping'!F122) -> 0 | C37: <= | D37: =N('XML Mapping'!$F$24) -> 0 | E37: PART I | F37: Pre-Complaint Counseling | G37: H -- Total ADR Settlements With Non-Monetary Benefits, Counselings | H37: <= | I37: D3a, Counselings | K37: =Profile!$D$3 -> 0 | L37: =Profile!$D$12 -> 2019 | P37: 51
A38: Pass | B38: =N('XML Mapping'!F123) -> 0 | C38: <= | D38: =N('XML Mapping'!$F$25) -> 0 | E38: PART I | F38: Pre-Complaint Counseling | G38: H -- Total ADR Settlements With Non-Monetary Benefits, Individuals | H38: <= | I38: D3a, Individuals | K38: =Profile!$D$3 -> 0 | L38: =Profile!$D$12 -> 2019 | P38: 52
A39: Pass | B39: =N('XML Mapping'!F122) -> 0 | C39: <= | D39: =N('XML Mapping'!F4333) -> 0 | E39: PART I | F39: Pre-Complaint Counseling | G39: H -- Total ADR Settlements With Non-Monetary Benefits, Counselings | H39: <= | I39: Part X. E1a | K39: =Profile!$D$3 -> 0 | L39: =Profile!$D$12 -> 2019 | P39: 53
A40: Pass | B40: =N('XML Mapping'!F123) -> 0 | C40: <= | D40: =N('XML Mapping'!F4334) -> 0 | E40: PART I | F40: Pre-Complaint Counseling | G40: H -- Total ADR Settlements With Non-Monetary Benefits, Individuals | H40: <= | I40: Part X. E1a | K40: =Profile!$D$3 -> 0 | L40: =Profile!$D$12 -> 2019 | P40: 54
A41: Pass | B41: =N('XML Mapping'!F122) -> 0 | C41: <= | D41: =N('XML Mapping'!F124) + N('XML Mapping'!F130) + N('XML Mapping'!F136) + N('XML Mapping'!F138) + N('XML Mapping'!F140) + N('XML Mapping'!F146) + N('XML Mapping'!F148) + N('XML Mapping'!F150) + N('XML Mapping'!F152) + N('XML Mapping'!F158) + N('XML Mapping'!F160) + N('XML Mapping'!F162) + N('XML Mapping'!F164) + N('XML Mapping'!F166) -> 0 | E41: PART I | F41: Pre-Complaint Counseling | G41: H -- Total ADR Settlements With Non-Monetary Benefits, Counselings | H41: <= | I41: H1 + H2 + H3 + H4 + H5 + H6 + H7 + H8 + H9 + H10 + H11 + H12 + H13 + H14 | K41: =Profile!$D$3 -> 0 | L41: =Profile!$D$12 -> 2019 | P41: 55
A42: Pass | B42: =N('XML Mapping'!F123) -> 0 | C42: <= | D42: =N('XML Mapping'!F125) + N('XML Mapping'!F131) + N('XML Mapping'!F137) + N('XML Mapping'!F139) + N('XML Mapping'!F141) + N('XML Mapping'!F147) + N('XML Mapping'!F149) + N('XML Mapping'!F151) + N('XML Mapping'!F153) + N('XML Mapping'!F159) + N('XML Mapping'!F161) + N('XML Mapping'!F163) + N('XML Mapping'!F165) + N('XML Mapping'!F167) -> 0 | E42: PART I | F42: Pre-Complaint Counseling | G42: H -- Total ADR Settlements With Non-Monetary Benefits, Individuals | H42: <= | I42: H1 + H2 + H3 + H4 + H5 + H6 + H7 + H8 + H9 + H10 + H11 + H12 + H13 + H14 | K42: =Profile!$D$3 -> 0 | L42: =Profile!$D$12 -> 2019 | P42: 56
A43: =IF(IF(SUM(N('XML Mapping'!F164),N('XML Mapping'!F165))>0, AND(TRIM(B43)<>"13.", LEN(B43)>0), TRUE),"Pass","Fail") -> Pass | B43: ='PART I'!$E$77&"" -> 13. | C43: != | D43: =I43 -> 13. or is not NULL | E43: PART I | F43: Pre-Complaint Counseling | G43: If H.13, Counselings + H.13, Individuals > 0, then Description for H.13 | H43: != | I43: 13. or is not NULL | K43: =Profile!$D$3 -> 0 | L43: =Profile!$D$12 -> 2019 | P43: 61 | Q43: YES
A44: =IF(IF(SUM(N('XML Mapping'!F166),N('XML Mapping'!F167))>0, AND(TRIM(B44)<>"14.", LEN(B44)>0), TRUE),"Pass","Fail") -> Pass | B44: ='PART I'!$E$78&"" -> 14. | C44: != | D44: 14. or is not NULL | E44: PART I | F44: Pre-Complaint Counseling | G44: If H.14, Counselings + H.14, Individuals > 0, then Description for H.14 | H44: != | I44: 14. or is not NULL | K44: =Profile!$D$3 -> 0 | L44: =Profile!$D$12 -> 2019 | P44: 62 | Q44: YES
A45: =IF(B45<=D45,"Pass","Fail") -> Pass | B45: =N('XML Mapping'!$F$168) -> 0 | C45: <= | D45: =N('XML Mapping'!F34) + N('XML Mapping'!F55) -> 0 | E45: PART I | F45: Pre-Complaint Counseling | G45: I -- Total NON-ADR SETTLEMENTS, Counselings | H45: <= | I45: E + F | K45: =Profile!$D$3 -> 0 | L45: =Profile!$D$12 -> 2019 | P45: 63
A46: =IF(B46=D46,"Pass","Fail") -> Pass | B46: =N('XML Mapping'!$F$168) -> 0 | C46: = | D46: =IF(ISERROR(N('XML Mapping'!F24)-N('XML Mapping'!F4333)),0,N('XML Mapping'!F24)-N('XML Mapping'!F4333)) -> 0 | E46: PART I | F46: Pre-Complaint Counseling | G46: I -- Total NON-ADR SETTLEMENTS, Counselings | H46: = | I46: D3a - Part X. E1a, Counselings | K46: =Profile!$D$3 -> 0 | L46: =Profile!$D$12 -> 2019 | N46: Missing from document | P46: 64
A47: =IF(B47>=D47,"Pass","Fail") -> Pass | B47: =N('XML Mapping'!$F$168) -> 0 | C47: >= | D47: =N('XML Mapping'!F55) -> 0 | E47: PART I | F47: Pre-Complaint Counseling | G47: I -- Total NON-ADR SETTLEMENTS, Counselings | H47: >= | I47: F, Counselings | K47: =Profile!$D$3 -> 0 | L47: =Profile!$D$12 -> 2019 | P47: 65
A48: =IF(B48>=D48,"Pass","Fail") -> Pass | B48: =N('XML Mapping'!$F$169) -> 0 | C48: >= | D48: =N('XML Mapping'!F56) -> 0 | E48: PART I | F48: Pre-Complaint Counseling | G48: I -- Total NON-ADR SETTLEMENTS - Individuals | H48: >= | I48: F, Individuals | K48: =Profile!$D$3 -> 0 | L48: =Profile!$D$12 -> 2019 | P48: 66
A49: =IF(B49>=D49,"Pass","Fail") -> Pass | B49: =N('XML Mapping'!$F$168) -> 0 | C49: >= | D49: =N('XML Mapping'!F34) -> 0 | E49: PART I | F49: Pre-Complaint Counseling | G49: I -- Total NON-ADR SETTLEMENTS, Counselings | H49: >= | I49: E, Counselings | K49: =Profile!$D$3 -> 0 | L49: =Profile!$D$12 -> 2019 | P49: 67
A50: =IF(B50>=D50,"Pass","Fail") -> Pass | B50: =N('XML Mapping'!$F$169) -> 0 | C50: >= | D50: =N('XML Mapping'!F35) -> 0 | E50: PART I | F50: Pre-Complaint Counseling | G50: I -- Total NON-ADR SETTLEMENTS - Individuals | H50: >= | I50: E, Individuals | K50: =Profile!$D$3 -> 0 | L50: =Profile!$D$12 -> 2019 | P50: 68
A51: =IF(B51<=D51,"Pass","Fail") -> Pass | B51: =N('XML Mapping'!F169) -> 0 | C51: <= | D51: =N('XML Mapping'!F35) + N('XML Mapping'!F56) -> 0 | E51: PART I | F51: Pre-Complaint Counseling | G51: I -- Total NON-ADR SETTLEMENTS - Individuals | H51: <= | I51: E + F | K51: =Profile!$D$3 -> 0 | L51: =Profile!$D$12 -> 2019 | P51: 69
A52: =IF(B52>=D52,"Pass","Fail") -> Pass | B52: =N('XML Mapping'!F102)+N('XML Mapping'!F123) -> 0 | C52: >= | D52: =N('XML Mapping'!F4334) -> 0 | E52: PART I | F52: Pre-Complaint Counseling | G52: G+H -- Total ADR Settlements with Monetary Benefits (Individuals) + Total ADR Settlements With Non-Monetary Benefits - Individuals | H52: >= | I52: Part X. E1a | K52: =Profile!$D$3 -> 0 | L52: =Profile!$D$12 -> 2019 | P52: 70
A53: =IF(B53>=D53,"Pass","Fail") -> Pass | B53: =N('XML Mapping'!F101)+N('XML Mapping'!F122) -> 0 | C53: >= | D53: =N('XML Mapping'!F4333) -> 0 | E53: PART I | F53: Pre-Complaint Counseling | G53: G+H -- Total ADR Settlements with Monetary Benefits + Total ADR Settlements With Non-Monetary Benefits | H53: >= | I53: Part X. E1a | K53: =Profile!$D$3 -> 0 | L53: =Profile!$D$12 -> 2019 | N53: Missing from template | P53: 71
A54: =IF(AND(N('XML Mapping'!F37) <> 0,N('XML Mapping'!F37)>0),IF(AND(ISNUMBER(B54),B54>D54),"Pass","Fail"),"Pass") -> Pass | B54: =N('XML Mapping'!F39) -> 0 | C54: > | D54: =I54 -> 0 | E54: PART I | F54: Pre-Complaint Counseling | G54: If E.1. Compensatory Damages, Counselings > 0, then E.1. Compensatory Damages, Amount | H54: > | I54: 0 | K54: =Profile!$D$3 -> 0 | L54: =Profile!$D$12 -> 2019 | N54: Taken from return reasons | P54: 72
A55: =IF(AND(N('XML Mapping'!F40) <> 0,N('XML Mapping'!F40)>0),IF(AND(ISNUMBER(B55),B55>D55),"Pass","Fail"),"Pass") -> Pass | B55: =N('XML Mapping'!F42) -> 0 | C55: > | D55: 0 | E55: PART I | F55: Pre-Complaint Counseling | G55: If E.2. Backpay/Frontpay, Counselings > 0, then E.2. Backpay/Frontpay, Amount | H55: > | I55: 0 | K55: =Profile!$D$3 -> 0 | L55: =Profile!$D$12 -> 2019 | N55: Taken from return reasons | P55: 73
A56: =IF(AND(N('XML Mapping'!F43) <> 0,N('XML Mapping'!F43)>0),IF(AND(ISNUMBER(B56),B56>D56),"Pass","Fail"),"Pass") -> Pass | B56: =N('XML Mapping'!F45) -> 0 | C56: > | D56: 0 | E56: PART I | F56: Pre-Complaint Counseling | G56: If E.3. Lump Sum Payment, Counselings > 0, then E.3. Lump Sum Payment, Amount | H56: > | I56: 0 | K56: =Profile!$D$3 -> 0 | L56: =Profile!$D$12 -> 2019 | N56: Taken from return reasons | P56: 74
A57: =IF(AND(N('XML Mapping'!F46) <> 0,N('XML Mapping'!F46)>0),IF(AND(ISNUMBER(B57),B57>D57),"Pass","Fail"),"Pass") -> Pass | B57: =N('XML Mapping'!F48) -> 0 | C57: > | D57: 0 | E57: PART I | F57: Pre-Complaint Counseling | G57: If E.4. Attorney Fees And Costs, Counselings > 0, then E.4. Attorney Fees And Costs, Amount | H57: > | I57: 0 | K57: =Profile!$D$3 -> 0 | L57: =Profile!$D$12 -> 2019 | N57: Taken from return reasons | P57: 75
A58: =IF(AND(N('XML Mapping'!F49) <> 0,N('XML Mapping'!F49)>0),IF(AND(ISNUMBER(B58),B58>D58),"Pass","Fail"),"Pass") -> Pass | B58: =N('XML Mapping'!F51) -> 0 | C58: > | D58: 0 | E58: PART I | F58: Pre-Complaint Counseling | G58: If E.5. , Counselings > 0, then E.5. , Amount | H58: > | I58: 0 | K58: =Profile!$D$3 -> 0 | L58: =Profile!$D$12 -> 2019 | P58: 76
A59: =IF(AND(N('XML Mapping'!F52) <> 0,N('XML Mapping'!F52)>0),IF(AND(ISNUMBER(B59),B59>D59),"Pass","Fail"),"Pass") -> Pass | B59: =N('XML Mapping'!F54) -> 0 | C59: > | D59: 0 | E59: PART I | F59: Pre-Complaint Counseling | G59: If E.6. , Counselings > 0, then E.6. , Amount | H59: > | I59: 0 | K59: =Profile!$D$3 -> 0 | L59: =Profile!$D$12 -> 2019 | P59: 77
A60: =IF(AND(N('XML Mapping'!F38) <> 0,N('XML Mapping'!F38)>0),IF(AND(ISNUMBER(B60),B60>D60),"Pass","Fail"),"Pass") -> Pass | B60: =N('XML Mapping'!F39) -> 0 | C60: > | D60: 0 | E60: PART I | F60: Pre-Complaint Counseling | G60: If E.1. Compensatory Damages, Individuals > 0, then E.1. Compensatory Damages, Amount | H60: > | I60: 0 | K60: =Profile!$D$3 -> 0 | L60: =Profile!$D$12 -> 2019 | P60: 78
A61: =IF(AND(N('XML Mapping'!F41) <> 0,N('XML Mapping'!F41)>0),IF(AND(ISNUMBER(B61),B61>D61),"Pass","Fail"),"Pass") -> Pass | B61: =N('XML Mapping'!F42) -> 0 | C61: > | D61: 0 | E61: PART I | F61: Pre-Complaint Counseling | G61: If E.2. Backpay/Frontpay, Individuals > 0, then E.2. Backpay/Frontpay, Amount | H61: > | I61: 0 | K61: =Profile!$D$3 -> 0 | L61: =Profile!$D$12 -> 2019 | P61: 79
A62: =IF(AND(N('XML Mapping'!F44) <> 0,N('XML Mapping'!F44)>0),IF(AND(ISNUMBER(B62),B62>D62),"Pass","Fail"),"Pass") -> Pass | B62: =N('XML Mapping'!F45) -> 0 | C62: > | D62: 0 | E62: PART I | F62: Pre-Complaint Counseling | G62: If E.3. Lump Sum Payment, Individuals > 0, then E.3. Lump Sum Payment, Amount | H62: > | I62: 0 | K62: =Profile!$D$3 -> 0 | L62: =Profile!$D$12 -> 2019 | P62: 80
A63: =IF(AND(N('XML Mapping'!F47) <> 0,N('XML Mapping'!F47)>0),IF(AND(ISNUMBER(B63),B63>D63),"Pass","Fail"),"Pass") -> Pass | B63: =N('XML Mapping'!F48) -> 0 | C63: > | D63: 0 | E63: PART I | F63: Pre-Complaint Counseling | G63: If E.4. Attorney Fees And Costs, Individuals > 0, then E.4. Attorney Fees And Costs, Amount | H63: > | I63: 0 | K63: =Profile!$D$3 -> 0 | L63: =Profile!$D$12 -> 2019 | P63: 81
A64: =IF(AND(N('XML Mapping'!F50) <> 0,N('XML Mapping'!F50)>0),IF(AND(ISNUMBER(B64),B64>D64),"Pass","Fail"),"Pass") -> Pass | B64: =N('XML Mapping'!F51) -> 0 | C64: > | D64: 0 | E64: PART I | F64: Pre-Complaint Counseling | G64: If E.5. , Individuals > 0, then E.5. , Amount | H64: > | I64: 0 | K64: =Profile!$D$3 -> 0 | L64: =Profile!$D$12 -> 2019 | P64: 82
A65: =IF(AND(N('XML Mapping'!F53) <> 0,N('XML Mapping'!F53)>0),IF(AND(ISNUMBER(B65),B65>D65),"Pass","Fail"),"Pass") -> Pass | B65: =N('XML Mapping'!F54) -> 0 | C65: > | D65: 0 | E65: PART I | F65: Pre-Complaint Counseling | G65: If E.6. , Individuals > 0, then E.6. , Amount | H65: > | I65: 0 | K65: =Profile!$D$3 -> 0 | L65: =Profile!$D$12 -> 2019 | P65: 83
A66: =IF(AND(N('XML Mapping'!F$39) <> 0,N('XML Mapping'!F$39)>0),IF(AND(ISNUMBER(B66),B66>D66),"Pass","Fail"),"Pass") -> Pass | B66: =N('XML Mapping'!F37) -> 0 | C66: > | D66: 0 | E66: PART I | F66: Pre-Complaint Counseling | G66: If E.1. Compensatory Damages, Amount > 0, then E.1. Compensatory Damages, Counselings | H66: > | I66: 0 | K66: =Profile!$D$3 -> 0 | L66: =Profile!$D$12 -> 2019 | P66: 84
A67: =IF(AND(N('XML Mapping'!F$42) <> 0,N('XML Mapping'!F$42)>0),IF(AND(ISNUMBER(B67),B67>D67),"Pass","Fail"),"Pass") -> Pass | B67: =N('XML Mapping'!F40) -> 0 | C67: > | D67: 0 | E67: PART I | F67: Pre-Complaint Counseling | G67: If E.2. Backpay/Frontpay, Amount > 0, then E.2. Backpay/Frontpay, Counselings | H67: > | I67: 0 | K67: =Profile!$D$3 -> 0 | L67: =Profile!$D$12 -> 2019 | P67: 85
A68: =IF(AND(N('XML Mapping'!F$45) <> 0,N('XML Mapping'!F$45)>0),IF(AND(ISNUMBER(B68),B68>D68),"Pass","Fail"),"Pass") -> Pass | B68: =N('XML Mapping'!F43) -> 0 | C68: > | D68: 0 | E68: PART I | F68: Pre-Complaint Counseling | G68: If E.3. Lump Sum Payment, Amount > 0, then E.3. Lump Sum Payment, Counselings | H68: > | I68: 0 | K68: =Profile!$D$3 -> 0 | L68: =Profile!$D$12 -> 2019 | P68: 86
A69: =IF(AND(N('XML Mapping'!F$48) <> 0,N('XML Mapping'!F$48)>0),IF(AND(ISNUMBER(B69),B69>D69),"Pass","Fail"),"Pass") -> Pass | B69: =N('XML Mapping'!F46) -> 0 | C69: > | D69: 0 | E69: PART I | F69: Pre-Complaint Counseling | G69: If E.4. Attorney Fees And Costs, Amount > 0, then E.4. Attorney Fees And Costs, Counselings | H69: > | I69: 0 | K69: =Profile!$D$3 -> 0 | L69: =Profile!$D$12 -> 2019 | P69: 87
A70: =IF(AND(N('XML Mapping'!F$51) <> 0,N('XML Mapping'!F$51)>0),IF(AND(ISNUMBER(B70),B70>D70),"Pass","Fail"),"Pass") -> Pass | B70: =N('XML Mapping'!F49) -> 0 | C70: > | D70: 0 | E70: PART I | F70: Pre-Complaint Counseling | G70: If E.5. , Amount > 0, then E.5. , Counselings | H70: > | I70: 0 | K70: =Profile!$D$3 -> 0 | L70: =Profile!$D$12 -> 2019 | P70: 88
A71: =IF(AND(N('XML Mapping'!F$54) <> 0,N('XML Mapping'!F$54)>0),IF(AND(ISNUMBER(B71),B71>D71),"Pass","Fail"),"Pass") -> Pass | B71: =N('XML Mapping'!F52) -> 0 | C71: > | D71: 0 | E71: PART I | F71: Pre-Complaint Counseling | G71: If E.6. , Amount > 0, then E.6. , Counselings | H71: > | I71: 0 | K71: =Profile!$D$3 -> 0 | L71: =Profile!$D$12 -> 2019 | P71: 89
A72: =IF(AND(N('XML Mapping'!F$39) <> 0,N('XML Mapping'!F$39)>0),IF(AND(ISNUMBER(B72),B72>D72),"Pass","Fail"),"Pass") -> Pass | B72: =N('XML Mapping'!F38) -> 0 | C72: > | D72: 0 | E72: PART I | F72: Pre-Complaint Counseling | G72: If E.1. Compensatory Damages, Amount > 0, then E.1. Compensatory Damages, Individuals | H72: > | I72: 0 | K72: =Profile!$D$3 -> 0 | L72: =Profile!$D$12 -> 2019 | P72: 90
A73: =IF(AND(N('XML Mapping'!F$42) <> 0,N('XML Mapping'!F$42)>0),IF(AND(ISNUMBER(B73),B73>D73),"Pass","Fail"),"Pass") -> Pass | B73: =N('XML Mapping'!F41) -> 0 | C73: > | D73: 0 | E73: PART I | F73: Pre-Complaint Counseling | G73: If E.2. Backpay/Frontpay, Amount > 0, then E.2. Backpay/Frontpay, Individuals | H73: > | I73: 0 | K73: =Profile!$D$3 -> 0 | L73: =Profile!$D$12 -> 2019 | P73: 91
A74: =IF(AND(N('XML Mapping'!F$45) <> 0,N('XML Mapping'!F$45)>0),IF(AND(ISNUMBER(B74),B74>D74),"Pass","Fail"),"Pass") -> Pass | B74: =N('XML Mapping'!F44) -> 0 | C74: > | D74: 0 | E74: PART I | F74: Pre-Complaint Counseling | G74: If E.3. Lump Sum Payment, Amount > 0, then E.3. Lump Sum Payment, Individuals | H74: > | I74: 0 | K74: =Profile!$D$3 -> 0 | L74: =Profile!$D$12 -> 2019 | P74: 92
A75: =IF(AND(N('XML Mapping'!F$48) <> 0,N('XML Mapping'!F$48)>0),IF(AND(ISNUMBER(B75),B75>D75),"Pass","Fail"),"Pass") -> Pass | B75: =N('XML Mapping'!F47) -> 0 | C75: > | D75: 0 | E75: PART I | F75: Pre-Complaint Counseling | G75: If E.4. Attorney Fees And Costs, Amount > 0, then E.4. Attorney Fees And Costs, Individuals | H75: > | I75: 0 | K75: =Profile!$D$3 -> 0 | L75: =Profile!$D$12 -> 2019 | P75: 93
A76: =IF(AND(N('XML Mapping'!F$51) <> 0,N('XML Mapping'!F$51)>0),IF(AND(ISNUMBER(B76),B76>D76),"Pass","Fail"),"Pass") -> Pass | B76: =N('XML Mapping'!F50) -> 0 | C76: > | D76: 0 | E76: PART I | F76: Pre-Complaint Counseling | G76: If E.5. , Amount > 0, then E.5. , Individuals | H76: > | I76: 0 | K76: =Profile!$D$3 -> 0 | L76: =Profile!$D$12 -> 2019 | P76: 94
A77: =IF(AND(N('XML Mapping'!F$54) <> 0,N('XML Mapping'!F$54)>0),IF(AND(ISNUMBER(B77),B77>D77),"Pass","Fail"),"Pass") -> Pass | B77: =N('XML Mapping'!F53) -> 0 | C77: > | D77: 0 | E77: PART I | F77: Pre-Complaint Counseling | G77: If E.6. , Amount > 0, then E.6. , Individuals | H77: > | I77: 0 | K77: =Profile!$D$3 -> 0 | L77: =Profile!$D$12 -> 2019 | P77: 95
A78: =IF(AND(N('XML Mapping'!F104) <> 0,N('XML Mapping'!F104)>0),IF(AND(ISNUMBER(B78),B78>D78),"Pass","Fail"),"Pass") -> Pass | B78: =N('XML Mapping'!F106) -> 0 | C78: > | D78: 0 | E78: PART I | F78: Pre-Complaint Counseling | G78: If G.1. Compensatory Damages, Counselings > 0, then G.1. Compensatory Damages, Amount | H78: > | I78: 0 | K78: =Profile!$D$3 -> 0 | L78: =Profile!$D$12 -> 2019 | N78: Taken from return reasons | P78: 96
A79: =IF(AND(N('XML Mapping'!F107) <> 0,N('XML Mapping'!F107)>0),IF(AND(ISNUMBER(B79),B79>D79),"Pass","Fail"),"Pass") -> Pass | B79: =N('XML Mapping'!F109) -> 0 | C79: > | D79: 0 | E79: PART I | F79: Pre-Complaint Counseling | G79: If G.2. Backpay/Frontpay, Counselings > 0, then G.2. Backpay/Frontpay, Amount | H79: > | I79: 0 | K79: =Profile!$D$3 -> 0 | L79: =Profile!$D$12 -> 2019 | N79: Taken from return reasons | P79: 97
A80: =IF(AND(N('XML Mapping'!F110) <> 0,N('XML Mapping'!F110)>0),IF(AND(ISNUMBER(B80),B80>D80),"Pass","Fail"),"Pass") -> Pass | B80: =N('XML Mapping'!F112) -> 0 | C80: > | D80: 0 | E80: PART I | F80: Pre-Complaint Counseling | G80: If G.3. Lump Sum Payment, Counselings > 0, then G.3. Lump Sum Payment, Amount | H80: > | I80: 0 | K80: =Profile!$D$3 -> 0 | L80: =Profile!$D$12 -> 2019 | N80: Taken from return reasons | P80: 98
A81: =IF(AND(N('XML Mapping'!F113 <> 0),N('XML Mapping'!F113)>0),IF(AND(ISNUMBER(B81),B81>D81),"Pass","Fail"),"Pass") -> Pass | B81: =N('XML Mapping'!F115) -> 0 | C81: > | D81: 0 | E81: PART I | F81: Pre-Complaint Counseling | G81: If G.4. Attorney Fees And Costs, Counselings > 0, then G.4. Attorney Fees And Costs, Amount | H81: > | I81: 0 | K81: =Profile!$D$3 -> 0 | L81: =Profile!$D$12 -> 2019 | N81: Taken from return reasons | P81: 99
A82: =IF(AND(N('XML Mapping'!F116) <> 0,N('XML Mapping'!F116)>0),IF(AND(ISNUMBER(B82),B82>D82),"Pass","Fail"),"Pass") -> Pass | B82: =N('XML Mapping'!F118) -> 0 | C82: > | D82: 0 | E82: PART I | F82: Pre-Complaint Counseling | G82: If G.5. , Counselings > 0, then G.5. , Amount | H82: > | I82: 0 | K82: =Profile!$D$3 -> 0 | L82: =Profile!$D$12 -> 2019 | P82: 100
A83: =IF(AND(N('XML Mapping'!F119) <> 0,N('XML Mapping'!F119)>0),IF(AND(ISNUMBER(B83),B83>D83),"Pass","Fail"),"Pass") -> Pass | B83: =N('XML Mapping'!F121) -> 0 | C83: > | D83: 0 | E83: PART I | F83: Pre-Complaint Counseling | G83: If G.6. , Counselings > 0, then G.6. , Amount | H83: > | I83: 0 | K83: =Profile!$D$3 -> 0 | L83: =Profile!$D$12 -> 2019 | P83: 101
A84: =IF(AND(N('XML Mapping'!F105) <> 0,N('XML Mapping'!F105)>0),IF(AND(ISNUMBER(B84),B84>D84),"Pass","Fail"),"Pass") -> Pass | B84: =N('XML Mapping'!F106) -> 0 | C84: > | D84: 0 | E84: PART I | F84: Pre-Complaint Counseling | G84: If G.1. Compensatory Damages, Individuals > 0, then G.1. Compensatory Damages, Amount | H84: > | I84: 0 | K84: =Profile!$D$3 -> 0 | L84: =Profile!$D$12 -> 2019 | P84: 102
A85: =IF(AND(N('XML Mapping'!F108) <> 0,N('XML Mapping'!F108)>0),IF(AND(ISNUMBER(B85),B85>D85),"Pass","Fail"),"Pass") -> Pass | B85: =N('XML Mapping'!F109) -> 0 | C85: > | D85: 0 | E85: PART I | F85: Pre-Complaint Counseling | G85: If G.2. Backpay/Frontpay, Individuals > 0, then G.2. Backpay/Frontpay, Amount | H85: > | I85: 0 | K85: =Profile!$D$3 -> 0 | L85: =Profile!$D$12 -> 2019 | P85: 103
A86: =IF(AND(N('XML Mapping'!F111) <> 0,N('XML Mapping'!F111)>0),IF(AND(ISNUMBER(B86),B86>D86),"Pass","Fail"),"Pass") -> Pass | B86: =N('XML Mapping'!F112) -> 0 | C86: > | D86: 0 | E86: PART I | F86: Pre-Complaint Counseling | G86: If G.3. Lump Sum Payment, Individuals > 0, then G.3. Lump Sum Payment, Amount | H86: > | I86: 0 | K86: =Profile!$D$3 -> 0 | L86: =Profile!$D$12 -> 2019 | P86: 104
A87: =IF(AND(N('XML Mapping'!F114 <> 0),N('XML Mapping'!F114)>0),IF(AND(ISNUMBER(B87),B87>D87),"Pass","Fail"),"Pass") -> Pass | B87: =N('XML Mapping'!F115) -> 0 | C87: > | D87: 0 | E87: PART I | F87: Pre-Complaint Counseling | G87: If G.4. Attorney Fees And Costs, Individuals > 0, then G.4. Attorney Fees And Costs, Amount | H87: > | I87: 0 | K87: =Profile!$D$3 -> 0 | L87: =Profile!$D$12 -> 2019 | P87: 105
A88: =IF(AND(N('XML Mapping'!F117) <> 0,N('XML Mapping'!F117)>0),IF(AND(ISNUMBER(B88),B88>D88),"Pass","Fail"),"Pass") -> Pass | B88: =N('XML Mapping'!F118) -> 0 | C88: > | D88: 0 | E88: PART I | F88: Pre-Complaint Counseling | G88: If G.5. , Individuals > 0, then G.5. , Amount | H88: > | I88: 0 | K88: =Profile!$D$3 -> 0 | L88: =Profile!$D$12 -> 2019 | P88: 106
A89: =IF(AND(N('XML Mapping'!F120) <> 0,N('XML Mapping'!F120)>0),IF(AND(ISNUMBER(B89),B89>D89),"Pass","Fail"),"Pass") -> Pass | B89: =N('XML Mapping'!F121) -> 0 | C89: > | D89: 0 | E89: PART I | F89: Pre-Complaint Counseling | G89: If G.6. , Individuals > 0, then G.6. , Amount | H89: > | I89: 0 | K89: =Profile!$D$3 -> 0 | L89: =Profile!$D$12 -> 2019 | P89: 107
A90: =IF(AND(N('XML Mapping'!F$106) <> 0,N('XML Mapping'!F$106)>0),IF(AND(ISNUMBER(B90),B90>D90),"Pass","Fail"),"Pass") -> Pass | B90: =N('XML Mapping'!F104) -> 0 | C90: > | D90: 0 | E90: PART I | F90: Pre-Complaint Counseling | G90: If G.1. Compensatory Damages, Amount > 0, then G.1. Compensatory Damages, Counselings | H90: > | I90: 0 | K90: =Profile!$D$3 -> 0 | L90: =Profile!$D$12 -> 2019 | P90: 108
A91: =IF(AND(N('XML Mapping'!F$109) <> 0,N('XML Mapping'!F$109)>0),IF(AND(ISNUMBER(B91),B91>D91),"Pass","Fail"),"Pass") -> Pass | B91: =N('XML Mapping'!F107) -> 0 | C91: > | D91: 0 | E91: PART I | F91: Pre-Complaint Counseling | G91: If G.2. Backpay/Frontpay, Amount > 0, then G.2. Backpay/Frontpay, Counselings | H91: > | I91: 0 | K91: =Profile!$D$3 -> 0 | L91: =Profile!$D$12 -> 2019 | P91: 109
A92: =IF(AND(N('XML Mapping'!F$112) <> 0,N('XML Mapping'!F$112)>0),IF(AND(ISNUMBER(B92),B92>D92),"Pass","Fail"),"Pass") -> Pass | B92: =N('XML Mapping'!F110) -> 0 | C92: > | D92: 0 | E92: PART I | F92: Pre-Complaint Counseling | G92: If G.3. Lump Sum Payment, Amount > 0, then G.3. Lump Sum Payment, Counselings | H92: > | I92: 0 | K92: =Profile!$D$3 -> 0 | L92: =Profile!$D$12 -> 2019 | P92: 110
A93: =IF(AND(N('XML Mapping'!F$115) <> 0,N('XML Mapping'!F$115)>0),IF(AND(ISNUMBER(B93),B93>D93),"Pass","Fail"),"Pass") -> Pass | B93: =N('XML Mapping'!F113) -> 0 | C93: > | D93: 0 | E93: PART I | F93: Pre-Complaint Counseling | G93: If G.4. Attorney Fees And Costs, Amount > 0, then G.4. Attorney Fees And Costs, Counselings | H93: > | I93: 0 | K93: =Profile!$D$3 -> 0 | L93: =Profile!$D$12 -> 2019 | P93: 111
A94: =IF(AND(N('XML Mapping'!F$118) <> 0,N('XML Mapping'!F$118)>0),IF(AND(ISNUMBER(B94),B94>D94),"Pass","Fail"),"Pass") -> Pass | B94: =N('XML Mapping'!F116) -> 0 | C94: > | D94: 0 | E94: PART I | F94: Pre-Complaint Counseling | G94: If G.5. , Amount > 0, then G.5. , Counselings | H94: > | I94: 0 | K94: =Profile!$D$3 -> 0 | L94: =Profile!$D$12 -> 2019 | P94: 112
A95: =IF(AND(N('XML Mapping'!F$121) <> 0,N('XML Mapping'!F$121)>0),IF(AND(ISNUMBER(B95),B95>D95),"Pass","Fail"),"Pass") -> Pass | B95: =N('XML Mapping'!F119) -> 0 | C95: > | D95: 0 | E95: PART I | F95: Pre-Complaint Counseling | G95: If G.6. , Amount > 0, then G.6. , Counselings | H95: > | I95: 0 | K95: =Profile!$D$3 -> 0 | L95: =Profile!$D$12 -> 2019 | P95: 113
A96: =IF(AND(N('XML Mapping'!F$106) <> 0,N('XML Mapping'!F$106)>0),IF(AND(ISNUMBER(B96),B96>D96),"Pass","Fail"),"Pass") -> Pass | B96: =N('XML Mapping'!F105) -> 0 | C96: > | D96: 0 | E96: PART I | F96: Pre-Complaint Counseling | G96: If G.1. Compensatory Damages, Amount > 0, then G.1. Compensatory Damages, Individuals | H96: > | I96: 0 | K96: =Profile!$D$3 -> 0 | L96: =Profile!$D$12 -> 2019 | P96: 114
A97: =IF(AND(N('XML Mapping'!F$109) <> 0,N('XML Mapping'!F$109)>0),IF(AND(ISNUMBER(B97),B97>D97),"Pass","Fail"),"Pass") -> Pass | B97: =N('XML Mapping'!F108) -> 0 | C97: > | D97: 0 | E97: PART I | F97: Pre-Complaint Counseling | G97: If G.2. Backpay/Frontpay, Amount > 0, then G.2. Backpay/Frontpay, Individuals | H97: > | I97: 0 | K97: =Profile!$D$3 -> 0 | L97: =Profile!$D$12 -> 2019 | P97: 115
A98: =IF(AND(N('XML Mapping'!F$112) <> 0,N('XML Mapping'!F$112)>0),IF(AND(ISNUMBER(B98),B98>D98),"Pass","Fail"),"Pass") -> Pass | B98: =N('XML Mapping'!F111) -> 0 | C98: > | D98: 0 | E98: PART I | F98: Pre-Complaint Counseling | G98: If G.3. Lump Sum Payment, Amount > 0, then G.3. Lump Sum Payment, Individuals | H98: > | I98: 0 | K98: =Profile!$D$3 -> 0 | L98: =Profile!$D$12 -> 2019 | P98: 116
A99: =IF(AND(N('XML Mapping'!F$115) <> 0,N('XML Mapping'!F$115)>0),IF(AND(ISNUMBER(B99),B99>D99),"Pass","Fail"),"Pass") -> Pass | B99: =N('XML Mapping'!F114) -> 0 | C99: > | D99: 0 | E99: PART I | F99: Pre-Complaint Counseling | G99: If G.4. Attorney Fees And Costs, Amount > 0, then G.4. Attorney Fees And Costs, Individuals | H99: > | I99: 0 | K99: =Profile!$D$3 -> 0 | L99: =Profile!$D$12 -> 2019 | P99: 117
A100: =IF(AND(N('XML Mapping'!F$118) <> 0,N('XML Mapping'!F$118)>0),IF(AND(ISNUMBER(B100),B100>D100),"Pass","Fail"),"Pass") -> Pass | B100: =N('XML Mapping'!F117) -> 0 | C100: > | D100: 0 | E100: PART I | F100: Pre-Complaint Counseling | G100: If G.5. , Amount > 0, then G.5. , Individuals | H100: > | I100: 0 | K100: =Profile!$D$3 -> 0 | L100: =Profile!$D$12 -> 2019 | P100: 118
A101: =IF(AND(N('XML Mapping'!F$121) <> 0,N('XML Mapping'!F$121)>0),IF(AND(ISNUMBER(B101),B101>D101),"Pass","Fail"),"Pass") -> Pass | B101: =N('XML Mapping'!F120) -> 0 | C101: > | D101: 0 | E101: PART I | F101: Pre-Complaint Counseling | G101: If G.6. , Amount > 0, then G.6. , Individuals | H101: > | I101: 0 | K101: =Profile!$D$3 -> 0 | L101: =Profile!$D$12 -> 2019 | P101: 119
A102: =IF(D102>0, IF(AND(B102>0,B102<=D102),"Pass","Fail"), "Pass") -> Pass | B102: =N('XML Mapping'!F3) -> 22 | C102: <= | D102: =N('XML Mapping'!F2) -> 24 | E102: PART I | F102: Pre-Complaint Counseling | G102: If C. TOTAL COMPLETED/ENDED COUNSELINGS,COUNSELINGS > 0, Then Individuals | H102: <= | I102: Counselings | K102: =Profile!$D$3 -> 0 | L102: =Profile!$D$12 -> 2019 | P102: 120
A103: Pass | B103: =N('XML Mapping'!F5) -> 16 | C103: <= | D103: =N('XML Mapping'!F4) -> 18 | E103: PART I | F103: Pre-Complaint Counseling | G103: If C.1. COUNSELED WITHIN 30 DAYS,COUNSELINGS > 0, Then Individuals | H103: <= | I103: Counselings | K103: =Profile!$D$3 -> 0 | L103: =Profile!$D$12 -> 2019 | P103: 121
A104: Pass | B104: =N('XML Mapping'!F7) -> 6 | C104: <= | D104: =N('XML Mapping'!F6) -> 6 | E104: PART I | F104: Pre-Complaint Counseling | G104: If C.2. COUNSELED WITHIN 31 TO 90 DAYS,COUNSELINGS > 0, Then Individuals | H104: <= | I104: Counselings | K104: =Profile!$D$3 -> 0 | L104: =Profile!$D$12 -> 2019 | P104: 122
A105: Pass | B105: =N('XML Mapping'!F9) -> 4 | C105: <= | D105: =N('XML Mapping'!F8) -> 4 | E105: PART I | F105: Pre-Complaint Counseling | G105: If C.2.a. COUNSELED WITHIN WRITTEN EXTENSION PERIOD NO LONGER THAN 60 DAYS,COUNSELINGS > 0, Then Individuals | H105: <= | I105: Counselings | K105: =Profile!$D$3 -> 0 | L105: =Profile!$D$12 -> 2019 | P105: 123
A106: Pass | B106: =N('XML Mapping'!F11) -> 1 | C106: <= | D106: =N('XML Mapping'!F10) -> 1 | E106: PART I | F106: Pre-Complaint Counseling | G106: If C.2.b. COUNSELED WITHIN 90 DAYS WHERE INDIVIDUAL PARTICIPATED IN ADR,COUNSELINGS > 0, Then Individuals | H106: <= | I106: Counselings | K106: =Profile!$D$3 -> 0 | L106: =Profile!$D$12 -> 2019 | P106: 124
A107: Pass | B107: =N('XML Mapping'!F13) -> 1 | C107: <= | D107: =N('XML Mapping'!F12) -> 1 | E107: PART I | F107: Pre-Complaint Counseling | G107: If C.2.c. COUNSELED WITHIN 31-90 DAYS THAT WERE UNTIMELY,COUNSELINGS > 0, Then Individuals | H107: <= | I107: Counselings | K107: =Profile!$D$3 -> 0 | L107: =Profile!$D$12 -> 2019 | P107: 125
A108: Pass | B108: =N('XML Mapping'!F15) -> 0 | C108: <= | D108: =N('XML Mapping'!F14) -> 0 | E108: PART I | F108: Pre-Complaint Counseling | G108: If C.3. COUNSELED BEYOND 90 DAYS,COUNSELINGS > 0, Then Individuals | H108: <= | I108: Counselings | K108: =Profile!$D$3 -> 0 | L108: =Profile!$D$12 -> 2019 | P108: 126
A109: Pass | B109: =N('XML Mapping'!F17) -> 0 | C109: <= | D109: =N('XML Mapping'!F16) -> 0 | E109: PART I | F109: Pre-Complaint Counseling | G109: If C.4. COUNSELED DUE TO REMANDS,COUNSELINGS > 0, Then Individuals | H109: <= | I109: Counselings | K109: =Profile!$D$3 -> 0 | L109: =Profile!$D$12 -> 2019 | P109: 127
A110: Pass | B110: =N('XML Mapping'!F19) -> 3 | C110: <= | D110: =N('XML Mapping'!F18) -> 3 | E110: PART I | F110: Pre-Complaint Counseling | G110: If D.1. ON HAND AT THE BEGINNING OF THE REPORTING PERIOD,COUNSELINGS > 0, Then Individuals | H110: <= | I110: Counselings | K110: =Profile!$D$3 -> 0 | L110: =Profile!$D$12 -> 2019 | P110: 128
A111: Pass | B111: =N('XML Mapping'!F21) -> 26 | C111: <= | D111: =N('XML Mapping'!F20) -> 28 | E111: PART I | F111: Pre-Complaint Counseling | G111: If D.2. INITIATED DURING THE REPORTING PERIOD,COUNSELINGS > 0, Then Individuals | H111: <= | I111: Counselings | K111: =Profile!$D$3 -> 0 | L111: =Profile!$D$12 -> 2019 | P111: 129
A112: Pass | B112: =N('XML Mapping'!F23) -> 22 | C112: <= | D112: =N('XML Mapping'!F22) -> 24 | E112: PART I | F112: Pre-Complaint Counseling | G112: If D.3. COMPLETED/ENDED COUNSELINGS,COUNSELINGS > 0, Then Individuals | H112: <= | I112: Counselings | K112: =Profile!$D$3 -> 0 | L112: =Profile!$D$12 -> 2019 | P112: 130
A113: Pass | B113: =N('XML Mapping'!F25) -> 0 | C113: <= | D113: =N('XML Mapping'!F24) -> 0 | E113: PART I | F113: Pre-Complaint Counseling | G113: If D.3.a. SETTLEMENTS (MONETARY AND NON-MONETARY),COUNSELINGS > 0, Then Individuals | H113: <= | I113: Counselings | K113: =Profile!$D$3 -> 0 | L113: =Profile!$D$12 -> 2019 | P113: 131
A114: Pass | B114: =N('XML Mapping'!F27) -> 8 | C114: <= | D114: =N('XML Mapping'!F26) -> 10 | E114: PART I | F114: Pre-Complaint Counseling | G114: If D.3.b. WITHDRAWALS/NO COMPLAINT FILED,COUNSELINGS > 0, Then Individuals | H114: <= | I114: Counselings | K114: =Profile!$D$3 -> 0 | L114: =Profile!$D$12 -> 2019 | P114: 132
A115: Pass | B115: =N('XML Mapping'!F29) -> 12 | C115: <= | D115: =N('XML Mapping'!F28) -> 12 | E115: PART I | F115: Pre-Complaint Counseling | G115: If D.3.c. COUNSELINGS COMPLETED > 0, Then Individuals | H115: <= | I115: Counselings | K115: =Profile!$D$3 -> 0 | L115: =Profile!$D$12 -> 2019 | P115: 133
A116: Pass | B116: =N('XML Mapping'!F31) -> 2 | C116: <= | D116: =N('XML Mapping'!F30) -> 2 | E116: PART I | F116: Pre-Complaint Counseling | G116: If D.3.d. DECISION TO FILE COMPLAINT PENDING, COUNSELINGS > 0, Then Individuals | H116: <= | I116: Counselings | K116: =Profile!$D$3 -> 0 | L116: =Profile!$D$12 -> 2019 | P116: 134
A117: Pass | B117: =N('XML Mapping'!F33) -> 7 | C117: <= | D117: =N('XML Mapping'!F32) -> 7 | E117: PART I | F117: Pre-Complaint Counseling | G117: If D.4. COUNSELINGS PENDING > 0, Then Individuals | H117: <= | I117: Counselings | K117: =Profile!$D$3 -> 0 | L117: =Profile!$D$12 -> 2019 | P117: 135
A118: Pass | B118: =N('XML Mapping'!F35) -> 0 | C118: <= | D118: =N('XML Mapping'!F34) -> 0 | E118: PART I | F118: Pre-Complaint Counseling | G118: If E. NON-ADR SETTLEMENTS WITH MONETARY BENEFITS TOTAL,COUNSELINGS > 0, Then Individuals | H118: <= | I118: Counselings | K118: =Profile!$D$3 -> 0 | L118: =Profile!$D$12 -> 2019 | P118: 136
A119: Pass | B119: =N('XML Mapping'!F38) -> 0 | C119: <= | D119: =N('XML Mapping'!F37) -> 0 | E119: PART I | F119: Pre-Complaint Counseling | G119: If E.1. COMPENSATORY DAMAGES,COUNSELINGS > 0, Then Individuals | H119: <= | I119: Counselings | K119: =Profile!$D$3 -> 0 | L119: =Profile!$D$12 -> 2019 | P119: 137
A120: Pass | B120: =N('XML Mapping'!F41) -> 0 | C120: <= | D120: =N('XML Mapping'!F40) -> 0 | E120: PART I | F120: Pre-Complaint Counseling | G120: If E.2. BACKPAY/FRONTPAY,COUNSELINGS > 0, Then Individuals | H120: <= | I120: Counselings | K120: =Profile!$D$3 -> 0 | L120: =Profile!$D$12 -> 2019 | P120: 138
A121: Pass | B121: =N('XML Mapping'!F44) -> 0 | C121: <= | D121: =N('XML Mapping'!F43) -> 0 | E121: PART I | F121: Pre-Complaint Counseling | G121: If E.3. LUMP SUM PAYMENT,COUNSELINGS > 0, Then Individuals | H121: <= | I121: Counselings | K121: =Profile!$D$3 -> 0 | L121: =Profile!$D$12 -> 2019 | P121: 139
A122: Pass | B122: =N('XML Mapping'!F47) -> 0 | C122: <= | D122: =N('XML Mapping'!F46) -> 0 | E122: PART I | F122: Pre-Complaint Counseling | G122: If E.4. ATTORNEY FEES AND COSTS,COUNSELINGS > 0, Then Individuals | H122: <= | I122: Counselings | K122: =Profile!$D$3 -> 0 | L122: =Profile!$D$12 -> 2019 | P122: 140
A123: Pass | B123: =N('XML Mapping'!F50) -> 0 | C123: <= | D123: =N('XML Mapping'!F49) -> 0 | E123: PART I | F123: Pre-Complaint Counseling | G123: If E.5.,COUNSELINGS > 0, Then Individuals | H123: <= | I123: Counselings | K123: =Profile!$D$3 -> 0 | L123: =Profile!$D$12 -> 2019 | P123: 141
A124: Pass | B124: =N('XML Mapping'!F53) -> 0 | C124: <= | D124: =N('XML Mapping'!F52) -> 0 | E124: PART I | F124: Pre-Complaint Counseling | G124: If E.6.,COUNSELINGS > 0, Then Individuals | H124: <= | I124: Counselings | K124: =Profile!$D$3 -> 0 | L124: =Profile!$D$12 -> 2019 | P124: 142
A125: Pass | B125: =N('XML Mapping'!F56) -> 0 | C125: <= | D125: =N('XML Mapping'!F55) -> 0 | E125: PART I | F125: Pre-Complaint Counseling | G125: If F. NON-ADR SETTLEMENTS WITH NON-MONETARY BENEFITS TOTAL,COUNSELINGS > 0, Then Individuals | H125: <= | I125: Counselings | K125: =Profile!$D$3 -> 0 | L125: =Profile!$D$12 -> 2019 | P125: 143
A126: Pass | B126: =N('XML Mapping'!F58) -> 0 | C126: <= | D126: =N('XML Mapping'!F57) -> 0 | E126: PART I | F126: Pre-Complaint Counseling | G126: If F.1. HIRES,COUNSELINGS > 0, Then Individuals | H126: <= | I126: Counselings | K126: =Profile!$D$3 -> 0 | L126: =Profile!$D$12 -> 2019 | P126: 144
A127: Pass | B127: =N('XML Mapping'!F60) -> 0 | C127: <= | D127: =N('XML Mapping'!F59) -> 0 | E127: PART I | F127: Pre-Complaint Counseling | G127: If F.1.a. RETROACTIVE,COUNSELINGS > 0, Then Individuals | H127: <= | I127: Counselings | K127: =Profile!$D$3 -> 0 | L127: =Profile!$D$12 -> 2019 | P127: 145
A128: Pass | B128: =N('XML Mapping'!F62) -> 0 | C128: <= | D128: =N('XML Mapping'!F61) -> 0 | E128: PART I | F128: Pre-Complaint Counseling | G128: If F.1.b. NON-RETROACTIVE,COUNSELINGS > 0, Then Individuals | H128: <= | I128: Counselings | K128: =Profile!$D$3 -> 0 | L128: =Profile!$D$12 -> 2019 | P128: 146
A129: Pass | B129: =N('XML Mapping'!F64) -> 0 | C129: <= | D129: =N('XML Mapping'!F63) -> 0 | E129: PART I | F129: Pre-Complaint Counseling | G129: If F.2. PROMOTIONS,COUNSELINGS > 0, Then Individuals | H129: <= | I129: Counselings | K129: =Profile!$D$3 -> 0 | L129: =Profile!$D$12 -> 2019 | P129: 147
A130: Pass | B130: =N('XML Mapping'!F66) -> 0 | C130: <= | D130: =N('XML Mapping'!F65) -> 0 | E130: PART I | F130: Pre-Complaint Counseling | G130: If F.2.a. RETROACTIVE,COUNSELINGS > 0, Then Individuals | H130: <= | I130: Counselings | K130: =Profile!$D$3 -> 0 | L130: =Profile!$D$12 -> 2019 | P130: 148
A131: Pass | B131: =N('XML Mapping'!F68) -> 0 | C131: <= | D131: =N('XML Mapping'!F67) -> 0 | E131: PART I | F131: Pre-Complaint Counseling | G131: If F.2.b. NON-RETROACTIVE,COUNSELINGS > 0, Then Individuals | H131: <= | I131: Counselings | K131: =Profile!$D$3 -> 0 | L131: =Profile!$D$12 -> 2019 | P131: 149
A132: Pass | B132: =N('XML Mapping'!F70) -> 0 | C132: <= | D132: =N('XML Mapping'!F69) -> 0 | E132: PART I | F132: Pre-Complaint Counseling | G132: If F.3. EXPUNGEMENTS,COUNSELINGS > 0, Then Individuals | H132: <= | I132: Counselings | K132: =Profile!$D$3 -> 0 | L132: =Profile!$D$12 -> 2019 | P132: 150
A133: Pass | B133: =N('XML Mapping'!F72) -> 0 | C133: <= | D133: =N('XML Mapping'!F71) -> 0 | E133: PART I | F133: Pre-Complaint Counseling | G133: If F.4. REASSIGNMENTS,COUNSELINGS > 0, Then Individuals | H133: <= | I133: Counselings | K133: =Profile!$D$3 -> 0 | L133: =Profile!$D$12 -> 2019 | P133: 151
A134: =IF(D134>0, IF(AND(B134>0,B134<=D134),"Pass","Fail"), "Pass") -> Pass | B134: =N('XML Mapping'!F74) -> 0 | C134: <= | D134: =N('XML Mapping'!F73) -> 0 | E134: PART I | F134: Pre-Complaint Counseling | G134: If F.5. REMOVALS RESCINDED,COUNSELINGS > 0, Then Individuals | H134: <= | I134: Counselings | K134: =Profile!$D$3 -> 0 | L134: =Profile!$D$12 -> 2019 | P134: 152
A135: Pass | B135: =N('XML Mapping'!F76) -> 0 | C135: <= | D135: =N('XML Mapping'!F75) -> 0 | E135: PART I | F135: Pre-Complaint Counseling | G135: If F.5.a. REINSTATEMENT,COUNSELINGS > 0, Then Individuals | H135: <= | I135: Counselings | K135: =Profile!$D$3 -> 0 | L135: =Profile!$D$12 -> 2019 | P135: 153
A136: Pass | B136: =N('XML Mapping'!F78) -> 0 | C136: <= | D136: =N('XML Mapping'!F77) -> 0 | E136: PART I | F136: Pre-Complaint Counseling | G136: If F.5.b. VOLUNTARY RESIGNATION ,COUNSELINGS > 0, Then Individuals | H136: <= | I136: Counselings | K136: =Profile!$D$3 -> 0 | L136: =Profile!$D$12 -> 2019 | P136: 154
A137: Pass | B137: =N('XML Mapping'!F80) -> 0 | C137: <= | D137: =N('XML Mapping'!F79) -> 0 | E137: PART I | F137: Pre-Complaint Counseling | G137: If F.6. ACCOMMODATIONS,COUNSELINGS > 0, Then Individuals | H137: <= | I137: Counselings | K137: =Profile!$D$3 -> 0 | L137: =Profile!$D$12 -> 2019 | P137: 155
A138: Pass | B138: =N('XML Mapping'!F82) -> 0 | C138: <= | D138: =N('XML Mapping'!F81) -> 0 | E138: PART I | F138: Pre-Complaint Counseling | G138: If F.7. TRAINING,COUNSELINGS > 0, Then Individuals | H138: <= | I138: Counselings | K138: =Profile!$D$3 -> 0 | L138: =Profile!$D$12 -> 2019 | P138: 156
A139: Pass | B139: =N('XML Mapping'!F84) -> 0 | C139: <= | D139: =N('XML Mapping'!F83) -> 0 | E139: PART I | F139: Pre-Complaint Counseling | G139: If F.8. APOLOGY ,COUNSELINGS > 0, Then Individuals | H139: <= | I139: Counselings | K139: =Profile!$D$3 -> 0 | L139: =Profile!$D$12 -> 2019 | P139: 157
A140: Pass | B140: =N('XML Mapping'!F86) -> 0 | C140: <= | D140: =N('XML Mapping'!F85) -> 0 | E140: PART I | F140: Pre-Complaint Counseling | G140: If F.9. DISCIPLINARY ACTIONS,COUNSELINGS > 0, Then Individuals | H140: <= | I140: Counselings | K140: =Profile!$D$3 -> 0 | L140: =Profile!$D$12 -> 2019 | P140: 158
A141: Pass | B141: =N('XML Mapping'!F88) -> 0 | C141: <= | D141: =N('XML Mapping'!F87) -> 0 | E141: PART I | F141: Pre-Complaint Counseling | G141: If F.9.a. RESCINDED,COUNSELINGS > 0, Then Individuals | H141: <= | I141: Counselings | K141: =Profile!$D$3 -> 0 | L141: =Profile!$D$12 -> 2019 | P141: 159
A142: Pass | B142: =N('XML Mapping'!F90) -> 0 | C142: <= | D142: =N('XML Mapping'!F89) -> 0 | E142: PART I | F142: Pre-Complaint Counseling | G142: If F.9.b. MODIFIED,COUNSELINGS > 0, Then Individuals | H142: <= | I142: Counselings | K142: =Profile!$D$3 -> 0 | L142: =Profile!$D$12 -> 2019 | P142: 160
A143: Pass | B143: =N('XML Mapping'!F92) -> 0 | C143: <= | D143: =N('XML Mapping'!F91) -> 0 | E143: PART I | F143: Pre-Complaint Counseling | G143: If F.10. PERFORMANCE EVALUATION MODIFIED,COUNSELINGS > 0, Then Individuals | H143: <= | I143: Counselings | K143: =Profile!$D$3 -> 0 | L143: =Profile!$D$12 -> 2019 | P143: 161
A144: Pass | B144: =N('XML Mapping'!F94) -> 0 | C144: <= | D144: =N('XML Mapping'!F93) -> 0 | E144: PART I | F144: Pre-Complaint Counseling | G144: If F.11. LEAVE RESTORED,COUNSELINGS > 0, Then Individuals | H144: <= | I144: Counselings | K144: =Profile!$D$3 -> 0 | L144: =Profile!$D$12 -> 2019 | P144: 162
A145: Pass | B145: =N('XML Mapping'!F96) -> 0 | C145: <= | D145: =N('XML Mapping'!F95) -> 0 | E145: PART I | F145: Pre-Complaint Counseling | G145: If F.12.,COUNSELINGS > 0, Then Individuals | H145: <= | I145: Counselings | K145: =Profile!$D$3 -> 0 | L145: =Profile!$D$12 -> 2019 | P145: 163
A146: Pass | B146: =N('XML Mapping'!F98) -> 0 | C146: <= | D146: =N('XML Mapping'!F97) -> 0 | E146: PART I | F146: Pre-Complaint Counseling | G146: If F.13.,COUNSELINGS > 0, Then Individuals | H146: <= | I146: Counselings | K146: =Profile!$D$3 -> 0 | L146: =Profile!$D$12 -> 2019 | P146: 164
A147: Pass | B147: =N('XML Mapping'!F100) -> 0 | C147: <= | D147: =N('XML Mapping'!F99) -> 0 | E147: PART I | F147: Pre-Complaint Counseling | G147: If F.14.,COUNSELINGS > 0, Then Individuals | H147: <= | I147: Counselings | P147: 165
A148: Pass | B148: =N('XML Mapping'!F102) -> 0 | C148: <= | D148: =N('XML Mapping'!F101) -> 0 | E148: PART I | F148: Pre-Complaint Counseling | G148: If G. ADR SETTLEMENTS WITH MONETARY BENEFITS TOTAL,COUNSELINGS > 0, Then Individuals | H148: <= | I148: Counselings | K148: =Profile!$D$3 -> 0 | L148: =Profile!$D$12 -> 2019 | P148: 166
A149: Pass | B149: =N('XML Mapping'!F105) -> 0 | C149: <= | D149: =N('XML Mapping'!F104) -> 0 | E149: PART I | F149: Pre-Complaint Counseling | G149: If G.1. COMPENSATORY DAMAGES,COUNSELINGS > 0, Then Individuals | H149: <= | I149: Counselings | K149: =Profile!$D$3 -> 0 | L149: =Profile!$D$12 -> 2019 | P149: 167
A150: Pass | B150: =N('XML Mapping'!F108) -> 0 | C150: <= | D150: =N('XML Mapping'!F107) -> 0 | E150: PART I | F150: Pre-Complaint Counseling | G150: If G.2. BACKPAY/FRONTPAY,COUNSELINGS > 0, Then Individuals | H150: <= | I150: Counselings | K150: =Profile!$D$3 -> 0 | L150: =Profile!$D$12 -> 2019 | P150: 168
A151: Pass | B151: =N('XML Mapping'!F111) -> 0 | C151: <= | D151: =N('XML Mapping'!F110) -> 0 | E151: PART I | F151: Pre-Complaint Counseling | G151: If G.3. LUMP SUM PAYMENT,COUNSELINGS > 0, Then Individuals | H151: <= | I151: Counselings | K151: =Profile!$D$3 -> 0 | L151: =Profile!$D$12 -> 2019 | P151: 169
A152: Pass | B152: =N('XML Mapping'!F114) -> 0 | C152: <= | D152: =N('XML Mapping'!F113) -> 0 | E152: PART I | F152: Pre-Complaint Counseling | G152: If G.4. ATTORNEY FEES AND COSTS,COUNSELINGS > 0, Then Individuals | H152: <= | I152: Counselings | K152: =Profile!$D$3 -> 0 | L152: =Profile!$D$12 -> 2019 | P152: 170
A153: Pass | B153: =N('XML Mapping'!F117) -> 0 | C153: <= | D153: =N('XML Mapping'!F116) -> 0 | E153: PART I | F153: Pre-Complaint Counseling | G153: If G.5.,COUNSELINGS > 0, Then Individuals | H153: <= | I153: Counselings | K153: =Profile!$D$3 -> 0 | L153: =Profile!$D$12 -> 2019 | P153: 171
A154: Pass | B154: =N('XML Mapping'!F120) -> 0 | C154: <= | D154: =N('XML Mapping'!F119) -> 0 | E154: PART I | F154: Pre-Complaint Counseling | G154: If G.6.,COUNSELINGS > 0, Then Individuals | H154: <= | I154: Counselings | K154: =Profile!$D$3 -> 0 | L154: =Profile!$D$12 -> 2019 | P154: 172
A155: Pass | B155: =N('XML Mapping'!F123) -> 0 | C155: <= | D155: =N('XML Mapping'!F122) -> 0 | E155: PART I | F155: Pre-Complaint Counseling | G155: If H. ADR SETTLEMENTS WITH NON-MONETARY BENEFITS TOTAL,COUNSELINGS > 0, Then Individuals | H155: <= | I155: Counselings | K155: =Profile!$D$3 -> 0 | L155: =Profile!$D$12 -> 2019 | P155: 173
A156: Pass | B156: =N('XML Mapping'!F125) -> 0 | C156: <= | D156: =N('XML Mapping'!F124) -> 0 | E156: PART I | F156: Pre-Complaint Counseling | G156: If H.1. HIRES,COUNSELINGS > 0, Then Individuals | H156: <= | I156: Counselings | K156: =Profile!$D$3 -> 0 | L156: =Profile!$D$12 -> 2019 | P156: 174
A157: Pass | B157: =N('XML Mapping'!F127) -> 0 | C157: <= | D157: =N('XML Mapping'!F126) -> 0 | E157: PART I | F157: Pre-Complaint Counseling | G157: If H.1.a. RETROACTIVE,COUNSELINGS > 0, Then Individuals | H157: <= | I157: Counselings | K157: =Profile!$D$3 -> 0 | L157: =Profile!$D$12 -> 2019 | P157: 175
A158: Pass | B158: =N('XML Mapping'!F129) -> 0 | C158: <= | D158: =N('XML Mapping'!F128) -> 0 | E158: PART I | F158: Pre-Complaint Counseling | G158: If H.1.b. NON-RETROACTIVE,COUNSELINGS > 0, Then Individuals | H158: <= | I158: Counselings | K158: =Profile!$D$3 -> 0 | L158: =Profile!$D$12 -> 2019 | P158: 176
A159: Pass | B159: =N('XML Mapping'!F131) -> 0 | C159: <= | D159: =N('XML Mapping'!F130) -> 0 | E159: PART I | F159: Pre-Complaint Counseling | G159: If H.2. PROMOTIONS,COUNSELINGS > 0, Then Individuals | H159: <= | I159: Counselings | K159: =Profile!$D$3 -> 0 | L159: =Profile!$D$12 -> 2019 | P159: 177
A160: Pass | B160: =N('XML Mapping'!F133) -> 0 | C160: <= | D160: =N('XML Mapping'!F132) -> 0 | E160: PART I | F160: Pre-Complaint Counseling | G160: If H.2.a. RETROACTIVE,COUNSELINGS > 0, Then Individuals | H160: <= | I160: Counselings | K160: =Profile!$D$3 -> 0 | L160: =Profile!$D$12 -> 2019 | P160: 178
A161: Pass | B161: =N('XML Mapping'!F135) -> 0 | C161: <= | D161: =N('XML Mapping'!F134) -> 0 | E161: PART I | F161: Pre-Complaint Counseling | G161: If H.2.b. NON-RETROACTIVE,COUNSELINGS > 0, Then Individuals | H161: <= | I161: Counselings | K161: =Profile!$D$3 -> 0 | L161: =Profile!$D$12 -> 2019 | P161: 179
A162: Pass | B162: =N('XML Mapping'!F137) -> 0 | C162: <= | D162: =N('XML Mapping'!F136) -> 0 | E162: PART I | F162: Pre-Complaint Counseling | G162: If H.3. EXPUNGEMENTS,COUNSELINGS > 0, Then Individuals | H162: <= | I162: Counselings | K162: =Profile!$D$3 -> 0 | L162: =Profile!$D$12 -> 2019 | P162: 180
A163: Pass | B163: =N('XML Mapping'!F139) -> 0 | C163: <= | D163: =N('XML Mapping'!F138) -> 0 | E163: PART I | F163: Pre-Complaint Counseling | G163: If H.4. REASSIGNMENTS,COUNSELINGS > 0, Then Individuals | H163: <= | I163: Counselings | K163: =Profile!$D$3 -> 0 | L163: =Profile!$D$12 -> 2019 | P163: 181
A164: Pass | B164: =N('XML Mapping'!F141) -> 0 | C164: <= | D164: =N('XML Mapping'!F140) -> 0 | E164: PART I | F164: Pre-Complaint Counseling | G164: If H.5. REMOVALS RESCINDED,COUNSELINGS > 0, Then Individuals | H164: <= | I164: Counselings | K164: =Profile!$D$3 -> 0 | L164: =Profile!$D$12 -> 2019 | P164: 182
A165: Pass | B165: =N('XML Mapping'!F143) -> 0 | C165: <= | D165: =N('XML Mapping'!F142) -> 0 | E165: PART I | F165: Pre-Complaint Counseling | G165: If H.5.a. REINSTATEMENT,COUNSELINGS > 0, Then Individuals | H165: <= | I165: Counselings | K165: =Profile!$D$3 -> 0 | L165: =Profile!$D$12 -> 2019 | P165: 183
A166: =IF(D166>0, IF(AND(B166>0,B166<=D166),"Pass","Fail"), "Pass") -> Pass | B166: =N('XML Mapping'!F145) -> 0 | C166: <= | D166: =N('XML Mapping'!F144) -> 0 | E166: PART I | F166: Pre-Complaint Counseling | G166: If H.5.b. VOLUNTARY RESIGNATION ,COUNSELINGS > 0, Then Individuals | H166: <= | I166: Counselings | K166: =Profile!$D$3 -> 0 | L166: =Profile!$D$12 -> 2019 | P166: 184
A167: Pass | B167: =N('XML Mapping'!F147) -> 0 | C167: <= | D167: =N('XML Mapping'!F146) -> 0 | E167: PART I | F167: Pre-Complaint Counseling | G167: If H.6. ACCOMMODATIONS,COUNSELINGS > 0, Then Individuals | H167: <= | I167: Counselings | K167: =Profile!$D$3 -> 0 | L167: =Profile!$D$12 -> 2019 | P167: 185
A168: Pass | B168: =N('XML Mapping'!F149) -> 0 | C168: <= | D168: =N('XML Mapping'!F148) -> 0 | E168: PART I | F168: Pre-Complaint Counseling | G168: If H.7. TRAINING,COUNSELINGS > 0, Then Individuals | H168: <= | I168: Counselings | K168: =Profile!$D$3 -> 0 | L168: =Profile!$D$12 -> 2019 | P168: 186
A169: Pass | B169: =N('XML Mapping'!F151) -> 0 | C169: <= | D169: =N('XML Mapping'!F150) -> 0 | E169: PART I | F169: Pre-Complaint Counseling | G169: If H.8. APOLOGY ,COUNSELINGS > 0, Then Individuals | H169: <= | I169: Counselings | K169: =Profile!$D$3 -> 0 | L169: =Profile!$D$12 -> 2019 | P169: 187
A170: Pass | B170: =N('XML Mapping'!F153) -> 0 | C170: <= | D170: =N('XML Mapping'!F152) -> 0 | E170: PART I | F170: Pre-Complaint Counseling | G170: If H.9. DISCIPLINARY ACTIONS,COUNSELINGS > 0, Then Individuals | H170: <= | I170: Counselings | K170: =Profile!$D$3 -> 0 | L170: =Profile!$D$12 -> 2019 | P170: 188
A171: Pass | B171: =N('XML Mapping'!F155) -> 0 | C171: <= | D171: =N('XML Mapping'!F154) -> 0 | E171: PART I | F171: Pre-Complaint Counseling | G171: If H.9.a. RESCINDED,COUNSELINGS > 0, Then Individuals | H171: <= | I171: Counselings | K171: =Profile!$D$3 -> 0 | L171: =Profile!$D$12 -> 2019 | P171: 189
A172: Pass | B172: =N('XML Mapping'!F157) -> 0 | C172: <= | D172: =N('XML Mapping'!F156) -> 0 | E172: PART I | F172: Pre-Complaint Counseling | G172: If H.9.b. MODIFIED,COUNSELINGS > 0, Then Individuals | H172: <= | I172: Counselings | K172: =Profile!$D$3 -> 0 | L172: =Profile!$D$12 -> 2019 | P172: 190
A173: Pass | B173: =N('XML Mapping'!F159) -> 0 | C173: <= | D173: =N('XML Mapping'!F158) -> 0 | E173: PART I | F173: Pre-Complaint Counseling | G173: If H.10. PERFORMANCE EVALUATION MODIFIED,COUNSELINGS > 0, Then Individuals | H173: <= | I173: Counselings | K173: =Profile!$D$3 -> 0 | L173: =Profile!$D$12 -> 2019 | P173: 191
A174: Pass | B174: =N('XML Mapping'!F161) -> 0 | C174: <= | D174: =N('XML Mapping'!F160) -> 0 | E174: PART I | F174: Pre-Complaint Counseling | G174: If H.11. LEAVE RESTORED,COUNSELINGS > 0, Then Individuals | H174: <= | I174: Counselings | K174: =Profile!$D$3 -> 0 | L174: =Profile!$D$12 -> 2019 | P174: 192
A175: Pass | B175: =N('XML Mapping'!F163) -> 0 | C175: <= | D175: =N('XML Mapping'!F162) -> 0 | E175: PART I | F175: Pre-Complaint Counseling | G175: If H.12.,COUNSELINGS > 0, Then Individuals | H175: <= | I175: Counselings | K175: =Profile!$D$3 -> 0 | L175: =Profile!$D$12 -> 2019 | P175: 193
A176: Pass | B176: =N('XML Mapping'!F165) -> 0 | C176: <= | D176: =N('XML Mapping'!F164) -> 0 | E176: PART I | F176: Pre-Complaint Counseling | G176: If H.13.,COUNSELINGS > 0, Then Individuals | H176: <= | I176: Counselings | K176: =Profile!$D$3 -> 0 | L176: =Profile!$D$12 -> 2019 | P176: 194
A177: Pass | B177: =N('XML Mapping'!F167) -> 0 | C177: <= | D177: =N('XML Mapping'!F166) -> 0 | E177: PART I | F177: Pre-Complaint Counseling | G177: If H.14.,COUNSELINGS > 0, Then Individuals | H177: <= | I177: Counselings | P177: 195
A178: Pass | B178: =N('XML Mapping'!F169) -> 0 | C178: <= | D178: =N('XML Mapping'!F168) -> 0 | E178: PART I | F178: Pre-Complaint Counseling | G178: If I. NON-ADR SETTLEMENTS,COUNSELINGS > 0, Then Individuals | H178: <= | I178: Counselings | K178: =Profile!$D$3 -> 0 | L178: =Profile!$D$12 -> 2019 | P178: 196
A179: =IF(B179<=D179,"Pass","Fail") -> Pass | B179: =N('XML Mapping'!F5) -> 16 | C179: <= | D179: =N('XML Mapping'!F3) -> 22 | E179: PART I | F179: Pre-Complaint Counseling | G179: C.1. Counseled Within 30 Days Individuals | H179: <= | I179: C. individuals | K179: =Profile!$D$3 -> 0 | L179: =Profile!$D$12 -> 2019 | N179: Taken from return reasons | P179: 197
A180: Pass | B180: =N('XML Mapping'!F7) -> 6 | C180: <= | D180: =N('XML Mapping'!F3) -> 22 | E180: PART I | F180: Pre-Complaint Counseling | G180: C.2. Counseled Within 31 To 90 Days Individuals | H180: <= | I180: C. individuals | K180: =Profile!$D$3 -> 0 | L180: =Profile!$D$12 -> 2019 | N180: Taken from return reasons | P180: 198
A181: Pass | B181: =N('XML Mapping'!F9) -> 4 | C181: <= | D181: =N('XML Mapping'!F3) -> 22 | E181: PART I | F181: Pre-Complaint Counseling | G181: C.2.a. Counseled Within Written Extension Period No Longer Than 60 Days Individuals | H181: <= | I181: C. individuals | K181: =Profile!$D$3 -> 0 | L181: =Profile!$D$12 -> 2019 | N181: Taken from return reasons | P181: 199
A182: Pass | B182: =N('XML Mapping'!F11) -> 1 | C182: <= | D182: =N('XML Mapping'!F3) -> 22 | E182: PART I | F182: Pre-Complaint Counseling | G182: C.2.b. Counseled Within 90 Days Where Individual Participated In Adr Individuals | H182: <= | I182: C. individuals | K182: =Profile!$D$3 -> 0 | L182: =Profile!$D$12 -> 2019 | N182: Taken from return reasons | P182: 200
A183: Pass | B183: =N('XML Mapping'!F13) -> 1 | C183: <= | D183: =N('XML Mapping'!F3) -> 22 | E183: PART I | F183: Pre-Complaint Counseling | G183: C.2.c. Counseled Within 31-90 Days That Were Untimely Individuals | H183: <= | I183: C. individuals | K183: =Profile!$D$3 -> 0 | L183: =Profile!$D$12 -> 2019 | N183: Taken from return reasons | P183: 201
A184: Pass | B184: =N('XML Mapping'!F15) -> 0 | C184: <= | D184: =N('XML Mapping'!F3) -> 22 | E184: PART I | F184: Pre-Complaint Counseling | G184: C.3. Counseled Beyond 90 Days Individuals | H184: <= | I184: C. individuals | K184: =Profile!$D$3 -> 0 | L184: =Profile!$D$12 -> 2019 | N184: Taken from return reasons | P184: 202
A185: Pass | B185: =N('XML Mapping'!F17) -> 0 | C185: <= | D185: =N('XML Mapping'!F3) -> 22 | E185: PART I | F185: Pre-Complaint Counseling | G185: C.4. Counseled Due To Remands Individuals | H185: <= | I185: C. individuals | K185: =Profile!$D$3 -> 0 | L185: =Profile!$D$12 -> 2019 | N185: Taken from return reasons | P185: 203
A186: Pass | B186: =N('XML Mapping'!F22) -> 24 | C186: <= | D186: =N('XML Mapping'!F2) -> 24 | E186: PART I | F186: Pre-Complaint Counseling | G186: D.3. Completed/ended Counselings Counselings | H186: <= | I186: C. Counselings | K186: =Profile!$D$3 -> 0 | L186: =Profile!$D$12 -> 2019 | P186: 204
A187: Pass | B187: =N('XML Mapping'!F24) -> 0 | C187: <= | D187: =N('XML Mapping'!F2) -> 24 | E187: PART I | F187: Pre-Complaint Counseling | G187: D.3.a. Settlements (monetary And Non-monetary) Counselings | H187: <= | I187: C. Counselings | K187: =Profile!$D$3 -> 0 | L187: =Profile!$D$12 -> 2019 | P187: 205
A188: Pass | B188: =N('XML Mapping'!F26) -> 10 | C188: <= | D188: =N('XML Mapping'!F2) -> 24 | E188: PART I | F188: Pre-Complaint Counseling | G188: D.3.b. Withdrawals/no Complaint Filed Counselings | H188: <= | I188: C. Counselings | K188: =Profile!$D$3 -> 0 | L188: =Profile!$D$12 -> 2019 | P188: 206
A189: Pass | B189: =N('XML Mapping'!F28) -> 12 | C189: <= | D189: =N('XML Mapping'!F2) -> 24 | E189: PART I | F189: Pre-Complaint Counseling | G189: D.3.c. Counselings Completed/ended In Reporting Period That Resulted In Complaint Filings In Reporting Period Counselings | H189: <= | I189: C. Counselings | K189: =Profile!$D$3 -> 0 | L189: =Profile!$D$12 -> 2019 | P189: 207
A190: Pass | B190: =N('XML Mapping'!F30) -> 2 | C190: <= | D190: =N('XML Mapping'!F2) -> 24 | E190: PART I | F190: Pre-Complaint Counseling | G190: D.3.d. Decision To File Complaint Pending At The End Of The Reporting Period Counselings | H190: <= | I190: C. Counselings | K190: =Profile!$D$3 -> 0 | L190: =Profile!$D$12 -> 2019 | P190: 208
A191: Pass | B191: =N('XML Mapping'!F23) -> 22 | C191: <= | D191: =N('XML Mapping'!F3) -> 22 | E191: PART I | F191: Pre-Complaint Counseling | G191: D.3. Completed/ended Counselings Individuals | H191: <= | I191: C. Individuals | K191: =Profile!$D$3 -> 0 | L191: =Profile!$D$12 -> 2019 | P191: 209
A192: Pass | B192: =N('XML Mapping'!F25) -> 0 | C192: <= | D192: =N('XML Mapping'!F3) -> 22 | E192: PART I | F192: Pre-Complaint Counseling | G192: D.3.a. Settlements (monetary And Non-monetary) Individuals | H192: <= | I192: C. Individuals | K192: =Profile!$D$3 -> 0 | L192: =Profile!$D$12 -> 2019 | P192: 210
A193: Pass | B193: =N('XML Mapping'!F27) -> 8 | C193: <= | D193: =N('XML Mapping'!F3) -> 22 | E193: PART I | F193: Pre-Complaint Counseling | G193: D.3.b. Withdrawals/no Complaint Filed Individuals | H193: <= | I193: C. Individuals | K193: =Profile!$D$3 -> 0 | L193: =Profile!$D$12 -> 2019 | P193: 211
A194: Pass | B194: =N('XML Mapping'!F29) -> 12 | C194: <= | D194: =N('XML Mapping'!F3) -> 22 | E194: PART I | F194: Pre-Complaint Counseling | G194: D.3.c. Counselings Completed/ended In Reporting Period That Resulted In Complaint Filings In Reporting Period Individuals | H194: <= | I194: C. Individuals | K194: =Profile!$D$3 -> 0 | L194: =Profile!$D$12 -> 2019 | P194: 212
A195: Pass | B195: =N('XML Mapping'!F31) -> 2 | C195: <= | D195: =N('XML Mapping'!F3) -> 22 | E195: PART I | F195: Pre-Complaint Counseling | G195: D.3.d. Decision To File Complaint Pending At The End Of The Reporting Period Individuals | H195: <= | I195: C. Individuals | K195: =Profile!$D$3 -> 0 | L195: =Profile!$D$12 -> 2019 | P195: 213
A196: Pass | B196: =N('XML Mapping'!F37) -> 0 | C196: <= | D196: =N('XML Mapping'!F34) -> 0 | E196: PART I | F196: Pre-Complaint Counseling | G196: E.1. Compensatory Damages Counselings | H196: <= | I196: E. Counselings | K196: =Profile!$D$3 -> 0 | L196: =Profile!$D$12 -> 2019 | P196: 214
A197: Pass | B197: =N('XML Mapping'!F40) -> 0 | C197: <= | D197: =N('XML Mapping'!F34) -> 0 | E197: PART I | F197: Pre-Complaint Counseling | G197: E.2. Backpay/frontpay Counselings | H197: <= | I197: E. Counselings | K197: =Profile!$D$3 -> 0 | L197: =Profile!$D$12 -> 2019 | P197: 215
A198: Pass | B198: =N('XML Mapping'!F43) -> 0 | C198: <= | D198: =N('XML Mapping'!F34) -> 0 | E198: PART I | F198: Pre-Complaint Counseling | G198: E.3. Lump Sum Payment Counselings | H198: <= | I198: E. Counselings | K198: =Profile!$D$3 -> 0 | L198: =Profile!$D$12 -> 2019 | P198: 216
A199: Pass | B199: =N('XML Mapping'!F46) -> 0 | C199: <= | D199: =N('XML Mapping'!F34) -> 0 | E199: PART I | F199: Pre-Complaint Counseling | G199: E.4. Attorney Fees And Costs Counselings | H199: <= | I199: E. Counselings | K199: =Profile!$D$3 -> 0 | L199: =Profile!$D$12 -> 2019 | P199: 217
A200: =IF(AND(NOT(EXACT(B200,""))),IF(B200<=D200,"Pass","Fail"),"Pass") -> Pass | B200: =N('XML Mapping'!F49) -> 0 | C200: <= | D200: =N('XML Mapping'!F34) -> 0 | E200: PART I | F200: Pre-Complaint Counseling | G200: E.5. Counselings | H200: <= | I200: E. Counselings | K200: =Profile!$D$3 -> 0 | L200: =Profile!$D$12 -> 2019 | P200: 218
A201: =IF(AND(NOT(EXACT(B201,""))),IF(B201<=D201,"Pass","Fail"),"Pass") -> Pass | B201: =N('XML Mapping'!F52) -> 0 | C201: <= | D201: =N('XML Mapping'!F34) -> 0 | E201: PART I | F201: Pre-Complaint Counseling | G201: E.6. Counselings | H201: <= | I201: E. Counselings | K201: =Profile!$D$3 -> 0 | L201: =Profile!$D$12 -> 2019 | P201: 219
A202: =IF(B202<=D202,"Pass","Fail") -> Pass | B202: =N('XML Mapping'!F38) -> 0 | C202: <= | D202: =N('XML Mapping'!F35) -> 0 | E202: PART I | F202: Pre-Complaint Counseling | G202: E.1. Compensatory Damages Individuals | H202: <= | I202: E. Individuals | K202: =Profile!$D$3 -> 0 | L202: =Profile!$D$12 -> 2019 | N202: Taken from return reasons | P202: 220
... 4298 more rows

Sheet XML Mapping (hidden)
A1: EEO_462_REPORT_PART_NAME | B1: EEO_462_PART_TABLE_NAME | C1: EEO_462_PART_TABLE_COLUMN_NAME | D1: EEO_462_PART_TABLE_ROW_NAME | E1: OPTIONAL_USER_DEFINED_ROW | F1: Value | G1: AutoPopulateSetting
A2: PART I | B2: PRE-COMPLAINT ACTIVITIES | C2: COUNSELINGS | D2: C. TOTAL COMPLETED/ENDED COUNSELINGS | F2: =IF(ISBLANK('PART I'!B20),"",'PART I'!B20) -> 24
A3: PART I | B3: PRE-COMPLAINT ACTIVITIES | C3: INDIVIDUALS | D3: C. TOTAL COMPLETED/ENDED COUNSELINGS | F3: =IF(ISBLANK('PART I'!C20),"",'PART I'!C20) -> 22
A4: PART I | B4: PRE-COMPLAINT ACTIVITIES | C4: COUNSELINGS | D4: C.1. COUNSELED WITHIN 30 DAYS | F4: =IF(ISBLANK('PART I'!B22),"",'PART I'!B22) -> 18
A5: PART I | B5: PRE-COMPLAINT ACTIVITIES | C5: INDIVIDUALS | D5: C.1. COUNSELED WITHIN 30 DAYS | F5: =IF(ISBLANK('PART I'!C22),"",'PART I'!C22) -> 16
A6: PART I | B6: PRE-COMPLAINT ACTIVITIES | C6: COUNSELINGS | D6: C.2. COUNSELED WITHIN 31 TO 90 DAYS | F6: =IF(ISBLANK('PART I'!B24),"",'PART I'!B24) -> 6
A7: PART I | B7: PRE-COMPLAINT ACTIVITIES | C7: INDIVIDUALS | D7: C.2. COUNSELED WITHIN 31 TO 90 DAYS | F7: =IF(ISBLANK('PART I'!C24),"",'PART I'!C24) -> 6
A8: PART I | B8: PRE-COMPLAINT ACTIVITIES | C8: COUNSELINGS | D8: C.2.a. COUNSELED WITHIN WRITTEN EXTENSION PERIOD NO LONGER THAN 60 DAYS | F8: =IF(ISBLANK('PART I'!B26),"",'PART I'!B26) -> 4
A9: PART I | B9: PRE-COMPLAINT ACTIVITIES | C9: INDIVIDUALS | D9: C.2.a. COUNSELED WITHIN WRITTEN EXTENSION PERIOD NO LONGER THAN 60 DAYS | F9: =IF(ISBLANK('PART I'!C26),"",'PART I'!C26) -> 4
A10: PART I | B10: PRE-COMPLAINT ACTIVITIES | C10: COUNSELINGS | D10: C.2.b. COUNSELED WITHIN 90 DAYS WHERE INDIVIDUAL PARTICIPATED IN ADR | F10: =IF(ISBLANK('PART I'!B28),"",'PART I'!B28) -> 1
A11: PART I | B11: PRE-COMPLAINT ACTIVITIES | C11: INDIVIDUALS | D11: C.2.b. COUNSELED WITHIN 90 DAYS WHERE INDIVIDUAL PARTICIPATED IN ADR | F11: =IF(ISBLANK('PART I'!C28),"",'PART I'!C28) -> 1
A12: PART I | B12: PRE-COMPLAINT ACTIVITIES | C12: COUNSELINGS | D12: C.2.c. COUNSELED WITHIN 31-90 DAYS THAT WERE UNTIMELY | F12: =IF(ISBLANK('PART I'!B29),"",'PART I'!B29) -> 1
A13: PART I | B13: PRE-COMPLAINT ACTIVITIES | C13: INDIVIDUALS | D13: C.2.c. COUNSELED WITHIN 31-90 DAYS THAT WERE UNTIMELY | F13: =IF(ISBLANK('PART I'!C29),"",'PART I'!C29) -> 1
A14: PART I | B14: PRE-COMPLAINT ACTIVITIES | C14: COUNSELINGS | D14: C.3. COUNSELED BEYOND 90 DAYS | F14: =IF(ISBLANK('PART I'!B30),"",'PART I'!B30) -> 0
A15: PART I | B15: PRE-COMPLAINT ACTIVITIES | C15: INDIVIDUALS | D15: C.3. COUNSELED BEYOND 90 DAYS | F15: =IF(ISBLANK('PART I'!C30),"",'PART I'!C30) -> 0
A16: PART I | B16: PRE-COMPLAINT ACTIVITIES | C16: COUNSELINGS | D16: C.4. COUNSELED DUE TO REMANDS | F16: =IF(ISBLANK('PART I'!B31),"",'PART I'!B31) -> 0
A17: PART I | B17: PRE-COMPLAINT ACTIVITIES | C17: INDIVIDUALS | D17: C.4. COUNSELED DUE TO REMANDS | F17: =IF(ISBLANK('PART I'!C31),"",'PART I'!C31) -> 0
A18: PART I | B18: PRE-COMPLAINT ACTIVITIES | C18: COUNSELINGS | D18: D.1. ON HAND AT THE BEGINNING OF THE REPORTING PERIOD | F18: =IF(ISBLANK('PART I'!B37),"",'PART I'!B37) -> 3
A19: PART I | B19: PRE-COMPLAINT ACTIVITIES | C19: INDIVIDUALS | D19: D.1. ON HAND AT THE BEGINNING OF THE REPORTING PERIOD | F19: =IF(ISBLANK('PART I'!C37),"",'PART I'!C37) -> 3
A20: PART I | B20: PRE-COMPLAINT ACTIVITIES | C20: COUNSELINGS | D20: D.2. INITIATED DURING THE REPORTING PERIOD | F20: =IF(ISBLANK('PART I'!B38),"",'PART I'!B38) -> 28
A21: PART I | B21: PRE-COMPLAINT ACTIVITIES | C21: INDIVIDUALS | D21: D.2. INITIATED DURING THE REPORTING PERIOD | F21: =IF(ISBLANK('PART I'!C38),"",'PART I'!C38) -> 26
A22: PART I | B22: PRE-COMPLAINT ACTIVITIES | C22: COUNSELINGS | D22: D.3. COMPLETED/ENDED COUNSELINGS | F22: =IF(ISBLANK('PART I'!B39),"",'PART I'!B39) -> 24
A23: PART I | B23: PRE-COMPLAINT ACTIVITIES | C23: INDIVIDUALS | D23: D.3. COMPLETED/ENDED COUNSELINGS | F23: =IF(ISBLANK('PART I'!C39),"",'PART I'!C39) -> 22
A24: PART I | B24: PRE-COMPLAINT ACTIVITIES | C24: COUNSELINGS | D24: D.3.a. SETTLEMENTS (MONETARY AND NON-MONETARY) | F24: =IF(ISBLANK('PART I'!B41),"",'PART I'!B41) -> 0
A25: PART I | B25: PRE-COMPLAINT ACTIVITIES | C25: INDIVIDUALS | D25: D.3.a. SETTLEMENTS (MONETARY AND NON-MONETARY) | F25: =IF(ISBLANK('PART I'!C41),"",'PART I'!C41) -> 0
A26: PART I | B26: PRE-COMPLAINT ACTIVITIES | C26: COUNSELINGS | D26: D.3.b. WITHDRAWALS/NO COMPLAINT FILED | F26: =IF(ISBLANK('PART I'!B42),"",'PART I'!B42) -> 10
A27: PART I | B27: PRE-COMPLAINT ACTIVITIES | C27: INDIVIDUALS | D27: D.3.b. WITHDRAWALS/NO COMPLAINT FILED | F27: =IF(ISBLANK('PART I'!C42),"",'PART I'!C42) -> 8
A28: PART I | B28: PRE-COMPLAINT ACTIVITIES | C28: COUNSELINGS | D28: D.3.c. COUNSELINGS COMPLETED/ENDED IN REPORTING PERIOD THAT RESULTED IN COMPLAINT FILINGS IN REPORTING PERIOD | F28: =IF(ISBLANK('PART I'!B46),"",'PART I'!B46) -> 12
A29: PART I | B29: PRE-COMPLAINT ACTIVITIES | C29: INDIVIDUALS | D29: D.3.c. COUNSELINGS COMPLETED/ENDED IN REPORTING PERIOD THAT RESULTED IN COMPLAINT FILINGS IN REPORTING PERIOD | F29: =IF(ISBLANK('PART I'!C46),"",'PART I'!C46) -> 12
A30: PART I | B30: PRE-COMPLAINT ACTIVITIES | C30: COUNSELINGS | D30: D.3.d. DECISION TO FILE COMPLAINT PENDING AT THE END OF THE REPORTING PERIOD | F30: =IF(ISBLANK('PART I'!B48),"",'PART I'!B48) -> 2
A31: PART I | B31: PRE-COMPLAINT ACTIVITIES | C31: INDIVIDUALS | D31: D.3.d. DECISION TO FILE COMPLAINT PENDING AT THE END OF THE REPORTING PERIOD | F31: =IF(ISBLANK('PART I'!C48),"",'PART I'!C48) -> 2
A32: PART I | B32: PRE-COMPLAINT ACTIVITIES | C32: COUNSELINGS | D32: D.4. COUNSELINGS PENDING AT THE END OF THE REPORTING PERIOD | F32: =IF(ISBLANK('PART I'!B50),"",'PART I'!B50) -> 7
A33: PART I | B33: PRE-COMPLAINT ACTIVITIES | C33: INDIVIDUALS | D33: D.4. COUNSELINGS PENDING AT THE END OF THE REPORTING PERIOD | F33: =IF(ISBLANK('PART I'!C50),"",'PART I'!C50) -> 7
A34: PART I | B34: PRE-COMPLAINT ACTIVITIES | C34: COUNSELINGS | D34: E. NON-ADR SETTLEMENTS WITH MONETARY BENEFITS TOTAL | F34: =IF(ISBLANK('PART I'!F8),"",'PART I'!F8) -> 0
A35: PART I | B35: PRE-COMPLAINT ACTIVITIES | C35: INDIVIDUALS | D35: E. NON-ADR SETTLEMENTS WITH MONETARY BENEFITS TOTAL | F35: =IF(ISBLANK('PART I'!G8),"",'PART I'!G8) -> 0
A36: PART I | B36: PRE-COMPLAINT ACTIVITIES | C36: AMOUNT | D36: E. NON-ADR SETTLEMENTS WITH MONETARY BENEFITS TOTAL | F36: =IF(ISBLANK('PART I'!H8),"",'PART I'!H8) -> 0
A37: PART I | B37: PRE-COMPLAINT ACTIVITIES | C37: COUNSELINGS | D37: E.1. COMPENSATORY DAMAGES | F37: =IF(ISBLANK('PART I'!F9),"",'PART I'!F9) -> 0
A38: PART I | B38: PRE-COMPLAINT ACTIVITIES | C38: INDIVIDUALS | D38: E.1. COMPENSATORY DAMAGES | F38: =IF(ISBLANK('PART I'!G9),"",'PART I'!G9) -> 0
A39: PART I | B39: PRE-COMPLAINT ACTIVITIES | C39: AMOUNT | D39: E.1. COMPENSATORY DAMAGES | F39: =IF(ISBLANK('PART I'!H9),"",'PART I'!H9) -> 0
A40: PART I | B40: PRE-COMPLAINT ACTIVITIES | C40: COUNSELINGS | D40: E.2. BACKPAY/FRONTPAY | F40: =IF(ISBLANK('PART I'!F10),"",'PART I'!F10) -> 0
A41: PART I | B41: PRE-COMPLAINT ACTIVITIES | C41: INDIVIDUALS | D41: E.2. BACKPAY/FRONTPAY | F41: =IF(ISBLANK('PART I'!G10),"",'PART I'!G10) -> 0
A42: PART I | B42: PRE-COMPLAINT ACTIVITIES | C42: AMOUNT | D42: E.2. BACKPAY/FRONTPAY | F42: =IF(ISBLANK('PART I'!H10),"",'PART I'!H10) -> 0
A43: PART I | B43: PRE-COMPLAINT ACTIVITIES | C43: COUNSELINGS | D43: E.3. LUMP SUM PAYMENT | F43: =IF(ISBLANK('PART I'!F11),"",'PART I'!F11) -> 0
A44: PART I | B44: PRE-COMPLAINT ACTIVITIES | C44: INDIVIDUALS | D44: E.3. LUMP SUM PAYMENT | F44: =IF(ISBLANK('PART I'!G11),"",'PART I'!G11) -> 0
A45: PART I | B45: PRE-COMPLAINT ACTIVITIES | C45: AMOUNT | D45: E.3. LUMP SUM PAYMENT | F45: =IF(ISBLANK('PART I'!H11),"",'PART I'!H11) -> 0
A46: PART I | B46: PRE-COMPLAINT ACTIVITIES | C46: COUNSELINGS | D46: E.4. ATTORNEY FEES AND COSTS | F46: =IF(ISBLANK('PART I'!F12),"",'PART I'!F12) -> 0
A47: PART I | B47: PRE-COMPLAINT ACTIVITIES | C47: INDIVIDUALS | D47: E.4. ATTORNEY FEES AND COSTS | F47: =IF(ISBLANK('PART I'!G12),"",'PART I'!G12) -> 0
A48: PART I | B48: PRE-COMPLAINT ACTIVITIES | C48: AMOUNT | D48: E.4. ATTORNEY FEES AND COSTS | F48: =IF(ISBLANK('PART I'!H12),"",'PART I'!H12) -> 0
A49: PART I | B49: PRE-COMPLAINT ACTIVITIES | C49: COUNSELINGS | D49: E.5. | E49: =IF(ISNUMBER(FIND("5.", 'PART I'!$E$13)), REPLACE('PART I'!$E$13, 1, 2, ""), 'PART I'!$E$13) ->  | F49: =IF(ISBLANK('PART I'!F13),"",'PART I'!F13) -> 0
A50: PART I | B50: PRE-COMPLAINT ACTIVITIES | C50: INDIVIDUALS | D50: E.5. | E50: =IF(ISNUMBER(FIND("5.", 'PART I'!$E$13)), REPLACE('PART I'!$E$13, 1, 2, ""), 'PART I'!$E$13) ->  | F50: =IF(ISBLANK('PART I'!G13),"",'PART I'!G13) -> 0
A51: PART I | B51: PRE-COMPLAINT ACTIVITIES | C51: AMOUNT | D51: E.5. | E51: =IF(ISNUMBER(FIND("5.", 'PART I'!$E$13)), REPLACE('PART I'!$E$13, 1, 2, ""), 'PART I'!$E$13) ->  | F51: =IF(ISBLANK('PART I'!H13),"",'PART I'!H13) -> 0
A52: PART I | B52: PRE-COMPLAINT ACTIVITIES | C52: COUNSELINGS | D52: E.6. | E52: =IF(ISNUMBER(FIND("6.", 'PART I'!$E$14)), REPLACE('PART I'!$E$14, 1, 2, ""), 'PART I'!$E$14) ->  | F52: =IF(ISBLANK('PART I'!F14),"",'PART I'!F14) -> 0
A53: PART I | B53: PRE-COMPLAINT ACTIVITIES | C53: INDIVIDUALS | D53: E.6. | E53: =IF(ISNUMBER(FIND("6.", 'PART I'!$E$14)), REPLACE('PART I'!$E$14, 1, 2, ""), 'PART I'!$E$14) ->  | F53: =IF(ISBLANK('PART I'!G14),"",'PART I'!G14) -> 0
A54: PART I | B54: PRE-COMPLAINT ACTIVITIES | C54: AMOUNT | D54: E.6. | E54: =IF(ISNUMBER(FIND("6.", 'PART I'!$E$14)), REPLACE('PART I'!$E$14, 1, 2, ""), 'PART I'!$E$14) ->  | F54: =IF(ISBLANK('PART I'!H14),"",'PART I'!H14) -> 0
A55: PART I | B55: PRE-COMPLAINT ACTIVITIES | C55: COUNSELINGS | D55: F. NON-ADR SETTLEMENTS WITH NON-MONETARY BENEFITS TOTAL | F55: =IF(ISBLANK('PART I'!F19),"",'PART I'!F19) -> 0
A56: PART I | B56: PRE-COMPLAINT ACTIVITIES | C56: INDIVIDUALS | D56: F. NON-ADR SETTLEMENTS WITH NON-MONETARY BENEFITS TOTAL | F56: =IF(ISBLANK('PART I'!G19),"",'PART I'!G19) -> 0
A57: PART I | B57: PRE-COMPLAINT ACTIVITIES | C57: COUNSELINGS | D57: F.1. HIRES | F57: =IF(ISBLANK('PART I'!F20),"",'PART I'!F20) -> 0
A58: PART I | B58: PRE-COMPLAINT ACTIVITIES | C58: INDIVIDUALS | D58: F.1. HIRES | F58: =IF(ISBLANK('PART I'!G20),"",'PART I'!G20) -> 0
A59: PART I | B59: PRE-COMPLAINT ACTIVITIES | C59: COUNSELINGS | D59: F.1.a. RETROACTIVE | F59: =IF(ISBLANK('PART I'!F21),"",'PART I'!F21) -> 0
A60: PART I | B60: PRE-COMPLAINT ACTIVITIES | C60: INDIVIDUALS | D60: F.1.a. RETROACTIVE | F60: =IF(ISBLANK('PART I'!G21),"",'PART I'!G21) -> 0
A61: PART I | B61: PRE-COMPLAINT ACTIVITIES | C61: COUNSELINGS | D61: F.1.b. NON-RETROACTIVE | F61: =IF(ISBLANK('PART I'!F22),"",'PART I'!F22) -> 0
A62: PART I | B62: PRE-COMPLAINT ACTIVITIES | C62: INDIVIDUALS | D62: F.1.b. NON-RETROACTIVE | F62: =IF(ISBLANK('PART I'!G22),"",'PART I'!G22) -> 0
A63: PART I | B63: PRE-COMPLAINT ACTIVITIES | C63: COUNSELINGS | D63: F.2. PROMOTIONS | F63: =IF(ISBLANK('PART I'!F23),"",'PART I'!F23) -> 0
A64: PART I | B64: PRE-COMPLAINT ACTIVITIES | C64: INDIVIDUALS | D64: F.2. PROMOTIONS | F64: =IF(ISBLANK('PART I'!G23),"",'PART I'!G23) -> 0
A65: PART I | B65: PRE-COMPLAINT ACTIVITIES | C65: COUNSELINGS | D65: F.2.a. RETROACTIVE | F65: =IF(ISBLANK('PART I'!F24),"",'PART I'!F24) -> 0
A66: PART I | B66: PRE-COMPLAINT ACTIVITIES | C66: INDIVIDUALS | D66: F.2.a. RETROACTIVE | F66: =IF(ISBLANK('PART I'!G24),"",'PART I'!G24) -> 0
A67: PART I | B67: PRE-COMPLAINT ACTIVITIES | C67: COUNSELINGS | D67: F.2.b. NON-RETROACTIVE | F67: =IF(ISBLANK('PART I'!F25),"",'PART I'!F25) -> 0
A68: PART I | B68: PRE-COMPLAINT ACTIVITIES | C68: INDIVIDUALS | D68: F.2.b. NON-RETROACTIVE | F68: =IF(ISBLANK('PART I'!G25),"",'PART I'!G25) -> 0
A69: PART I | B69: PRE-COMPLAINT ACTIVITIES | C69: COUNSELINGS | D69: F.3. EXPUNGEMENTS | F69: =IF(ISBLANK('PART I'!F26),"",'PART I'!F26) -> 0
A70: PART I | B70: PRE-COMPLAINT ACTIVITIES | C70: INDIVIDUALS | D70: F.3. EXPUNGEMENTS | F70: =IF(ISBLANK('PART I'!G26),"",'PART I'!G26) -> 0
A71: PART I | B71: PRE-COMPLAINT ACTIVITIES | C71: COUNSELINGS | D71: F.4. REASSIGNMENTS | F71: =IF(ISBLANK('PART I'!F27),"",'PART I'!F27) -> 0
A72: PART I | B72: PRE-COMPLAINT ACTIVITIES | C72: INDIVIDUALS | D72: F.4. REASSIGNMENTS | F72: =IF(ISBLANK('PART I'!G27),"",'PART I'!G27) -> 0
A73: PART I | B73: PRE-COMPLAINT ACTIVITIES | C73: COUNSELINGS | D73: F.5. REMOVALS RESCINDED | F73: =IF(ISBLANK('PART I'!F28),"",'PART I'!F28) -> 0
A74: PART I | B74: PRE-COMPLAINT ACTIVITIES | C74: INDIVIDUALS | D74: F.5. REMOVALS RESCINDED | F74: =IF(ISBLANK('PART I'!G28),"",'PART I'!G28) -> 0
A75: PART I | B75: PRE-COMPLAINT ACTIVITIES | C75: COUNSELINGS | D75: F.5.a. REINSTATEMENT | F75: =IF(ISBLANK('PART I'!F29),"",'PART I'!F29) -> 0
A76: PART I | B76: PRE-COMPLAINT ACTIVITIES | C76: INDIVIDUALS | D76: F.5.a. REINSTATEMENT | F76: =IF(ISBLANK('PART I'!G29),"",'PART I'!G29) -> 0
A77: PART I | B77: PRE-COMPLAINT ACTIVITIES | C77: COUNSELINGS | D77: F.5.b. VOLUNTARY RESIGNATION | F77: =IF(ISBLANK('PART I'!F30),"",'PART I'!F30) -> 0
A78: PART I | B78: PRE-COMPLAINT ACTIVITIES | C78: INDIVIDUALS | D78: F.5.b. VOLUNTARY RESIGNATION | F78: =IF(ISBLANK('PART I'!G30),"",'PART I'!G30) -> 0
A79: PART I | B79: PRE-COMPLAINT ACTIVITIES | C79: COUNSELINGS | D79: F.6. ACCOMMODATIONS | F79: =IF(ISBLANK('PART I'!F31),"",'PART I'!F31) -> 0
A80: PART I | B80: PRE-COMPLAINT ACTIVITIES | C80: INDIVIDUALS | D80: F.6. ACCOMMODATIONS | F80: =IF(ISBLANK('PART I'!G31),"",'PART I'!G31) -> 0
A81: PART I | B81: PRE-COMPLAINT ACTIVITIES | C81: COUNSELINGS | D81: F.7. TRAINING | F81: =IF(ISBLANK('PART I'!F32),"",'PART I'!F32) -> 0
A82: PART I | B82: PRE-COMPLAINT ACTIVITIES | C82: INDIVIDUALS | D82: F.7. TRAINING | F82: =IF(ISBLANK('PART I'!G32),"",'PART I'!G32) -> 0
A83: PART I | B83: PRE-COMPLAINT ACTIVITIES | C83: COUNSELINGS | D83: F.8. APOLOGY | F83: =IF(ISBLANK('PART I'!F33),"",'PART I'!F33) -> 0
A84: PART I | B84: PRE-COMPLAINT ACTIVITIES | C84: INDIVIDUALS | D84: F.8. APOLOGY | F84: =IF(ISBLANK('PART I'!G33),"",'PART I'!G33) -> 0
A85: PART I | B85: PRE-COMPLAINT ACTIVITIES | C85: COUNSELINGS | D85: F.9. DISCIPLINARY ACTIONS | F85: =IF(ISBLANK('PART I'!F34),"",'PART I'!F34) -> 0
A86: PART I | B86: PRE-COMPLAINT ACTIVITIES | C86: INDIVIDUALS | D86: F.9. DISCIPLINARY ACTIONS | F86: =IF(ISBLANK('PART I'!G34),"",'PART I'!G34) -> 0
A87: PART I | B87: PRE-COMPLAINT ACTIVITIES | C87: COUNSELINGS | D87: F.9.a. RESCINDED | F87: =IF(ISBLANK('PART I'!F35),"",'PART I'!F35) -> 0
A88: PART I | B88: PRE-COMPLAINT ACTIVITIES | C88: INDIVIDUALS | D88: F.9.a. RESCINDED | F88: =IF(ISBLANK('PART I'!G35),"",'PART I'!G35) -> 0
A89: PART I | B89: PRE-COMPLAINT ACTIVITIES | C89: COUNSELINGS | D89: F.9.b. MODIFIED | F89: =IF(ISBLANK('PART I'!F36),"",'PART I'!F36) -> 0
A90: PART I | B90: PRE-COMPLAINT ACTIVITIES | C90: INDIVIDUALS | D90: F.9.b. MODIFIED | F90: =IF(ISBLANK('PART I'!G36),"",'PART I'!G36) -> 0
A91: PART I | B91: PRE-COMPLAINT ACTIVITIES | C91: COUNSELINGS | D91: F.10. PERFORMANCE EVALUATION MODIFIED | F91: =IF(ISBLANK('PART I'!F37),"",'PART I'!F37) -> 0
A92: PART I | B92: PRE-COMPLAINT ACTIVITIES | C92: INDIVIDUALS | D92: F.10. PERFORMANCE EVALUATION MODIFIED | F92: =IF(ISBLANK('PART I'!G37),"",'PART I'!G37) -> 0
A93: PART I | B93: PRE-COMPLAINT ACTIVITIES | C93: COUNSELINGS | D93: F.11. LEAVE RESTORED | F93: =IF(ISBLANK('PART I'!F38),"",'PART I'!F38) -> 0
A94: PART I | B94: PRE-COMPLAINT ACTIVITIES | C94: INDIVIDUALS | D94: F.11. LEAVE RESTORED | F94: =IF(ISBLANK('PART I'!G38),"",'PART I'!G38) -> 0
A95: PART I | B95: PRE-COMPLAINT ACTIVITIES | C95: COUNSELINGS | D95: F.12. NEUTRAL REFERENCE | F95: =IF(ISBLANK('PART I'!F39),"",'PART I'!F39) -> 0
A96: PART I | B96: PRE-COMPLAINT ACTIVITIES | C96: INDIVIDUALS | D96: F.12. NEUTRAL REFERENCE | F96: =IF(ISBLANK('PART I'!G39),"",'PART I'!G39) -> 0
A97: PART I | B97: PRE-COMPLAINT ACTIVITIES | C97: COUNSELINGS | D97: F.13. | E97: =IF(ISNUMBER(FIND("13.", 'PART I'!$E$40)), REPLACE('PART I'!$E$40, 1, 3, ""), 'PART I'!$E$40) ->  | F97: =IF(ISBLANK('PART I'!F40),"",'PART I'!F40) -> 0
A98: PART I | B98: PRE-COMPLAINT ACTIVITIES | C98: INDIVIDUALS | D98: F.13. | E98: =IF(ISNUMBER(FIND("13.", 'PART I'!$E$40)), REPLACE('PART I'!$E$40, 1, 3, ""), 'PART I'!$E$40) ->  | F98: =IF(ISBLANK('PART I'!G40),"",'PART I'!G40) -> 0
A99: PART I | B99: PRE-COMPLAINT ACTIVITIES | C99: COUNSELINGS | D99: F.14. | E99: =IF(ISNUMBER(FIND("14.", 'PART I'!$E$41)), REPLACE('PART I'!$E$41, 1, 3, ""), 'PART I'!$E$41) ->  | F99: =IF(ISBLANK('PART I'!F41),"",'PART I'!F41) -> 0
A100: PART I | B100: PRE-COMPLAINT ACTIVITIES | C100: INDIVIDUALS | D100: F.14. | E100: =IF(ISNUMBER(FIND("14.", 'PART I'!$E$41)), REPLACE('PART I'!$E$41, 1, 3, ""), 'PART I'!$E$41) ->  | F100: =IF(ISBLANK('PART I'!G41),"",'PART I'!G41) -> 0
A101: PART I | B101: PRE-COMPLAINT ACTIVITIES | C101: COUNSELINGS | D101: G. ADR SETTLEMENTS WITH MONETARY BENEFITS TOTAL | F101: =IF(ISBLANK('PART I'!F45),"",'PART I'!F45) -> 0
A102: PART I | B102: PRE-COMPLAINT ACTIVITIES | C102: INDIVIDUALS | D102: G. ADR SETTLEMENTS WITH MONETARY BENEFITS TOTAL | F102: =IF(ISBLANK('PART I'!G45),"",'PART I'!G45) -> 0
A103: PART I | B103: PRE-COMPLAINT ACTIVITIES | C103: AMOUNT | D103: G. ADR SETTLEMENTS WITH MONETARY BENEFITS TOTAL | F103: =IF(ISBLANK('PART I'!H45),"",'PART I'!H45) -> 0
A104: PART I | B104: PRE-COMPLAINT ACTIVITIES | C104: COUNSELINGS | D104: G.1. COMPENSATORY DAMAGES | F104: =IF(ISBLANK('PART I'!F46),"",'PART I'!F46) -> 0
A105: PART I | B105: PRE-COMPLAINT ACTIVITIES | C105: INDIVIDUALS | D105: G.1. COMPENSATORY DAMAGES | F105: =IF(ISBLANK('PART I'!G46),"",'PART I'!G46) -> 0
A106: PART I | B106: PRE-COMPLAINT ACTIVITIES | C106: AMOUNT | D106: G.1. COMPENSATORY DAMAGES | F106: =IF(ISBLANK('PART I'!H46),"",'PART I'!H46) -> 0
A107: PART I | B107: PRE-COMPLAINT ACTIVITIES | C107: COUNSELINGS | D107: G.2. BACKPAY/FRONTPAY | F107: =IF(ISBLANK('PART I'!F47),"",'PART I'!F47) -> 0
A108: PART I | B108: PRE-COMPLAINT ACTIVITIES | C108: INDIVIDUALS | D108: G.2. BACKPAY/FRONTPAY | F108: =IF(ISBLANK('PART I'!G47),"",'PART I'!G47) -> 0
A109: PART I | B109: PRE-COMPLAINT ACTIVITIES | C109: AMOUNT | D109: G.2. BACKPAY/FRONTPAY | F109: =IF(ISBLANK('PART I'!H47),"",'PART I'!H47) -> 0
A110: PART I | B110: PRE-COMPLAINT ACTIVITIES | C110: COUNSELINGS | D110: G.3. LUMP SUM PAYMENT | F110: =IF(ISBLANK('PART I'!F48),"",'PART I'!F48) -> 0
A111: PART I | B111: PRE-COMPLAINT ACTIVITIES | C111: INDIVIDUALS | D111: G.3. LUMP SUM PAYMENT | F111: =IF(ISBLANK('PART I'!G48),"",'PART I'!G48) -> 0
A112: PART I | B112: PRE-COMPLAINT ACTIVITIES | C112: AMOUNT | D112: G.3. LUMP SUM PAYMENT | F112: =IF(ISBLANK('PART I'!H48),"",'PART I'!H48) -> 0
A113: PART I | B113: PRE-COMPLAINT ACTIVITIES | C113: COUNSELINGS | D113: G.4. ATTORNEY FEES AND COSTS | F113: =IF(ISBLANK('PART I'!F49),"",'PART I'!F49) -> 0
A114: PART I | B114: PRE-COMPLAINT ACTIVITIES | C114: INDIVIDUALS | D114: G.4. ATTORNEY FEES AND COSTS | F114: =IF(ISBLANK('PART I'!G49),"",'PART I'!G49) -> 0
A115: PART I | B115: PRE-COMPLAINT ACTIVITIES | C115: AMOUNT | D115: G.4. ATTORNEY FEES AND COSTS | F115: =IF(ISBLANK('PART I'!H49),"",'PART I'!H49) -> 0
A116: PART I | B116: PRE-COMPLAINT ACTIVITIES | C116: COUNSELINGS | D116: G.5. | E116: =IF(ISNUMBER(FIND("5.", 'PART I'!$E$50)), REPLACE('PART I'!$E$50, 1, 2, ""), 'PART I'!$E$50) ->  | F116: =IF(ISBLANK('PART I'!F50),"",'PART I'!F50) -> 0
A117: PART I | B117: PRE-COMPLAINT ACTIVITIES | C117: INDIVIDUALS | D117: G.5. | E117: =IF(ISNUMBER(FIND("5.", 'PART I'!$E$50)), REPLACE('PART I'!$E$50, 1, 2, ""), 'PART I'!$E$50) ->  | F117: =IF(ISBLANK('PART I'!G50),"",'PART I'!G50) -> 0
A118: PART I | B118: PRE-COMPLAINT ACTIVITIES | C118: AMOUNT | D118: G.5. | E118: =IF(ISNUMBER(FIND("5.", 'PART I'!$E$50)), REPLACE('PART I'!$E$50, 1, 2, ""), 'PART I'!$E$50) ->  | F118: =IF(ISBLANK('PART I'!H50),"",'PART I'!H50) -> 0
A119: PART I | B119: PRE-COMPLAINT ACTIVITIES | C119: COUNSELINGS | D119: G.6. | E119: =IF(ISNUMBER(FIND("6.", 'PART I'!$E$51)), REPLACE('PART I'!$E$51, 1, 2, ""), 'PART I'!$E$51) ->  | F119: =IF(ISBLANK('PART I'!F51),"",'PART I'!F51) -> 0
A120: PART I | B120: PRE-COMPLAINT ACTIVITIES | C120: INDIVIDUALS | D120: G.6. | E120: =IF(ISNUMBER(FIND("6.", 'PART I'!$E$51)), REPLACE('PART I'!$E$51, 1, 2, ""), 'PART I'!$E$51) ->  | F120: =IF(ISBLANK('PART I'!G51),"",'PART I'!G51) -> 0
A121: PART I | B121: PRE-COMPLAINT ACTIVITIES | C121: AMOUNT | D121: G.6. | E121: =IF(ISNUMBER(FIND("6.", 'PART I'!$E$51)), REPLACE('PART I'!$E$51, 1, 2, ""), 'PART I'!$E$51) ->  | F121: =IF(ISBLANK('PART I'!H51),"",'PART I'!H51) -> 0
A122: PART I | B122: PRE-COMPLAINT ACTIVITIES | C122: COUNSELINGS | D122: H. ADR SETTLEMENTS WITH NON-MONETARY BENEFITS TOTAL | F122: =IF(ISBLANK('PART I'!F56),"",'PART I'!F56) -> 0
A123: PART I | B123: PRE-COMPLAINT ACTIVITIES | C123: INDIVIDUALS | D123: H. ADR SETTLEMENTS WITH NON-MONETARY BENEFITS TOTAL | F123: =IF(ISBLANK('PART I'!G56),"",'PART I'!G56) -> 0
A124: PART I | B124: PRE-COMPLAINT ACTIVITIES | C124: COUNSELINGS | D124: H.1. HIRES | F124: =IF(ISBLANK('PART I'!F57),"",'PART I'!F57) -> 0
A125: PART I | B125: PRE-COMPLAINT ACTIVITIES | C125: INDIVIDUALS | D125: H.1. HIRES | F125: =IF(ISBLANK('PART I'!G57),"",'PART I'!G57) -> 0
A126: PART I | B126: PRE-COMPLAINT ACTIVITIES | C126: COUNSELINGS | D126: H.1.a. RETROACTIVE | F126: =IF(ISBLANK('PART I'!F58),"",'PART I'!F58) -> 0
A127: PART I | B127: PRE-COMPLAINT ACTIVITIES | C127: INDIVIDUALS | D127: H.1.a. RETROACTIVE | F127: =IF(ISBLANK('PART I'!G58),"",'PART I'!G58) -> 0
A128: PART I | B128: PRE-COMPLAINT ACTIVITIES | C128: COUNSELINGS | D128: H.1.b. NON-RETROACTIVE | F128: =IF(ISBLANK('PART I'!F59),"",'PART I'!F59) -> 0
A129: PART I | B129: PRE-COMPLAINT ACTIVITIES | C129: INDIVIDUALS | D129: H.1.b. NON-RETROACTIVE | F129: =IF(ISBLANK('PART I'!G59),"",'PART I'!G59) -> 0
A130: PART I | B130: PRE-COMPLAINT ACTIVITIES | C130: COUNSELINGS | D130: H.2. PROMOTIONS | F130: =IF(ISBLANK('PART I'!F60),"",'PART I'!F60) -> 0
A131: PART I | B131: PRE-COMPLAINT ACTIVITIES | C131: INDIVIDUALS | D131: H.2. PROMOTIONS | F131: =IF(ISBLANK('PART I'!G60),"",'PART I'!G60) -> 0
A132: PART I | B132: PRE-COMPLAINT ACTIVITIES | C132: COUNSELINGS | D132: H.2.a. RETROACTIVE | F132: =IF(ISBLANK('PART I'!F61),"",'PART I'!F61) -> 0
A133: PART I | B133: PRE-COMPLAINT ACTIVITIES | C133: INDIVIDUALS | D133: H.2.a. RETROACTIVE | F133: =IF(ISBLANK('PART I'!G61),"",'PART I'!G61) -> 0
A134: PART I | B134: PRE-COMPLAINT ACTIVITIES | C134: COUNSELINGS | D134: H.2.b. NON-RETROACTIVE | F134: =IF(ISBLANK('PART I'!F62),"",'PART I'!F62) -> 0
A135: PART I | B135: PRE-COMPLAINT ACTIVITIES | C135: INDIVIDUALS | D135: H.2.b. NON-RETROACTIVE | F135: =IF(ISBLANK('PART I'!G62),"",'PART I'!G62) -> 0
A136: PART I | B136: PRE-COMPLAINT ACTIVITIES | C136: COUNSELINGS | D136: H.3. EXPUNGEMENTS | F136: =IF(ISBLANK('PART I'!F63),"",'PART I'!F63) -> 0
A137: PART I | B137: PRE-COMPLAINT ACTIVITIES | C137: INDIVIDUALS | D137: H.3. EXPUNGEMENTS | F137: =IF(ISBLANK('PART I'!G63),"",'PART I'!G63) -> 0
A138: PART I | B138: PRE-COMPLAINT ACTIVITIES | C138: COUNSELINGS | D138: H.4. REASSIGNMENTS | F138: =IF(ISBLANK('PART I'!F64),"",'PART I'!F64) -> 0
A139: PART I | B139: PRE-COMPLAINT ACTIVITIES | C139: INDIVIDUALS | D139: H.4. REASSIGNMENTS | F139: =IF(ISBLANK('PART I'!G64),"",'PART I'!G64) -> 0
A140: PART I | B140: PRE-COMPLAINT ACTIVITIES | C140: COUNSELINGS | D140: H.5. REMOVALS RESCINDED | F140: =IF(ISBLANK('PART I'!F65),"",'PART I'!F65) -> 0
A141: PART I | B141: PRE-COMPLAINT ACTIVITIES | C141: INDIVIDUALS | D141: H.5. REMOVALS RESCINDED | F141: =IF(ISBLANK('PART I'!G65),"",'PART I'!G65) -> 0
A142: PART I | B142: PRE-COMPLAINT ACTIVITIES | C142: COUNSELINGS | D142: H.5.a. REINSTATEMENT | F142: =IF(ISBLANK('PART I'!F66),"",'PART I'!F66) -> 0
A143: PART I | B143: PRE-COMPLAINT ACTIVITIES | C143: INDIVIDUALS | D143: H.5.a. REINSTATEMENT | F143: =IF(ISBLANK('PART I'!G66),"",'PART I'!G66) -> 0
A144: PART I | B144: PRE-COMPLAINT ACTIVITIES | C144: COUNSELINGS | D144: H.5.b. VOLUNTARY RESIGNATION | F144: =IF(ISBLANK('PART I'!F67),"",'PART I'!F67) -> 0
A145: PART I | B145: PRE-COMPLAINT ACTIVITIES | C145: INDIVIDUALS | D145: H.5.b. VOLUNTARY RESIGNATION | F145: =IF(ISBLANK('PART I'!G67),"",'PART I'!G67) -> 0
A146: PART I | B146: PRE-COMPLAINT ACTIVITIES | C146: COUNSELINGS | D146: H.6. ACCOMMODATIONS | F146: =IF(ISBLANK('PART I'!F68),"",'PART I'!F68) -> 0
A147: PART I | B147: PRE-COMPLAINT ACTIVITIES | C147: INDIVIDUALS | D147: H.6. ACCOMMODATIONS | F147: =IF(ISBLANK('PART I'!G68),"",'PART I'!G68) -> 0
A148: PART I | B148: PRE-COMPLAINT ACTIVITIES | C148: COUNSELINGS | D148: H.7. TRAINING | F148: =IF(ISBLANK('PART I'!F69),"",'PART I'!F69) -> 0
A149: PART I | B149: PRE-COMPLAINT ACTIVITIES | C149: INDIVIDUALS | D149: H.7. TRAINING | F149: =IF(ISBLANK('PART I'!G69),"",'PART I'!G69) -> 0
A150: PART I | B150: PRE-COMPLAINT ACTIVITIES | C150: COUNSELINGS | D150: H.8. APOLOGY | F150: =IF(ISBLANK('PART I'!F70),"",'PART I'!F70) -> 0
A151: PART I | B151: PRE-COMPLAINT ACTIVITIES | C151: INDIVIDUALS | D151: H.8. APOLOGY | F151: =IF(ISBLANK('PART I'!G70),"",'PART I'!G70) -> 0
A152: PART I | B152: PRE-COMPLAINT ACTIVITIES | C152: COUNSELINGS | D152: H.9. DISCIPLINARY ACTIONS | F152: =IF(ISBLANK('PART I'!F71),"",'PART I'!F71) -> 0
A153: PART I | B153: PRE-COMPLAINT ACTIVITIES | C153: INDIVIDUALS | D153: H.9. DISCIPLINARY ACTIONS | F153: =IF(ISBLANK('PART I'!G71),"",'PART I'!G71) -> 0
A154: PART I | B154: PRE-COMPLAINT ACTIVITIES | C154: COUNSELINGS | D154: H.9.a. RESCINDED | F154: =IF(ISBLANK('PART I'!F72),"",'PART I'!F72) -> 0
A155: PART I | B155: PRE-COMPLAINT ACTIVITIES | C155: INDIVIDUALS | D155: H.9.a. RESCINDED | F155: =IF(ISBLANK('PART I'!G72),"",'PART I'!G72) -> 0
A156: PART I | B156: PRE-COMPLAINT ACTIVITIES | C156: COUNSELINGS | D156: H.9.b. MODIFIED | F156: =IF(ISBLANK('PART I'!F73),"",'PART I'!F73) -> 0
A157: PART I | B157: PRE-COMPLAINT ACTIVITIES | C157: INDIVIDUALS | D157: H.9.b. MODIFIED | F157: =IF(ISBLANK('PART I'!G73),"",'PART I'!G73) -> 0
A158: PART I | B158: PRE-COMPLAINT ACTIVITIES | C158: COUNSELINGS | D158: H.10. PERFORMANCE EVALUATION MODIFIED | F158: =IF(ISBLANK('PART I'!F74),"",'PART I'!F74) -> 0
A159: PART I | B159: PRE-COMPLAINT ACTIVITIES | C159: INDIVIDUALS | D159: H.10. PERFORMANCE EVALUATION MODIFIED | F159: =IF(ISBLANK('PART I'!G74),"",'PART I'!G74) -> 0
A160: PART I | B160: PRE-COMPLAINT ACTIVITIES | C160: COUNSELINGS | D160: H.11. LEAVE RESTORED | F160: =IF(ISBLANK('PART I'!F75),"",'PART I'!F75) -> 0
A161: PART I | B161: PRE-COMPLAINT ACTIVITIES | C161: INDIVIDUALS | D161: H.11. LEAVE RESTORED | F161: =IF(ISBLANK('PART I'!G75),"",'PART I'!G75) -> 0
A162: PART I | B162: PRE-COMPLAINT ACTIVITIES | C162: COUNSELINGS | D162: H.12. NEUTRAL REFERENCE | F162: =IF(ISBLANK('PART I'!F76),"",'PART I'!F76) -> 0
A163: PART I | B163: PRE-COMPLAINT ACTIVITIES | C163: INDIVIDUALS | D163: H.12. NEUTRAL REFERENCE | F163: =IF(ISBLANK('PART I'!G76),"",'PART I'!G76) -> 0
A164: PART I | B164: PRE-COMPLAINT ACTIVITIES | C164: COUNSELINGS | D164: H.13. | E164: =IF(ISNUMBER(FIND("13.", 'PART I'!$E$77)), REPLACE('PART I'!$E$77, 1, 3, ""), 'PART I'!$E$77) ->  | F164: =IF(ISBLANK('PART I'!F77),"",'PART I'!F77) -> 0
A165: PART I | B165: PRE-COMPLAINT ACTIVITIES | C165: INDIVIDUALS | D165: H.13. | E165: =IF(ISNUMBER(FIND("13.", 'PART I'!$E$77)), REPLACE('PART I'!$E$77, 1, 3, ""), 'PART I'!$E$77) ->  | F165: =IF(ISBLANK('PART I'!G77),"",'PART I'!G77) -> 0
A166: PART I | B166: PRE-COMPLAINT ACTIVITIES | C166: COUNSELINGS | D166: H.14. | E166: =IF(ISNUMBER(FIND("14.", 'PART I'!$E$78)), REPLACE('PART I'!$E$78, 1, 3, ""), 'PART I'!$E$78) ->  | F166: =IF(ISBLANK('PART I'!F78),"",'PART I'!F78) -> 0
A167: PART I | B167: PRE-COMPLAINT ACTIVITIES | C167: INDIVIDUALS | D167: H.14. | E167: =IF(ISNUMBER(FIND("14.", 'PART I'!$E$78)), REPLACE('PART I'!$E$78, 1, 3, ""), 'PART I'!$E$78) ->  | F167: =IF(ISBLANK('PART I'!G78),"",'PART I'!G78) -> 0
A168: PART I | B168: PRE-COMPLAINT ACTIVITIES | C168: COUNSELINGS | D168: I. NON-ADR SETTLEMENTS | F168: =IF(ISBLANK('PART I'!F82),"",'PART I'!F82) -> 0
A169: PART I | B169: PRE-COMPLAINT ACTIVITIES | C169: INDIVIDUALS | D169: I. NON-ADR SETTLEMENTS | F169: =IF(ISBLANK('PART I'!G82),"",'PART I'!G82) -> 0
A170: PART II | B170: FORMAL COMPLAINT ACTIVITIES | C170: N/A | D170: A. COMPLAINTS ON HAND AT THE BEGINNING OF THE REPORTING PERIOD | F170: =IF(ISBLANK('PARTS II and III'!A7),"",'PARTS II and III'!A7) -> 9
A171: PART II | B171: FORMAL COMPLAINT ACTIVITIES | C171: N/A | D171: B. COMPLAINTS FILED | F171: =IF(ISBLANK('PARTS II and III'!A10),"",'PARTS II and III'!A10) -> 13
A172: PART II | B172: FORMAL COMPLAINT ACTIVITIES | C172: N/A | D172: C. REMANDS (sum of lines C1+C2+C3) | F172: =IF(ISBLANK('PARTS II and III'!A12),"",'PARTS II and III'!A12) -> 0
A173: PART II | B173: FORMAL COMPLAINT ACTIVITIES | C173: N/A | D173: C.1. REMANDS (NOT INCLUDED IN A OR B) | F173: =IF(ISBLANK('PARTS II and III'!A13),"",'PARTS II and III'!A13) -> 0
A174: PART II | B174: FORMAL COMPLAINT ACTIVITIES | C174: N/A | D174: C.2. REMANDS (INCLUDED IN A OR B) | F174: =IF(ISBLANK('PARTS II and III'!A14),"",'PARTS II and III'!A14) -> 0
A175: PART II | B175: FORMAL COMPLAINT ACTIVITIES | C175: N/A | D175: C.3. NUMBER OF ADDITIONAL REMANDS IN THIS REPORTING PERIOD THAT ARE NOT CAPTURED IN C.1 OR C.2 ABOVE | F175: =IF(ISBLANK('PARTS II and III'!A15),"",'PARTS II and III'!A15) -> 0
A176: PART II | B176: FORMAL COMPLAINT ACTIVITIES | C176: N/A | D176: C.4. ADDITIONAL CLOSURES IN THIS REPORTING PERIOD NOT REFLECTED IN F. OR H. THAT RESULTED FROM REMANDS | F176: =IF(ISBLANK('PARTS II and III'!A17),"",'PARTS II and III'!A17) -> 0
A177: PART II | B177: FORMAL COMPLAINT ACTIVITIES | C177: N/A | D177: D. TOTAL COMPLAINTS | F177: =IF(ISBLANK('PARTS II and III'!A20),"",'PARTS II and III'!A20) -> 22
A178: PART II | B178: FORMAL COMPLAINT ACTIVITIES | C178: N/A | D178: E. COMPLAINTS IN LINE D THAT WERE NOT CONSOLIDATED | F178: =IF(ISBLANK('PARTS II and III'!A22),"",'PARTS II and III'!A22) -> 22
A179: PART II | B179: FORMAL COMPLAINT ACTIVITIES | C179: N/A | D179: F. COMPLAINTS IN LINE E CLOSED DURING REPORT PERIOD | F179: =IF(ISBLANK('PARTS II and III'!A$24),"",'PARTS II and III'!A$24) -> 8
A180: PART II | B180: FORMAL COMPLAINT ACTIVITIES | C180: N/A | D180: G. COMPLAINTS IN LINE D THAT WERE CONSOLIDATED | F180: =IF(ISBLANK('PARTS II and III'!A26),"",'PARTS II and III'!A26) -> 0
A181: PART II | B181: FORMAL COMPLAINT ACTIVITIES | C181: N/A | D181: H. COMPLAINTS IN LINE G CLOSED DURING REPORT PERIOD | F181: =IF(ISBLANK('PARTS II and III'!A28),"",'PARTS II and III'!A28) -> 0
A182: PART II | B182: FORMAL COMPLAINT ACTIVITIES | C182: N/A | D182: I. COMPLAINTS ON HAND AT THE END OF THE REPORTING PERIOD (Line D - (F+H)) + [(C2 + C3) - C4] | F182: =IF(ISBLANK('PARTS II and III'!A30),"",'PARTS II and III'!A30) -> 14
A183: PART II | B183: FORMAL COMPLAINT ACTIVITIES | C183: N/A | D183: J. INDIVIDUALS FILING COMPLAINTS (Complainants) | F183: =IF(ISBLANK('PARTS II and III'!A33),"",'PARTS II and III'!A33) -> 13
A184: PART II | B184: FORMAL COMPLAINT ACTIVITIES | C184: N/A | D184: K. NUMBER OF JOINT PROCESSING UNITS FROM CONSOLIDATION OF COMPLAINTS | F184: =IF(ISBLANK('PARTS II and III'!A35),"",'PARTS II and III'!A35) -> 0
A185: PART III | B185: AGENCY RESOURCES, TRAINING, REPORTING LINE | C185: AGENCY NUMBER | D185: A.1.a. TOTAL WORK FORCE | F185: =IF(ISBLANK('PARTS II and III'!I10),"",'PARTS II and III'!I10) -> 1225
A186: PART III | B186: AGENCY RESOURCES, TRAINING, REPORTING LINE | C186: AGENCY NUMBER | D186: A.1.b. PERMANENT EMPLOYEES | F186: =IF(ISBLANK('PARTS II and III'!I11),"",'PARTS II and III'!I11) -> 1204
A187: PART III | B187: AGENCY RESOURCES, TRAINING, REPORTING LINE | C187: AGENCY NUMBER | D187: A.2. COUNSELOR | F187: =IF(ISBLANK('PARTS II and III'!I12),"",'PARTS II and III'!I12) -> 4
A188: PART III | B188: AGENCY RESOURCES, TRAINING, REPORTING LINE | C188: CONTRACT NUMBER | D188: A.2. COUNSELOR | F188: =IF(ISBLANK('PARTS II and III'!K12),"",'PARTS II and III'!K12) -> 0
A189: PART III | B189: AGENCY RESOURCES, TRAINING, REPORTING LINE | C189: AGENCY NUMBER | D189: A.2.a. FULL-TIME | F189: =IF(ISBLANK('PARTS II and III'!I13),"",'PARTS II and III'!I13) -> 3
A190: PART III | B190: AGENCY RESOURCES, TRAINING, REPORTING LINE | C190: AGENCY PERCENT | D190: A.2.a. FULL-TIME | F190: =IF(ISBLANK('PARTS II and III'!J13),"",'PARTS II and III'!J13) -> 75
A191: PART III | B191: AGENCY RESOURCES, TRAINING, REPORTING LINE | C191: CONTRACT NUMBER | D191: A.2.a. FULL-TIME | F191: =IF(ISBLANK('PARTS II and III'!K13),"",'PARTS II and III'!K13) -> 0
A192: PART III | B192: AGENCY RESOURCES, TRAINING, REPORTING LINE | C192: CONTRACT PERCENT | D192: A.2.a. FULL-TIME | F192: =IF(ISBLANK('PARTS II and III'!L13),"",'PARTS II and III'!L13) -> 0
A193: PART III | B193: AGENCY RESOURCES, TRAINING, REPORTING LINE | C193: AGENCY NUMBER | D193: A.2.b. PART-TIME | F193: =IF(ISBLANK('PARTS II and III'!I14),"",'PARTS II and III'!I14) -> 1
A194: PART III | B194: AGENCY RESOURCES, TRAINING, REPORTING LINE | C194: AGENCY PERCENT | D194: A.2.b. PART-TIME | F194: =IF(ISBLANK('PARTS II and III'!J14),"",'PARTS II and III'!J14) -> 25
A195: PART III | B195: AGENCY RESOURCES, TRAINING, REPORTING LINE | C195: CONTRACT NUMBER | D195: A.2.b. PART-TIME | F195: =IF(ISBLANK('PARTS II and III'!K14),"",'PARTS II and III'!K14) -> 0
A196: PART III | B196: AGENCY RESOURCES, TRAINING, REPORTING LINE | C196: CONTRACT PERCENT | D196: A.2.b. PART-TIME | F196: =IF(ISBLANK('PARTS II and III'!L14),"",'PARTS II and III'!L14) -> 0
A197: PART III | B197: AGENCY RESOURCES, TRAINING, REPORTING LINE | C197: AGENCY NUMBER | D197: A.2.c. COLLATERAL DUTY | F197: =IF(ISBLANK('PARTS II and III'!I15),"",'PARTS II and III'!I15) -> 0
A198: PART III | B198: AGENCY RESOURCES, TRAINING, REPORTING LINE | C198: AGENCY PERCENT | D198: A.2.c. COLLATERAL DUTY | F198: =IF(ISBLANK('PARTS II and III'!J15),"",'PARTS II and III'!J15) -> 0
A199: PART III | B199: AGENCY RESOURCES, TRAINING, REPORTING LINE | C199: CONTRACT NUMBER | D199: A.2.c. COLLATERAL DUTY | F199: =IF(ISBLANK('PARTS II and III'!K15),"",'PARTS II and III'!K15) -> 0
A200: PART III | B200: AGENCY RESOURCES, TRAINING, REPORTING LINE | C200: CONTRACT PERCENT | D200: A.2.c. COLLATERAL DUTY | F200: =IF(ISBLANK('PARTS II and III'!L15),"",'PARTS II and III'!L15) -> 0
... 4323 more rows

Sheet iComplaints Checks Comparison (hidden)
A1: iComplaints Data Checks Comparison | AE1: DB | AF1: All Parts | AG1: Part I | AH1: Part II | AI1: Part III | AJ1: Part IV Part 1 | AK1: Part IV Part 2 | AL1: Part IVA | AM1: Part IVB | AN1: Part IX | AO1: Part V | AP1: Part VI | AQ1: Part VII | AR1: Part VIII | AS1: Part X | AT1: Part XI | AU1: Part XII
C2: Message: | F2: Query: | AE2: External Excel File
C3: Progress: | D3: 0 | F3: SELECT part_name, part_table_name,expression_left_hand, evaluation_symbol, expression_right_hand, eeo_462_comment_req, eeo_462_checklist_id, eeo_462_left_hand_mapping, conditional_mapping_left, conditional_eval_symbol, conditional_mapping_right FROM eeo_462_checklist_dim WHERE expression_left_hand IS NOT NULL AND UPPER(evaluation_symbol) != 'NOT EMPTY'
A4: ODBS DSN: | B4: icomplaintsDSN | C4: Source: | D4: DB
A5: DB User: | B5: ICOMP_MP_DEV2 | C5: Include Parts: | D5: Part I
A6: DB Password: | B6: icomp12
A7: iComplaints Data Checks Inconcictencies
A8: Reference | B8: Part Name | C8: Table Name | D8: 462 Line Item | E8: Must Be | F8: 462 Line Item(s) | G8: Comment Req | H8: Left Condition | I8: Condition Relation | J8: Right Condition | K8: Comment

Sheet Data Import
B2: Do not close any Excel file until import has completed.
B6: Data Compared | C6: 0 | D6: of | E6: 4523

Sheet Removed Data Checks (hidden)
A1: UID | B1: Update Date | C1: Change Implemented | D1: QRM ONLY?
A2: 12 | B2: 2018-08-29 | C2: Data check deleted | D2: N
A3: 13 | B3: 2018-08-29 | C3: Data check deleted | D3: N
A4: 22 | B4: 2018-08-31 | C4: Data check deleted | D4: N
A5: 23 | B5: 2018-08-31 | C5: Data check deleted | D5: N
A6: 34 | B6: 2018-08-31 | C6: Data check deleted | D6: N
A7: 35 | B7: 2018-08-31 | C7: Data check deleted | D7: N
A8: 45 | B8: 2018-08-31 | C8: Data check deleted | D8: N
A9: 46 | B9: 2018-08-31 | C9: Data check deleted | D9: N
A10: 57 | B10: 2018-08-31 | C10: Data check deleted | D10: N
A11: 58 | B11: 2018-08-31 | C11: Data check deleted | D11: N
A12: 468 | B12: 2018-08-31 | C12: Data check deleted | D12: N
A13: 469 | B13: 2018-08-31 | C13: Data check deleted | D13: N
A14: 4762 | B14: 2018-08-31 | C14: Data check deleted | D14: N
A15: 4763 | B15: 2018-08-31 | C15: Data check deleted | D15: N
A16: 4764 | B16: 2018-08-31 | C16: Data check deleted | D16: N
A17: 4765 | B17: 2018-08-31 | C17: Data check deleted | D17: N
A18: 5116 | B18: 2018-08-31 | C18: Data check deleted | D18: N
A19: 5119 | B19: 2018-08-31 | C19: Data check deleted | D19: N
A20: 5122 | B20: 2018-08-31 | C20: Data check deleted | D20: N
A21: 24 | B21: 2018-09-12 | C21: Data check deleted | D21: N
A22: 25 | B22: 2018-09-12 | C22: Data check deleted | D22: N
A23: 36 | B23: 2018-09-12 | C23: Data check deleted | D23: N
A24: 37 | B24: 2018-09-12 | C24: Data check deleted | D24: N
A25: 47 | B25: 2018-09-12 | C25: Data check deleted | D25: N
A26: 48 | B26: 2018-09-12 | C26: Data check deleted | D26: N
A27: 59 | B27: 2018-09-12 | C27: Data check deleted | D27: N
A28: 60 | B28: 2018-09-12 | C28: Data check deleted | D28: N
A29: 470 | B29: 2018-09-12 | C29: Data check deleted | D29: N
A30: 471 | B30: 2018-09-12 | C30: Data check deleted | D30: N
A31: 472 | B31: 2018-09-12 | C31: Data check deleted | D31: N
A32: 473 | B32: 2018-09-12 | C32: Data check deleted | D32: N
A33: 4766 | B33: 2018-09-12 | C33: Data check deleted | D33: N
A34: 4767 | B34: 2018-09-12 | C34: Data check deleted | D34: N
A35: 4768 | B35: 2018-09-12 | C35: Data check deleted | D35: N
A36: 4769 | B36: 2018-09-12 | C36: Data check deleted | D36: N
A37: 4905 | B37: 2018-09-12 | C37: Data check deleted | D37: N
A38: 4906 | B38: 2018-09-12 | C38: Data check deleted | D38: N
A39: 4908 | B39: 2018-09-12 | C39: Data check deleted | D39: N
A40: 4909 | B40: 2018-09-12 | C40: Data check deleted | D40: N
A41: 4912 | B41: 2018-09-12 | C41: Data check deleted | D41: N
A42: 4913 | B42: 2018-09-12 | C42: Data check deleted | D42: N
A43: 4915 | B43: 2018-09-12 | C43: Data check deleted | D43: N
A44: 4916 | B44: 2018-09-12 | C44: Data check deleted | D44: N
A45: 5104 | B45: 2018-09-12 | C45: Data check deleted | D45: N
A46: 5105 | B46: 2018-09-12 | C46: Data check deleted | D46: N
A47: 5107 | B47: 2018-09-12 | C47: Data check deleted | D47: N
A48: 5108 | B48: 2018-09-12 | C48: Data check deleted | D48: N
A49: 5110 | B49: 2018-09-12 | C49: Data check deleted | D49: N
A50: 5111 | B50: 2018-09-12 | C50: Data check deleted | D50: N
A51: 5113 | B51: 2018-09-12 | C51: Data check deleted | D51: N
A52: 5114 | B52: 2018-09-12 | C52: Data check deleted | D52: N
A53: 5117 | B53: 2018-09-12 | C53: Data check deleted | D53: N
A54: 5120 | B54: 2018-09-12 | C54: Data check deleted | D54: N
A55: 5123 | B55: 2018-09-12 | C55: Data check deleted | D55: N
A56: 4795 | B56: 2018-09-12 | C56: Data check deleted | D56: N
A57: 4800 | B57: 2018-09-12 | C57: Data check deleted | D57: N
A58: 6451 | B58: 2018-09-14 | C58: Data check deleted | D58: N
A59: 6452 | B59: 2018-09-14 | C59: Data check deleted | D59: N
A60: 6453 | B60: 2018-09-14 | C60: Data check deleted | D60: N
A61: 4788 | B61: 2018-10-17 | C61: Data check deleted | D61: N
